{"text_format":"1","workbook":"xlsx","n_sheets":5,"sheets":["Dashboard","PurchaseInfo","SaleInfo","Instructions","JSESiteQuery"],"not_rendered":{"charts":2,"images":3,"macros":1,"external_links":0,"defined_names":3,"comments":0,"pivot_tables":0},"unopened":[],"bounds":{"document_bytes":16777216,"sheet_cells":100000,"rows_first":2000,"rows_last":500,"rows_between":2000,"halvings":0,"cell_chars":16384,"cell_head_chars":4096},"cells_cut":0,"cells_raw":0,"read":"row_number_cap","date_system":"1900"}

{"sheet":"Dashboard","index":0,"n_rows":100,"n_cols":8,"rows_kept":100,"cut":false,"hidden":false,"merged":[],"read":"row_number_cap"}
[]
[]
[]
[null,null,{"$f":"CONCATENATE(COUNTIF(Table1[Gain/Loss (%)],\">1%\"),\" SHARE(S)\")","v":"4 SHARE(S)"}]
[null,null,null,{"$f":"CONCATENATE(COUNTIF(Table1[Gain/Loss (%)],\"<1%\"),\" SHARE(S)\")","v":"0 SHARE(S)"}]
[]
[]
[]
[]
[null,null,"Initial Portfolio Value",{"$f":"SUM(E:E)","v":1344824.7}]
[null,null,"Current Portfolio Value",{"$f":"SUM(F:F)","v":2148057.62}]
[null,null,"Total Gain/Loss (%)",{"$f":"(SUM(F:F)/SUM(E:E))-1","v":0.59727704287406391}]
[null,null,"Total Gain/Loss ($)",{"$f":"SUM(G:G)","v":803232.92000000016}]
[]
[null,null,null,null,null,null,null,{"$f":"CONCATENATE(\"Closing Prices as of \",SUBSTITUTE(JSESiteQuery!A15,\"Combined Market for \",\"\"))","v":"Closing Prices as of May 15, 2020"}]
["Stock","Avg. Purchase Price","Volume","Current Price","Total Spend","Current Value","Gain/Loss ($)","Gain/Loss (%)"]
["NCBFG (JMD)",{"$f":"_xlfn.IFNA(VLOOKUP(A17,PurchaseInfo!B:H,7,),\"\")","v":61.3},{"$f":"IF(ISBLANK(A17),\"\",SUMIF(PurchaseInfo!B:B,Dashboard!A17,PurchaseInfo!C:C)-SUMIF(SaleInfo!B:B,Dashboard!A17,SaleInfo!C:C))","v":3472},{"$f":"_xlfn.IFNA(VLOOKUP(A17,JSESiteQuery!A:M,3,),\"\")","v":148.22999999999999},{"$f":"IF(ISBLANK(A17),\"\",(B17*C17))","v":212833.59999999998},{"$f":"IFERROR(D17*C17,\"\")","v":514654.55999999994},{"$f":"IFERROR(F17-E17,\"\")","v":301820.95999999996},{"$f":"IFERROR((F17/E17)-1,\"\")","v":1.4181076672104402}]
["LAB (JMD)",{"$f":"_xlfn.IFNA(VLOOKUP(A18,PurchaseInfo!B:H,7,),\"\")","v":1.7236251868487114},{"$f":"IF(ISBLANK(A18),\"\",SUMIF(PurchaseInfo!B:B,Dashboard!A18,PurchaseInfo!C:C)-SUMIF(SaleInfo!B:B,Dashboard!A18,SaleInfo!C:C))","v":279638},{"$f":"_xlfn.IFNA(VLOOKUP(A18,JSESiteQuery!A:M,3,),\"\")","v":1.87},{"$f":"IF(ISBLANK(A18),\"\",(B18*C18))","v":481991.09999999992},{"$f":"IFERROR(D18*C18,\"\")","v":522923.06000000006},{"$f":"IFERROR(F18-E18,\"\")","v":40931.960000000137},{"$f":"IFERROR((F18/E18)-1,\"\")","v":8.4922646911945288E-2}]
["SCIJMD (JMD)",{"$f":"_xlfn.IFNA(VLOOKUP(A19,PurchaseInfo!B:H,7,),\"\")","v":10.384615384615385},{"$f":"IF(ISBLANK(A19),\"\",SUMIF(PurchaseInfo!B:B,Dashboard!A19,PurchaseInfo!C:C)-SUMIF(SaleInfo!B:B,Dashboard!A19,SaleInfo!C:C))","v":52000},{"$f":"_xlfn.IFNA(VLOOKUP(A19,JSESiteQuery!A:M,3,),\"\")","v":18.690000000000001},540000,971880.00000000012,431880.00000000012,0.79977777777777792]
["WIG (JMD)",{"$f":"_xlfn.IFNA(VLOOKUP(A20,PurchaseInfo!B:H,7,),\"\")","v":0.55555555555555558},{"$f":"IF(ISBLANK(A20),\"\",SUMIF(PurchaseInfo!B:B,Dashboard!A20,PurchaseInfo!C:C)-SUMIF(SaleInfo!B:B,Dashboard!A20,SaleInfo!C:C))","v":198000},{"$f":"_xlfn.IFNA(VLOOKUP(A20,JSESiteQuery!A:M,3,),\"\")","v":0.7},{"$f":"IF(ISBLANK(A20),\"\",(B20*C20))","v":110000},{"$f":"IFERROR(D20*C20,\"\")","v":138600},{"$f":"IFERROR(F20-E20,\"\")","v":28600},{"$f":"IFERROR((F20/E20)-1,\"\")","v":0.26}]
[null,{"$f":"_xlfn.IFNA(VLOOKUP(A21,PurchaseInfo!B:H,7,),\"\")","v":""},{"$f":"IF(ISBLANK(A21),\"\",SUMIF(PurchaseInfo!B:B,Dashboard!A21,PurchaseInfo!C:C)-SUMIF(SaleInfo!B:B,Dashboard!A21,SaleInfo!C:C))","v":""},{"$f":"_xlfn.IFNA(VLOOKUP(A21,JSESiteQuery!A:M,3,),\"\")","v":""},{"$f":"IF(ISBLANK(A21),\"\",(B21*C21))","v":""},{"$f":"IFERROR(D21*C21,\"\")","v":""},{"$f":"IFERROR(F21-E21,\"\")","v":""},{"$f":"IFERROR((F21/E21)-1,\"\")","v":""}]
[null,{"$f":"_xlfn.IFNA(VLOOKUP(A22,PurchaseInfo!B:H,7,),\"\")","v":""},{"$f":"IF(ISBLANK(A22),\"\",SUMIF(PurchaseInfo!B:B,Dashboard!A22,PurchaseInfo!C:C)-SUMIF(SaleInfo!B:B,Dashboard!A22,SaleInfo!C:C))","v":""},{"$f":"_xlfn.IFNA(VLOOKUP(A22,JSESiteQuery!A:M,3,),\"\")","v":""},"","","",""]
[null,{"$f":"_xlfn.IFNA(VLOOKUP(A23,PurchaseInfo!B:H,7,),\"\")","v":""},{"$f":"IF(ISBLANK(A23),\"\",SUMIF(PurchaseInfo!B:B,Dashboard!A23,PurchaseInfo!C:C)-SUMIF(SaleInfo!B:B,Dashboard!A23,SaleInfo!C:C))","v":""},{"$f":"_xlfn.IFNA(VLOOKUP(A23,JSESiteQuery!A:M,3,),\"\")","v":""},"","","",""]
[null,{"$f":"_xlfn.IFNA(VLOOKUP(A24,PurchaseInfo!B:H,7,),\"\")","v":""},{"$f":"IF(ISBLANK(A24),\"\",SUMIF(PurchaseInfo!B:B,Dashboard!A24,PurchaseInfo!C:C)-SUMIF(SaleInfo!B:B,Dashboard!A24,SaleInfo!C:C))","v":""},{"$f":"_xlfn.IFNA(VLOOKUP(A24,JSESiteQuery!A:M,3,),\"\")","v":""},"","","",""]
[null,{"$f":"_xlfn.IFNA(VLOOKUP(A25,PurchaseInfo!B:H,7,),\"\")","v":""},{"$f":"IF(ISBLANK(A25),\"\",SUMIF(PurchaseInfo!B:B,Dashboard!A25,PurchaseInfo!C:C)-SUMIF(SaleInfo!B:B,Dashboard!A25,SaleInfo!C:C))","v":""},{"$f":"_xlfn.IFNA(VLOOKUP(A25,JSESiteQuery!A:M,3,),\"\")","v":""},"","","",""]
[null,{"$f":"_xlfn.IFNA(VLOOKUP(A26,PurchaseInfo!B:H,7,),\"\")","v":""},{"$f":"IF(ISBLANK(A26),\"\",SUMIF(PurchaseInfo!B:B,Dashboard!A26,PurchaseInfo!C:C)-SUMIF(SaleInfo!B:B,Dashboard!A26,SaleInfo!C:C))","v":""},{"$f":"_xlfn.IFNA(VLOOKUP(A26,JSESiteQuery!A:M,3,),\"\")","v":""},"","","",""]
[null,{"$f":"_xlfn.IFNA(VLOOKUP(A27,PurchaseInfo!B:H,7,),\"\")","v":""},{"$f":"IF(ISBLANK(A27),\"\",SUMIF(PurchaseInfo!B:B,Dashboard!A27,PurchaseInfo!C:C)-SUMIF(SaleInfo!B:B,Dashboard!A27,SaleInfo!C:C))","v":""},{"$f":"_xlfn.IFNA(VLOOKUP(A27,JSESiteQuery!A:M,3,),\"\")","v":""},"","","",""]
[null,{"$f":"_xlfn.IFNA(VLOOKUP(A28,PurchaseInfo!B:H,7,),\"\")","v":""},{"$f":"IF(ISBLANK(A28),\"\",SUMIF(PurchaseInfo!B:B,Dashboard!A28,PurchaseInfo!C:C)-SUMIF(SaleInfo!B:B,Dashboard!A28,SaleInfo!C:C))","v":""},{"$f":"_xlfn.IFNA(VLOOKUP(A28,JSESiteQuery!A:M,3,),\"\")","v":""},"","","",""]
[null,{"$f":"_xlfn.IFNA(VLOOKUP(A29,PurchaseInfo!B:H,7,),\"\")","v":""},{"$f":"IF(ISBLANK(A29),\"\",SUMIF(PurchaseInfo!B:B,Dashboard!A29,PurchaseInfo!C:C)-SUMIF(SaleInfo!B:B,Dashboard!A29,SaleInfo!C:C))","v":""},{"$f":"_xlfn.IFNA(VLOOKUP(A29,JSESiteQuery!A:M,3,),\"\")","v":""},"","","",""]
[null,{"$f":"_xlfn.IFNA(VLOOKUP(A30,PurchaseInfo!B:H,7,),\"\")","v":""},{"$f":"IF(ISBLANK(A30),\"\",SUMIF(PurchaseInfo!B:B,Dashboard!A30,PurchaseInfo!C:C)-SUMIF(SaleInfo!B:B,Dashboard!A30,SaleInfo!C:C))","v":""},{"$f":"_xlfn.IFNA(VLOOKUP(A30,JSESiteQuery!A:M,3,),\"\")","v":""},"","","",""]
[null,{"$f":"_xlfn.IFNA(VLOOKUP(A31,PurchaseInfo!B:H,7,),\"\")","v":""},{"$f":"IF(ISBLANK(A31),\"\",SUMIF(PurchaseInfo!B:B,Dashboard!A31,PurchaseInfo!C:C)-SUMIF(SaleInfo!B:B,Dashboard!A31,SaleInfo!C:C))","v":""},{"$f":"_xlfn.IFNA(VLOOKUP(A31,JSESiteQuery!A:M,3,),\"\")","v":""},"","","",""]
[null,{"$f":"_xlfn.IFNA(VLOOKUP(A32,PurchaseInfo!B:H,7,),\"\")","v":""},{"$f":"IF(ISBLANK(A32),\"\",SUMIF(PurchaseInfo!B:B,Dashboard!A32,PurchaseInfo!C:C)-SUMIF(SaleInfo!B:B,Dashboard!A32,SaleInfo!C:C))","v":""},{"$f":"_xlfn.IFNA(VLOOKUP(A32,JSESiteQuery!A:M,3,),\"\")","v":""},"","","",""]
[null,{"$f":"_xlfn.IFNA(VLOOKUP(A33,PurchaseInfo!B:H,7,),\"\")","v":""},{"$f":"IF(ISBLANK(A33),\"\",SUMIF(PurchaseInfo!B:B,Dashboard!A33,PurchaseInfo!C:C)-SUMIF(SaleInfo!B:B,Dashboard!A33,SaleInfo!C:C))","v":""},{"$f":"_xlfn.IFNA(VLOOKUP(A33,JSESiteQuery!A:M,3,),\"\")","v":""},"","","",""]
[null,{"$f":"_xlfn.IFNA(VLOOKUP(A34,PurchaseInfo!B:H,7,),\"\")","v":""},{"$f":"IF(ISBLANK(A34),\"\",SUMIF(PurchaseInfo!B:B,Dashboard!A34,PurchaseInfo!C:C)-SUMIF(SaleInfo!B:B,Dashboard!A34,SaleInfo!C:C))","v":""},{"$f":"_xlfn.IFNA(VLOOKUP(A34,JSESiteQuery!A:M,3,),\"\")","v":""},"","","",""]
[null,{"$f":"_xlfn.IFNA(VLOOKUP(A35,PurchaseInfo!B:H,7,),\"\")","v":""},{"$f":"IF(ISBLANK(A35),\"\",SUMIF(PurchaseInfo!B:B,Dashboard!A35,PurchaseInfo!C:C)-SUMIF(SaleInfo!B:B,Dashboard!A35,SaleInfo!C:C))","v":""},{"$f":"_xlfn.IFNA(VLOOKUP(A35,JSESiteQuery!A:M,3,),\"\")","v":""},"","","",""]
[null,{"$f":"_xlfn.IFNA(VLOOKUP(A36,PurchaseInfo!B:H,7,),\"\")","v":""},{"$f":"IF(ISBLANK(A36),\"\",SUMIF(PurchaseInfo!B:B,Dashboard!A36,PurchaseInfo!C:C)-SUMIF(SaleInfo!B:B,Dashboard!A36,SaleInfo!C:C))","v":""},{"$f":"_xlfn.IFNA(VLOOKUP(A36,JSESiteQuery!A:M,3,),\"\")","v":""},"","","",""]
[null,{"$f":"_xlfn.IFNA(VLOOKUP(A37,PurchaseInfo!B:H,7,),\"\")","v":""},{"$f":"IF(ISBLANK(A37),\"\",SUMIF(PurchaseInfo!B:B,Dashboard!A37,PurchaseInfo!C:C)-SUMIF(SaleInfo!B:B,Dashboard!A37,SaleInfo!C:C))","v":""},{"$f":"_xlfn.IFNA(VLOOKUP(A37,JSESiteQuery!A:M,3,),\"\")","v":""},"","","",""]
[null,{"$f":"_xlfn.IFNA(VLOOKUP(A38,PurchaseInfo!B:H,7,),\"\")","v":""},{"$f":"IF(ISBLANK(A38),\"\",SUMIF(PurchaseInfo!B:B,Dashboard!A38,PurchaseInfo!C:C)-SUMIF(SaleInfo!B:B,Dashboard!A38,SaleInfo!C:C))","v":""},{"$f":"_xlfn.IFNA(VLOOKUP(A38,JSESiteQuery!A:M,3,),\"\")","v":""},"","","",""]
[null,{"$f":"_xlfn.IFNA(VLOOKUP(A39,PurchaseInfo!B:H,7,),\"\")","v":""},{"$f":"IF(ISBLANK(A39),\"\",SUMIF(PurchaseInfo!B:B,Dashboard!A39,PurchaseInfo!C:C)-SUMIF(SaleInfo!B:B,Dashboard!A39,SaleInfo!C:C))","v":""},{"$f":"_xlfn.IFNA(VLOOKUP(A39,JSESiteQuery!A:M,3,),\"\")","v":""},"","","",""]
[null,{"$f":"_xlfn.IFNA(VLOOKUP(A40,PurchaseInfo!B:H,7,),\"\")","v":""},{"$f":"IF(ISBLANK(A40),\"\",SUMIF(PurchaseInfo!B:B,Dashboard!A40,PurchaseInfo!C:C)-SUMIF(SaleInfo!B:B,Dashboard!A40,SaleInfo!C:C))","v":""},{"$f":"_xlfn.IFNA(VLOOKUP(A40,JSESiteQuery!A:M,3,),\"\")","v":""},"","","",""]
[null,{"$f":"_xlfn.IFNA(VLOOKUP(A41,PurchaseInfo!B:H,7,),\"\")","v":""},{"$f":"IF(ISBLANK(A41),\"\",SUMIF(PurchaseInfo!B:B,Dashboard!A41,PurchaseInfo!C:C)-SUMIF(SaleInfo!B:B,Dashboard!A41,SaleInfo!C:C))","v":""},{"$f":"_xlfn.IFNA(VLOOKUP(A41,JSESiteQuery!A:M,3,),\"\")","v":""},"","","",""]
[null,{"$f":"_xlfn.IFNA(VLOOKUP(A42,PurchaseInfo!B:H,7,),\"\")","v":""},{"$f":"IF(ISBLANK(A42),\"\",SUMIF(PurchaseInfo!B:B,Dashboard!A42,PurchaseInfo!C:C)-SUMIF(SaleInfo!B:B,Dashboard!A42,SaleInfo!C:C))","v":""},{"$f":"_xlfn.IFNA(VLOOKUP(A42,JSESiteQuery!A:M,3,),\"\")","v":""},"","","",""]
[null,{"$f":"_xlfn.IFNA(VLOOKUP(A43,PurchaseInfo!B:H,7,),\"\")","v":""},{"$f":"IF(ISBLANK(A43),\"\",SUMIF(PurchaseInfo!B:B,Dashboard!A43,PurchaseInfo!C:C)-SUMIF(SaleInfo!B:B,Dashboard!A43,SaleInfo!C:C))","v":""},{"$f":"_xlfn.IFNA(VLOOKUP(A43,JSESiteQuery!A:M,3,),\"\")","v":""},"","","",""]
[null,{"$f":"_xlfn.IFNA(VLOOKUP(A44,PurchaseInfo!B:H,7,),\"\")","v":""},{"$f":"IF(ISBLANK(A44),\"\",SUMIF(PurchaseInfo!B:B,Dashboard!A44,PurchaseInfo!C:C)-SUMIF(SaleInfo!B:B,Dashboard!A44,SaleInfo!C:C))","v":""},{"$f":"_xlfn.IFNA(VLOOKUP(A44,JSESiteQuery!A:M,3,),\"\")","v":""},"","","",""]
[null,{"$f":"_xlfn.IFNA(VLOOKUP(A45,PurchaseInfo!B:H,7,),\"\")","v":""},{"$f":"IF(ISBLANK(A45),\"\",SUMIF(PurchaseInfo!B:B,Dashboard!A45,PurchaseInfo!C:C)-SUMIF(SaleInfo!B:B,Dashboard!A45,SaleInfo!C:C))","v":""},{"$f":"_xlfn.IFNA(VLOOKUP(A45,JSESiteQuery!A:M,3,),\"\")","v":""},"","","",""]
[null,{"$f":"_xlfn.IFNA(VLOOKUP(A46,PurchaseInfo!B:H,7,),\"\")","v":""},{"$f":"IF(ISBLANK(A46),\"\",SUMIF(PurchaseInfo!B:B,Dashboard!A46,PurchaseInfo!C:C)-SUMIF(SaleInfo!B:B,Dashboard!A46,SaleInfo!C:C))","v":""},{"$f":"_xlfn.IFNA(VLOOKUP(A46,JSESiteQuery!A:M,3,),\"\")","v":""},"","","",""]
[null,{"$f":"_xlfn.IFNA(VLOOKUP(A47,PurchaseInfo!B:H,7,),\"\")","v":""},{"$f":"IF(ISBLANK(A47),\"\",SUMIF(PurchaseInfo!B:B,Dashboard!A47,PurchaseInfo!C:C)-SUMIF(SaleInfo!B:B,Dashboard!A47,SaleInfo!C:C))","v":""},{"$f":"_xlfn.IFNA(VLOOKUP(A47,JSESiteQuery!A:M,3,),\"\")","v":""},"","","",""]
[null,{"$f":"_xlfn.IFNA(VLOOKUP(A48,PurchaseInfo!B:H,7,),\"\")","v":""},{"$f":"IF(ISBLANK(A48),\"\",SUMIF(PurchaseInfo!B:B,Dashboard!A48,PurchaseInfo!C:C)-SUMIF(SaleInfo!B:B,Dashboard!A48,SaleInfo!C:C))","v":""},{"$f":"_xlfn.IFNA(VLOOKUP(A48,JSESiteQuery!A:M,3,),\"\")","v":""},"","","",""]
[null,{"$f":"_xlfn.IFNA(VLOOKUP(A49,PurchaseInfo!B:H,7,),\"\")","v":""},{"$f":"IF(ISBLANK(A49),\"\",SUMIF(PurchaseInfo!B:B,Dashboard!A49,PurchaseInfo!C:C)-SUMIF(SaleInfo!B:B,Dashboard!A49,SaleInfo!C:C))","v":""},{"$f":"_xlfn.IFNA(VLOOKUP(A49,JSESiteQuery!A:M,3,),\"\")","v":""},"","","",""]
[null,{"$f":"_xlfn.IFNA(VLOOKUP(A50,PurchaseInfo!B:H,7,),\"\")","v":""},{"$f":"IF(ISBLANK(A50),\"\",SUMIF(PurchaseInfo!B:B,Dashboard!A50,PurchaseInfo!C:C)-SUMIF(SaleInfo!B:B,Dashboard!A50,SaleInfo!C:C))","v":""},{"$f":"_xlfn.IFNA(VLOOKUP(A50,JSESiteQuery!A:M,3,),\"\")","v":""},"","","",""]
[null,{"$f":"_xlfn.IFNA(VLOOKUP(A51,PurchaseInfo!B:H,7,),\"\")","v":""},{"$f":"IF(ISBLANK(A51),\"\",SUMIF(PurchaseInfo!B:B,Dashboard!A51,PurchaseInfo!C:C)-SUMIF(SaleInfo!B:B,Dashboard!A51,SaleInfo!C:C))","v":""},{"$f":"_xlfn.IFNA(VLOOKUP(A51,JSESiteQuery!A:M,3,),\"\")","v":""},"","","",""]
[null,{"$f":"_xlfn.IFNA(VLOOKUP(A52,PurchaseInfo!B:H,7,),\"\")","v":""},{"$f":"IF(ISBLANK(A52),\"\",SUMIF(PurchaseInfo!B:B,Dashboard!A52,PurchaseInfo!C:C)-SUMIF(SaleInfo!B:B,Dashboard!A52,SaleInfo!C:C))","v":""},{"$f":"_xlfn.IFNA(VLOOKUP(A52,JSESiteQuery!A:M,3,),\"\")","v":""},"","","",""]
[null,{"$f":"_xlfn.IFNA(VLOOKUP(A53,PurchaseInfo!B:H,7,),\"\")","v":""},{"$f":"IF(ISBLANK(A53),\"\",SUMIF(PurchaseInfo!B:B,Dashboard!A53,PurchaseInfo!C:C)-SUMIF(SaleInfo!B:B,Dashboard!A53,SaleInfo!C:C))","v":""},{"$f":"_xlfn.IFNA(VLOOKUP(A53,JSESiteQuery!A:M,3,),\"\")","v":""},"","","",""]
[null,{"$f":"_xlfn.IFNA(VLOOKUP(A54,PurchaseInfo!B:H,7,),\"\")","v":""},{"$f":"IF(ISBLANK(A54),\"\",SUMIF(PurchaseInfo!B:B,Dashboard!A54,PurchaseInfo!C:C)-SUMIF(SaleInfo!B:B,Dashboard!A54,SaleInfo!C:C))","v":""},{"$f":"_xlfn.IFNA(VLOOKUP(A54,JSESiteQuery!A:M,3,),\"\")","v":""},"","","",""]
[null,{"$f":"_xlfn.IFNA(VLOOKUP(A55,PurchaseInfo!B:H,7,),\"\")","v":""},{"$f":"IF(ISBLANK(A55),\"\",SUMIF(PurchaseInfo!B:B,Dashboard!A55,PurchaseInfo!C:C)-SUMIF(SaleInfo!B:B,Dashboard!A55,SaleInfo!C:C))","v":""},{"$f":"_xlfn.IFNA(VLOOKUP(A55,JSESiteQuery!A:M,3,),\"\")","v":""},"","","",""]
[null,{"$f":"_xlfn.IFNA(VLOOKUP(A56,PurchaseInfo!B:H,7,),\"\")","v":""},{"$f":"IF(ISBLANK(A56),\"\",SUMIF(PurchaseInfo!B:B,Dashboard!A56,PurchaseInfo!C:C)-SUMIF(SaleInfo!B:B,Dashboard!A56,SaleInfo!C:C))","v":""},{"$f":"_xlfn.IFNA(VLOOKUP(A56,JSESiteQuery!A:M,3,),\"\")","v":""},"","","",""]
[null,{"$f":"_xlfn.IFNA(VLOOKUP(A57,PurchaseInfo!B:H,7,),\"\")","v":""},{"$f":"IF(ISBLANK(A57),\"\",SUMIF(PurchaseInfo!B:B,Dashboard!A57,PurchaseInfo!C:C)-SUMIF(SaleInfo!B:B,Dashboard!A57,SaleInfo!C:C))","v":""},{"$f":"_xlfn.IFNA(VLOOKUP(A57,JSESiteQuery!A:M,3,),\"\")","v":""},"","","",""]
[null,{"$f":"_xlfn.IFNA(VLOOKUP(A58,PurchaseInfo!B:H,7,),\"\")","v":""},{"$f":"IF(ISBLANK(A58),\"\",SUMIF(PurchaseInfo!B:B,Dashboard!A58,PurchaseInfo!C:C)-SUMIF(SaleInfo!B:B,Dashboard!A58,SaleInfo!C:C))","v":""},{"$f":"_xlfn.IFNA(VLOOKUP(A58,JSESiteQuery!A:M,3,),\"\")","v":""},"","","",""]
[null,{"$f":"_xlfn.IFNA(VLOOKUP(A59,PurchaseInfo!B:H,7,),\"\")","v":""},{"$f":"IF(ISBLANK(A59),\"\",SUMIF(PurchaseInfo!B:B,Dashboard!A59,PurchaseInfo!C:C)-SUMIF(SaleInfo!B:B,Dashboard!A59,SaleInfo!C:C))","v":""},{"$f":"_xlfn.IFNA(VLOOKUP(A59,JSESiteQuery!A:M,3,),\"\")","v":""},"","","",""]
[null,{"$f":"_xlfn.IFNA(VLOOKUP(A60,PurchaseInfo!B:H,7,),\"\")","v":""},{"$f":"IF(ISBLANK(A60),\"\",SUMIF(PurchaseInfo!B:B,Dashboard!A60,PurchaseInfo!C:C)-SUMIF(SaleInfo!B:B,Dashboard!A60,SaleInfo!C:C))","v":""},{"$f":"_xlfn.IFNA(VLOOKUP(A60,JSESiteQuery!A:M,3,),\"\")","v":""},"","","",""]
[null,{"$f":"_xlfn.IFNA(VLOOKUP(A61,PurchaseInfo!B:H,7,),\"\")","v":""},{"$f":"IF(ISBLANK(A61),\"\",SUMIF(PurchaseInfo!B:B,Dashboard!A61,PurchaseInfo!C:C)-SUMIF(SaleInfo!B:B,Dashboard!A61,SaleInfo!C:C))","v":""},{"$f":"_xlfn.IFNA(VLOOKUP(A61,JSESiteQuery!A:M,3,),\"\")","v":""},"","","",""]
[null,{"$f":"_xlfn.IFNA(VLOOKUP(A62,PurchaseInfo!B:H,7,),\"\")","v":""},{"$f":"IF(ISBLANK(A62),\"\",SUMIF(PurchaseInfo!B:B,Dashboard!A62,PurchaseInfo!C:C)-SUMIF(SaleInfo!B:B,Dashboard!A62,SaleInfo!C:C))","v":""},{"$f":"_xlfn.IFNA(VLOOKUP(A62,JSESiteQuery!A:M,3,),\"\")","v":""},"","","",""]
[null,{"$f":"_xlfn.IFNA(VLOOKUP(A63,PurchaseInfo!B:H,7,),\"\")","v":""},{"$f":"IF(ISBLANK(A63),\"\",SUMIF(PurchaseInfo!B:B,Dashboard!A63,PurchaseInfo!C:C)-SUMIF(SaleInfo!B:B,Dashboard!A63,SaleInfo!C:C))","v":""},{"$f":"_xlfn.IFNA(VLOOKUP(A63,JSESiteQuery!A:M,3,),\"\")","v":""},"","","",""]
[null,{"$f":"_xlfn.IFNA(VLOOKUP(A64,PurchaseInfo!B:H,7,),\"\")","v":""},{"$f":"IF(ISBLANK(A64),\"\",SUMIF(PurchaseInfo!B:B,Dashboard!A64,PurchaseInfo!C:C)-SUMIF(SaleInfo!B:B,Dashboard!A64,SaleInfo!C:C))","v":""},{"$f":"_xlfn.IFNA(VLOOKUP(A64,JSESiteQuery!A:M,3,),\"\")","v":""},"","","",""]
[null,{"$f":"_xlfn.IFNA(VLOOKUP(A65,PurchaseInfo!B:H,7,),\"\")","v":""},{"$f":"IF(ISBLANK(A65),\"\",SUMIF(PurchaseInfo!B:B,Dashboard!A65,PurchaseInfo!C:C)-SUMIF(SaleInfo!B:B,Dashboard!A65,SaleInfo!C:C))","v":""},{"$f":"_xlfn.IFNA(VLOOKUP(A65,JSESiteQuery!A:M,3,),\"\")","v":""},"","","",""]
[null,{"$f":"_xlfn.IFNA(VLOOKUP(A66,PurchaseInfo!B:H,7,),\"\")","v":""},{"$f":"IF(ISBLANK(A66),\"\",SUMIF(PurchaseInfo!B:B,Dashboard!A66,PurchaseInfo!C:C)-SUMIF(SaleInfo!B:B,Dashboard!A66,SaleInfo!C:C))","v":""},{"$f":"_xlfn.IFNA(VLOOKUP(A66,JSESiteQuery!A:M,3,),\"\")","v":""},"","","",""]
[null,{"$f":"_xlfn.IFNA(VLOOKUP(A67,PurchaseInfo!B:H,7,),\"\")","v":""},{"$f":"IF(ISBLANK(A67),\"\",SUMIF(PurchaseInfo!B:B,Dashboard!A67,PurchaseInfo!C:C)-SUMIF(SaleInfo!B:B,Dashboard!A67,SaleInfo!C:C))","v":""},{"$f":"_xlfn.IFNA(VLOOKUP(A67,JSESiteQuery!A:M,3,),\"\")","v":""},"","","",""]
[null,{"$f":"_xlfn.IFNA(VLOOKUP(A68,PurchaseInfo!B:H,7,),\"\")","v":""},{"$f":"IF(ISBLANK(A68),\"\",SUMIF(PurchaseInfo!B:B,Dashboard!A68,PurchaseInfo!C:C)-SUMIF(SaleInfo!B:B,Dashboard!A68,SaleInfo!C:C))","v":""},{"$f":"_xlfn.IFNA(VLOOKUP(A68,JSESiteQuery!A:M,3,),\"\")","v":""},"","","",""]
[null,{"$f":"_xlfn.IFNA(VLOOKUP(A69,PurchaseInfo!B:H,7,),\"\")","v":""},{"$f":"IF(ISBLANK(A69),\"\",SUMIF(PurchaseInfo!B:B,Dashboard!A69,PurchaseInfo!C:C)-SUMIF(SaleInfo!B:B,Dashboard!A69,SaleInfo!C:C))","v":""},{"$f":"_xlfn.IFNA(VLOOKUP(A69,JSESiteQuery!A:M,3,),\"\")","v":""},"","","",""]
[null,{"$f":"_xlfn.IFNA(VLOOKUP(A70,PurchaseInfo!B:H,7,),\"\")","v":""},{"$f":"IF(ISBLANK(A70),\"\",SUMIF(PurchaseInfo!B:B,Dashboard!A70,PurchaseInfo!C:C)-SUMIF(SaleInfo!B:B,Dashboard!A70,SaleInfo!C:C))","v":""},{"$f":"_xlfn.IFNA(VLOOKUP(A70,JSESiteQuery!A:M,3,),\"\")","v":""},"","","",""]
[null,{"$f":"_xlfn.IFNA(VLOOKUP(A71,PurchaseInfo!B:H,7,),\"\")","v":""},{"$f":"IF(ISBLANK(A71),\"\",SUMIF(PurchaseInfo!B:B,Dashboard!A71,PurchaseInfo!C:C)-SUMIF(SaleInfo!B:B,Dashboard!A71,SaleInfo!C:C))","v":""},{"$f":"_xlfn.IFNA(VLOOKUP(A71,JSESiteQuery!A:M,3,),\"\")","v":""},"","","",""]
[null,{"$f":"_xlfn.IFNA(VLOOKUP(A72,PurchaseInfo!B:H,7,),\"\")","v":""},{"$f":"IF(ISBLANK(A72),\"\",SUMIF(PurchaseInfo!B:B,Dashboard!A72,PurchaseInfo!C:C)-SUMIF(SaleInfo!B:B,Dashboard!A72,SaleInfo!C:C))","v":""},{"$f":"_xlfn.IFNA(VLOOKUP(A72,JSESiteQuery!A:M,3,),\"\")","v":""},"","","",""]
[null,{"$f":"_xlfn.IFNA(VLOOKUP(A73,PurchaseInfo!B:H,7,),\"\")","v":""},{"$f":"IF(ISBLANK(A73),\"\",SUMIF(PurchaseInfo!B:B,Dashboard!A73,PurchaseInfo!C:C)-SUMIF(SaleInfo!B:B,Dashboard!A73,SaleInfo!C:C))","v":""},{"$f":"_xlfn.IFNA(VLOOKUP(A73,JSESiteQuery!A:M,3,),\"\")","v":""},"","","",""]
[null,{"$f":"_xlfn.IFNA(VLOOKUP(A74,PurchaseInfo!B:H,7,),\"\")","v":""},{"$f":"IF(ISBLANK(A74),\"\",SUMIF(PurchaseInfo!B:B,Dashboard!A74,PurchaseInfo!C:C)-SUMIF(SaleInfo!B:B,Dashboard!A74,SaleInfo!C:C))","v":""},{"$f":"_xlfn.IFNA(VLOOKUP(A74,JSESiteQuery!A:M,3,),\"\")","v":""},"","","",""]
[null,{"$f":"_xlfn.IFNA(VLOOKUP(A75,PurchaseInfo!B:H,7,),\"\")","v":""},{"$f":"IF(ISBLANK(A75),\"\",SUMIF(PurchaseInfo!B:B,Dashboard!A75,PurchaseInfo!C:C)-SUMIF(SaleInfo!B:B,Dashboard!A75,SaleInfo!C:C))","v":""},{"$f":"_xlfn.IFNA(VLOOKUP(A75,JSESiteQuery!A:M,3,),\"\")","v":""},"","","",""]
[null,{"$f":"_xlfn.IFNA(VLOOKUP(A76,PurchaseInfo!B:H,7,),\"\")","v":""},{"$f":"IF(ISBLANK(A76),\"\",SUMIF(PurchaseInfo!B:B,Dashboard!A76,PurchaseInfo!C:C)-SUMIF(SaleInfo!B:B,Dashboard!A76,SaleInfo!C:C))","v":""},{"$f":"_xlfn.IFNA(VLOOKUP(A76,JSESiteQuery!A:M,3,),\"\")","v":""},"","","",""]
[null,{"$f":"_xlfn.IFNA(VLOOKUP(A77,PurchaseInfo!B:H,7,),\"\")","v":""},{"$f":"IF(ISBLANK(A77),\"\",SUMIF(PurchaseInfo!B:B,Dashboard!A77,PurchaseInfo!C:C)-SUMIF(SaleInfo!B:B,Dashboard!A77,SaleInfo!C:C))","v":""},{"$f":"_xlfn.IFNA(VLOOKUP(A77,JSESiteQuery!A:M,3,),\"\")","v":""},"","","",""]
[null,{"$f":"_xlfn.IFNA(VLOOKUP(A78,PurchaseInfo!B:H,7,),\"\")","v":""},{"$f":"IF(ISBLANK(A78),\"\",SUMIF(PurchaseInfo!B:B,Dashboard!A78,PurchaseInfo!C:C)-SUMIF(SaleInfo!B:B,Dashboard!A78,SaleInfo!C:C))","v":""},{"$f":"_xlfn.IFNA(VLOOKUP(A78,JSESiteQuery!A:M,3,),\"\")","v":""},"","","",""]
[null,{"$f":"_xlfn.IFNA(VLOOKUP(A79,PurchaseInfo!B:H,7,),\"\")","v":""},{"$f":"IF(ISBLANK(A79),\"\",SUMIF(PurchaseInfo!B:B,Dashboard!A79,PurchaseInfo!C:C)-SUMIF(SaleInfo!B:B,Dashboard!A79,SaleInfo!C:C))","v":""},{"$f":"_xlfn.IFNA(VLOOKUP(A79,JSESiteQuery!A:M,3,),\"\")","v":""},"","","",""]
[null,{"$f":"_xlfn.IFNA(VLOOKUP(A80,PurchaseInfo!B:H,7,),\"\")","v":""},{"$f":"IF(ISBLANK(A80),\"\",SUMIF(PurchaseInfo!B:B,Dashboard!A80,PurchaseInfo!C:C)-SUMIF(SaleInfo!B:B,Dashboard!A80,SaleInfo!C:C))","v":""},{"$f":"_xlfn.IFNA(VLOOKUP(A80,JSESiteQuery!A:M,3,),\"\")","v":""},"","","",""]
[null,{"$f":"_xlfn.IFNA(VLOOKUP(A81,PurchaseInfo!B:H,7,),\"\")","v":""},{"$f":"IF(ISBLANK(A81),\"\",SUMIF(PurchaseInfo!B:B,Dashboard!A81,PurchaseInfo!C:C)-SUMIF(SaleInfo!B:B,Dashboard!A81,SaleInfo!C:C))","v":""},{"$f":"_xlfn.IFNA(VLOOKUP(A81,JSESiteQuery!A:M,3,),\"\")","v":""},"","","",""]
[null,{"$f":"_xlfn.IFNA(VLOOKUP(A82,PurchaseInfo!B:H,7,),\"\")","v":""},{"$f":"IF(ISBLANK(A82),\"\",SUMIF(PurchaseInfo!B:B,Dashboard!A82,PurchaseInfo!C:C)-SUMIF(SaleInfo!B:B,Dashboard!A82,SaleInfo!C:C))","v":""},{"$f":"_xlfn.IFNA(VLOOKUP(A82,JSESiteQuery!A:M,3,),\"\")","v":""},"","","",""]
[null,{"$f":"_xlfn.IFNA(VLOOKUP(A83,PurchaseInfo!B:H,7,),\"\")","v":""},{"$f":"IF(ISBLANK(A83),\"\",SUMIF(PurchaseInfo!B:B,Dashboard!A83,PurchaseInfo!C:C)-SUMIF(SaleInfo!B:B,Dashboard!A83,SaleInfo!C:C))","v":""},{"$f":"_xlfn.IFNA(VLOOKUP(A83,JSESiteQuery!A:M,3,),\"\")","v":""},"","","",""]
[null,{"$f":"_xlfn.IFNA(VLOOKUP(A84,PurchaseInfo!B:H,7,),\"\")","v":""},{"$f":"IF(ISBLANK(A84),\"\",SUMIF(PurchaseInfo!B:B,Dashboard!A84,PurchaseInfo!C:C)-SUMIF(SaleInfo!B:B,Dashboard!A84,SaleInfo!C:C))","v":""},{"$f":"_xlfn.IFNA(VLOOKUP(A84,JSESiteQuery!A:M,3,),\"\")","v":""},"","","",""]
[null,{"$f":"_xlfn.IFNA(VLOOKUP(A85,PurchaseInfo!B:H,7,),\"\")","v":""},{"$f":"IF(ISBLANK(A85),\"\",SUMIF(PurchaseInfo!B:B,Dashboard!A85,PurchaseInfo!C:C)-SUMIF(SaleInfo!B:B,Dashboard!A85,SaleInfo!C:C))","v":""},{"$f":"_xlfn.IFNA(VLOOKUP(A85,JSESiteQuery!A:M,3,),\"\")","v":""},{"$f":"IF(ISBLANK(A85),\"\",(B85*C85))","v":""},{"$f":"IFERROR(D85*C85,\"\")","v":""},{"$f":"IFERROR(F85-E85,\"\")","v":""},{"$f":"IFERROR((F85/E85)-1,\"\")","v":""}]
[null,{"$f":"_xlfn.IFNA(VLOOKUP(A86,PurchaseInfo!B:H,7,),\"\")","v":""},{"$f":"IF(ISBLANK(A86),\"\",SUMIF(PurchaseInfo!B:B,Dashboard!A86,PurchaseInfo!C:C)-SUMIF(SaleInfo!B:B,Dashboard!A86,SaleInfo!C:C))","v":""},{"$f":"_xlfn.IFNA(VLOOKUP(A86,JSESiteQuery!A:M,3,),\"\")","v":""},"","","",""]
[null,{"$f":"_xlfn.IFNA(VLOOKUP(A87,PurchaseInfo!B:H,7,),\"\")","v":""},{"$f":"IF(ISBLANK(A87),\"\",SUMIF(PurchaseInfo!B:B,Dashboard!A87,PurchaseInfo!C:C)-SUMIF(SaleInfo!B:B,Dashboard!A87,SaleInfo!C:C))","v":""},{"$f":"_xlfn.IFNA(VLOOKUP(A87,JSESiteQuery!A:M,3,),\"\")","v":""},"","","",""]
[null,{"$f":"_xlfn.IFNA(VLOOKUP(A88,PurchaseInfo!B:H,7,),\"\")","v":""},{"$f":"IF(ISBLANK(A88),\"\",SUMIF(PurchaseInfo!B:B,Dashboard!A88,PurchaseInfo!C:C)-SUMIF(SaleInfo!B:B,Dashboard!A88,SaleInfo!C:C))","v":""},{"$f":"_xlfn.IFNA(VLOOKUP(A88,JSESiteQuery!A:M,3,),\"\")","v":""},"","","",""]
[null,{"$f":"_xlfn.IFNA(VLOOKUP(A89,PurchaseInfo!B:H,7,),\"\")","v":""},{"$f":"IF(ISBLANK(A89),\"\",SUMIF(PurchaseInfo!B:B,Dashboard!A89,PurchaseInfo!C:C)-SUMIF(SaleInfo!B:B,Dashboard!A89,SaleInfo!C:C))","v":""},{"$f":"_xlfn.IFNA(VLOOKUP(A89,JSESiteQuery!A:M,3,),\"\")","v":""},"","","",""]
[null,{"$f":"_xlfn.IFNA(VLOOKUP(A90,PurchaseInfo!B:H,7,),\"\")","v":""},{"$f":"IF(ISBLANK(A90),\"\",SUMIF(PurchaseInfo!B:B,Dashboard!A90,PurchaseInfo!C:C)-SUMIF(SaleInfo!B:B,Dashboard!A90,SaleInfo!C:C))","v":""},{"$f":"_xlfn.IFNA(VLOOKUP(A90,JSESiteQuery!A:M,3,),\"\")","v":""},"","","",""]
[null,{"$f":"_xlfn.IFNA(VLOOKUP(A91,PurchaseInfo!B:H,7,),\"\")","v":""},{"$f":"IF(ISBLANK(A91),\"\",SUMIF(PurchaseInfo!B:B,Dashboard!A91,PurchaseInfo!C:C)-SUMIF(SaleInfo!B:B,Dashboard!A91,SaleInfo!C:C))","v":""},{"$f":"_xlfn.IFNA(VLOOKUP(A91,JSESiteQuery!A:M,3,),\"\")","v":""},"","","",""]
[null,{"$f":"_xlfn.IFNA(VLOOKUP(A92,PurchaseInfo!B:H,7,),\"\")","v":""},{"$f":"IF(ISBLANK(A92),\"\",SUMIF(PurchaseInfo!B:B,Dashboard!A92,PurchaseInfo!C:C)-SUMIF(SaleInfo!B:B,Dashboard!A92,SaleInfo!C:C))","v":""},{"$f":"_xlfn.IFNA(VLOOKUP(A92,JSESiteQuery!A:M,3,),\"\")","v":""},"","","",""]
[null,{"$f":"_xlfn.IFNA(VLOOKUP(A93,PurchaseInfo!B:H,7,),\"\")","v":""},{"$f":"IF(ISBLANK(A93),\"\",SUMIF(PurchaseInfo!B:B,Dashboard!A93,PurchaseInfo!C:C)-SUMIF(SaleInfo!B:B,Dashboard!A93,SaleInfo!C:C))","v":""},{"$f":"_xlfn.IFNA(VLOOKUP(A93,JSESiteQuery!A:M,3,),\"\")","v":""},"","","",""]
[null,{"$f":"_xlfn.IFNA(VLOOKUP(A94,PurchaseInfo!B:H,7,),\"\")","v":""},{"$f":"IF(ISBLANK(A94),\"\",SUMIF(PurchaseInfo!B:B,Dashboard!A94,PurchaseInfo!C:C)-SUMIF(SaleInfo!B:B,Dashboard!A94,SaleInfo!C:C))","v":""},{"$f":"_xlfn.IFNA(VLOOKUP(A94,JSESiteQuery!A:M,3,),\"\")","v":""},"","","",""]
[null,{"$f":"_xlfn.IFNA(VLOOKUP(A95,PurchaseInfo!B:H,7,),\"\")","v":""},{"$f":"IF(ISBLANK(A95),\"\",SUMIF(PurchaseInfo!B:B,Dashboard!A95,PurchaseInfo!C:C)-SUMIF(SaleInfo!B:B,Dashboard!A95,SaleInfo!C:C))","v":""},{"$f":"_xlfn.IFNA(VLOOKUP(A95,JSESiteQuery!A:M,3,),\"\")","v":""},"","","",""]
[null,{"$f":"_xlfn.IFNA(VLOOKUP(A96,PurchaseInfo!B:H,7,),\"\")","v":""},{"$f":"IF(ISBLANK(A96),\"\",SUMIF(PurchaseInfo!B:B,Dashboard!A96,PurchaseInfo!C:C)-SUMIF(SaleInfo!B:B,Dashboard!A96,SaleInfo!C:C))","v":""},{"$f":"_xlfn.IFNA(VLOOKUP(A96,JSESiteQuery!A:M,3,),\"\")","v":""},"","","",""]
[null,{"$f":"_xlfn.IFNA(VLOOKUP(A97,PurchaseInfo!B:H,7,),\"\")","v":""},{"$f":"IF(ISBLANK(A97),\"\",SUMIF(PurchaseInfo!B:B,Dashboard!A97,PurchaseInfo!C:C)-SUMIF(SaleInfo!B:B,Dashboard!A97,SaleInfo!C:C))","v":""},{"$f":"_xlfn.IFNA(VLOOKUP(A97,JSESiteQuery!A:M,3,),\"\")","v":""},"","","",""]
[null,{"$f":"_xlfn.IFNA(VLOOKUP(A98,PurchaseInfo!B:H,7,),\"\")","v":""},{"$f":"IF(ISBLANK(A98),\"\",SUMIF(PurchaseInfo!B:B,Dashboard!A98,PurchaseInfo!C:C)-SUMIF(SaleInfo!B:B,Dashboard!A98,SaleInfo!C:C))","v":""},{"$f":"_xlfn.IFNA(VLOOKUP(A98,JSESiteQuery!A:M,3,),\"\")","v":""},"","","",""]
[null,{"$f":"_xlfn.IFNA(VLOOKUP(A99,PurchaseInfo!B:H,7,),\"\")","v":""},{"$f":"IF(ISBLANK(A99),\"\",SUMIF(PurchaseInfo!B:B,Dashboard!A99,PurchaseInfo!C:C)-SUMIF(SaleInfo!B:B,Dashboard!A99,SaleInfo!C:C))","v":""},{"$f":"_xlfn.IFNA(VLOOKUP(A99,JSESiteQuery!A:M,3,),\"\")","v":""},"","","",""]
[null,{"$f":"_xlfn.IFNA(VLOOKUP(A100,PurchaseInfo!B:H,7,),\"\")","v":""},{"$f":"IF(ISBLANK(A100),\"\",SUMIF(PurchaseInfo!B:B,Dashboard!A100,PurchaseInfo!C:C)-SUMIF(SaleInfo!B:B,Dashboard!A100,SaleInfo!C:C))","v":""},{"$f":"_xlfn.IFNA(VLOOKUP(A100,JSESiteQuery!A:M,3,),\"\")","v":""},{"$f":"IF(ISBLANK(A100),\"\",(B100*C100))","v":""},{"$f":"IFERROR(D100*C100,\"\")","v":""},{"$f":"IFERROR(F100-E100,\"\")","v":""},{"$f":"IFERROR((F100/E100)-1,\"\")","v":""}]

{"sheet":"PurchaseInfo","index":1,"n_rows":1002,"n_cols":8,"rows_kept":1002,"cut":false,"hidden":false,"merged":[[0,3,0,4]]}
["Purchase Info",null,null,"Only enter shares bought, not sold.\n(Enter Volume Bought and Amount Spent)"]
["Date","Stock","Volume Bought","Amount Spent","Purchase Cost","Notes",null,"Avg. Cost"]
["2019-05-01","WIG (JMD)",198000,110000,{"$f":"IFERROR(D3/C3,\"\")","v":0.55555555555555558},null,null,{"$f":"IFERROR(SUMIF(B:B,B3,D:D)/SUMIF(B:B,B3,C:C),\"\")","v":0.55555555555555558}]
["2019-07-17","LAB (JMD)",22638,22801.1,1.0072047000618429,null,null,{"$f":"IFERROR(SUMIF(B:B,B4,D:D)/SUMIF(B:B,B4,C:C),\"\")","v":1.7236251868487114}]
["2019-07-30","LAB (JMD)",257000,459190,1.7867315175097276,null,null,{"$f":"IFERROR(SUMIF(B:B,B5,D:D)/SUMIF(B:B,B5,C:C),\"\")","v":1.7236251868487114}]
["2017-11-02","NCBFG (JMD)",15472,948433.6,61.3,null,null,{"$f":"IFERROR(SUMIF(B:B,B6,D:D)/SUMIF(B:B,B6,C:C),\"\")","v":61.3}]
["2018-12-11","SCIJMD (JMD)",52000,540000,10.384615384615385,null,null,{"$f":"IFERROR(SUMIF(B:B,B7,D:D)/SUMIF(B:B,B7,C:C),\"\")","v":10.384615384615385}]
[null,null,null,null,"",null,null,{"$f":"IFERROR(SUMIF(B:B,B8,D:D)/SUMIF(B:B,B8,C:C),\"\")","v":""}]
[null,null,null,null,"",null,null,{"$f":"IFERROR(SUMIF(B:B,B9,D:D)/SUMIF(B:B,B9,C:C),\"\")","v":""}]
[null,null,null,null,"",null,null,{"$f":"IFERROR(SUMIF(B:B,B10,D:D)/SUMIF(B:B,B10,C:C),\"\")","v":""}]
[null,null,null,null,"",null,null,{"$f":"IFERROR(SUMIF(B:B,B11,D:D)/SUMIF(B:B,B11,C:C),\"\")","v":""}]
[null,null,null,null,"",null,null,{"$f":"IFERROR(SUMIF(B:B,B12,D:D)/SUMIF(B:B,B12,C:C),\"\")","v":""}]
[null,null,null,null,"",null,null,{"$f":"IFERROR(SUMIF(B:B,B13,D:D)/SUMIF(B:B,B13,C:C),\"\")","v":""}]
[null,null,null,null,"",null,null,{"$f":"IFERROR(SUMIF(B:B,B14,D:D)/SUMIF(B:B,B14,C:C),\"\")","v":""}]
[null,null,null,null,"",null,null,{"$f":"IFERROR(SUMIF(B:B,B15,D:D)/SUMIF(B:B,B15,C:C),\"\")","v":""}]
[null,null,null,null,"",null,null,{"$f":"IFERROR(SUMIF(B:B,B16,D:D)/SUMIF(B:B,B16,C:C),\"\")","v":""}]
[null,null,null,null,"",null,null,{"$f":"IFERROR(SUMIF(B:B,B17,D:D)/SUMIF(B:B,B17,C:C),\"\")","v":""}]
[null,null,null,null,"",null,null,{"$f":"IFERROR(SUMIF(B:B,B18,D:D)/SUMIF(B:B,B18,C:C),\"\")","v":""}]
[null,null,null,null,"",null,null,{"$f":"IFERROR(SUMIF(B:B,B19,D:D)/SUMIF(B:B,B19,C:C),\"\")","v":""}]
[null,null,null,null,"",null,null,{"$f":"IFERROR(SUMIF(B:B,B20,D:D)/SUMIF(B:B,B20,C:C),\"\")","v":""}]
[null,null,null,null,"",null,null,{"$f":"IFERROR(SUMIF(B:B,B21,D:D)/SUMIF(B:B,B21,C:C),\"\")","v":""}]
[null,null,null,null,"",null,null,{"$f":"IFERROR(SUMIF(B:B,B22,D:D)/SUMIF(B:B,B22,C:C),\"\")","v":""}]
[null,null,null,null,"",null,null,{"$f":"IFERROR(SUMIF(B:B,B23,D:D)/SUMIF(B:B,B23,C:C),\"\")","v":""}]
[null,null,null,null,"",null,null,{"$f":"IFERROR(SUMIF(B:B,B24,D:D)/SUMIF(B:B,B24,C:C),\"\")","v":""}]
[null,null,null,null,"",null,null,{"$f":"IFERROR(SUMIF(B:B,B25,D:D)/SUMIF(B:B,B25,C:C),\"\")","v":""}]
[null,null,null,null,"",null,null,{"$f":"IFERROR(SUMIF(B:B,B26,D:D)/SUMIF(B:B,B26,C:C),\"\")","v":""}]
[null,null,null,null,"",null,null,{"$f":"IFERROR(SUMIF(B:B,B27,D:D)/SUMIF(B:B,B27,C:C),\"\")","v":""}]
[null,null,null,null,"",null,null,{"$f":"IFERROR(SUMIF(B:B,B28,D:D)/SUMIF(B:B,B28,C:C),\"\")","v":""}]
[null,null,null,null,"",null,null,{"$f":"IFERROR(SUMIF(B:B,B29,D:D)/SUMIF(B:B,B29,C:C),\"\")","v":""}]
[null,null,null,null,"",null,null,{"$f":"IFERROR(SUMIF(B:B,B30,D:D)/SUMIF(B:B,B30,C:C),\"\")","v":""}]
[null,null,null,null,"",null,null,{"$f":"IFERROR(SUMIF(B:B,B31,D:D)/SUMIF(B:B,B31,C:C),\"\")","v":""}]
[null,null,null,null,"",null,null,{"$f":"IFERROR(SUMIF(B:B,B32,D:D)/SUMIF(B:B,B32,C:C),\"\")","v":""}]
[null,null,null,null,"",null,null,{"$f":"IFERROR(SUMIF(B:B,B33,D:D)/SUMIF(B:B,B33,C:C),\"\")","v":""}]
[null,null,null,null,"",null,null,{"$f":"IFERROR(SUMIF(B:B,B34,D:D)/SUMIF(B:B,B34,C:C),\"\")","v":""}]
[null,null,null,null,"",null,null,{"$f":"IFERROR(SUMIF(B:B,B35,D:D)/SUMIF(B:B,B35,C:C),\"\")","v":""}]
[null,null,null,null,"",null,null,{"$f":"IFERROR(SUMIF(B:B,B36,D:D)/SUMIF(B:B,B36,C:C),\"\")","v":""}]
[null,null,null,null,"",null,null,{"$f":"IFERROR(SUMIF(B:B,B37,D:D)/SUMIF(B:B,B37,C:C),\"\")","v":""}]
[null,null,null,null,"",null,null,{"$f":"IFERROR(SUMIF(B:B,B38,D:D)/SUMIF(B:B,B38,C:C),\"\")","v":""}]
[null,null,null,null,"",null,null,{"$f":"IFERROR(SUMIF(B:B,B39,D:D)/SUMIF(B:B,B39,C:C),\"\")","v":""}]
[null,null,null,null,{"$f":"IFERROR(D40/C40,\"\")","v":""},null,null,{"$f":"IFERROR(SUMIF(B:B,B40,D:D)/SUMIF(B:B,B40,C:C),\"\")","v":""}]
[null,null,null,null,"",null,null,{"$f":"IFERROR(SUMIF(B:B,B41,D:D)/SUMIF(B:B,B41,C:C),\"\")","v":""}]
[null,null,null,null,"",null,null,{"$f":"IFERROR(SUMIF(B:B,B42,D:D)/SUMIF(B:B,B42,C:C),\"\")","v":""}]
[null,null,null,null,"",null,null,{"$f":"IFERROR(SUMIF(B:B,B43,D:D)/SUMIF(B:B,B43,C:C),\"\")","v":""}]
[null,null,null,null,"",null,null,{"$f":"IFERROR(SUMIF(B:B,B44,D:D)/SUMIF(B:B,B44,C:C),\"\")","v":""}]
[null,null,null,null,"",null,null,{"$f":"IFERROR(SUMIF(B:B,B45,D:D)/SUMIF(B:B,B45,C:C),\"\")","v":""}]
[null,null,null,null,"",null,null,{"$f":"IFERROR(SUMIF(B:B,B46,D:D)/SUMIF(B:B,B46,C:C),\"\")","v":""}]
[null,null,null,null,"",null,null,{"$f":"IFERROR(SUMIF(B:B,B47,D:D)/SUMIF(B:B,B47,C:C),\"\")","v":""}]
[null,null,null,null,"",null,null,{"$f":"IFERROR(SUMIF(B:B,B48,D:D)/SUMIF(B:B,B48,C:C),\"\")","v":""}]
[null,null,null,null,"",null,null,{"$f":"IFERROR(SUMIF(B:B,B49,D:D)/SUMIF(B:B,B49,C:C),\"\")","v":""}]
[null,null,null,null,"",null,null,{"$f":"IFERROR(SUMIF(B:B,B50,D:D)/SUMIF(B:B,B50,C:C),\"\")","v":""}]
[null,null,null,null,"",null,null,{"$f":"IFERROR(SUMIF(B:B,B51,D:D)/SUMIF(B:B,B51,C:C),\"\")","v":""}]
[null,null,null,null,"",null,null,{"$f":"IFERROR(SUMIF(B:B,B52,D:D)/SUMIF(B:B,B52,C:C),\"\")","v":""}]
[null,null,null,null,"",null,null,{"$f":"IFERROR(SUMIF(B:B,B53,D:D)/SUMIF(B:B,B53,C:C),\"\")","v":""}]
[null,null,null,null,"",null,null,{"$f":"IFERROR(SUMIF(B:B,B54,D:D)/SUMIF(B:B,B54,C:C),\"\")","v":""}]
[null,null,null,null,"",null,null,{"$f":"IFERROR(SUMIF(B:B,B55,D:D)/SUMIF(B:B,B55,C:C),\"\")","v":""}]
[null,null,null,null,"",null,null,{"$f":"IFERROR(SUMIF(B:B,B56,D:D)/SUMIF(B:B,B56,C:C),\"\")","v":""}]
[null,null,null,null,"",null,null,{"$f":"IFERROR(SUMIF(B:B,B57,D:D)/SUMIF(B:B,B57,C:C),\"\")","v":""}]
[null,null,null,null,"",null,null,{"$f":"IFERROR(SUMIF(B:B,B58,D:D)/SUMIF(B:B,B58,C:C),\"\")","v":""}]
[null,null,null,null,"",null,null,{"$f":"IFERROR(SUMIF(B:B,B59,D:D)/SUMIF(B:B,B59,C:C),\"\")","v":""}]
[null,null,null,null,"",null,null,{"$f":"IFERROR(SUMIF(B:B,B60,D:D)/SUMIF(B:B,B60,C:C),\"\")","v":""}]
[null,null,null,null,"",null,null,{"$f":"IFERROR(SUMIF(B:B,B61,D:D)/SUMIF(B:B,B61,C:C),\"\")","v":""}]
[null,null,null,null,"",null,null,{"$f":"IFERROR(SUMIF(B:B,B62,D:D)/SUMIF(B:B,B62,C:C),\"\")","v":""}]
[null,null,null,null,"",null,null,{"$f":"IFERROR(SUMIF(B:B,B63,D:D)/SUMIF(B:B,B63,C:C),\"\")","v":""}]
[null,null,null,null,{"$f":"IFERROR(D64/C64,\"\")","v":""},null,null,{"$f":"IFERROR(SUMIF(B:B,B64,D:D)/SUMIF(B:B,B64,C:C),\"\")","v":""}]
[null,null,null,null,"",null,null,{"$f":"IFERROR(SUMIF(B:B,B65,D:D)/SUMIF(B:B,B65,C:C),\"\")","v":""}]
[null,null,null,null,"",null,null,{"$f":"IFERROR(SUMIF(B:B,B66,D:D)/SUMIF(B:B,B66,C:C),\"\")","v":""}]
[null,null,null,null,"",null,null,{"$f":"IFERROR(SUMIF(B:B,B67,D:D)/SUMIF(B:B,B67,C:C),\"\")","v":""}]
[null,null,null,null,"",null,null,{"$f":"IFERROR(SUMIF(B:B,B68,D:D)/SUMIF(B:B,B68,C:C),\"\")","v":""}]
[null,null,null,null,"",null,null,{"$f":"IFERROR(SUMIF(B:B,B69,D:D)/SUMIF(B:B,B69,C:C),\"\")","v":""}]
[null,null,null,null,"",null,null,{"$f":"IFERROR(SUMIF(B:B,B70,D:D)/SUMIF(B:B,B70,C:C),\"\")","v":""}]
[null,null,null,null,"",null,null,{"$f":"IFERROR(SUMIF(B:B,B71,D:D)/SUMIF(B:B,B71,C:C),\"\")","v":""}]
[null,null,null,null,"",null,null,{"$f":"IFERROR(SUMIF(B:B,B72,D:D)/SUMIF(B:B,B72,C:C),\"\")","v":""}]
[null,null,null,null,"",null,null,{"$f":"IFERROR(SUMIF(B:B,B73,D:D)/SUMIF(B:B,B73,C:C),\"\")","v":""}]
[null,null,null,null,"",null,null,{"$f":"IFERROR(SUMIF(B:B,B74,D:D)/SUMIF(B:B,B74,C:C),\"\")","v":""}]
[null,null,null,null,"",null,null,{"$f":"IFERROR(SUMIF(B:B,B75,D:D)/SUMIF(B:B,B75,C:C),\"\")","v":""}]
[null,null,null,null,"",null,null,{"$f":"IFERROR(SUMIF(B:B,B76,D:D)/SUMIF(B:B,B76,C:C),\"\")","v":""}]
[null,null,null,null,"",null,null,{"$f":"IFERROR(SUMIF(B:B,B77,D:D)/SUMIF(B:B,B77,C:C),\"\")","v":""}]
[null,null,null,null,"",null,null,{"$f":"IFERROR(SUMIF(B:B,B78,D:D)/SUMIF(B:B,B78,C:C),\"\")","v":""}]
[null,null,null,null,"",null,null,{"$f":"IFERROR(SUMIF(B:B,B79,D:D)/SUMIF(B:B,B79,C:C),\"\")","v":""}]
[null,null,null,null,"",null,null,{"$f":"IFERROR(SUMIF(B:B,B80,D:D)/SUMIF(B:B,B80,C:C),\"\")","v":""}]
[null,null,null,null,"",null,null,{"$f":"IFERROR(SUMIF(B:B,B81,D:D)/SUMIF(B:B,B81,C:C),\"\")","v":""}]
[null,null,null,null,"",null,null,{"$f":"IFERROR(SUMIF(B:B,B82,D:D)/SUMIF(B:B,B82,C:C),\"\")","v":""}]
[null,null,null,null,"",null,null,{"$f":"IFERROR(SUMIF(B:B,B83,D:D)/SUMIF(B:B,B83,C:C),\"\")","v":""}]
[null,null,null,null,"",null,null,{"$f":"IFERROR(SUMIF(B:B,B84,D:D)/SUMIF(B:B,B84,C:C),\"\")","v":""}]
[null,null,null,null,"",null,null,{"$f":"IFERROR(SUMIF(B:B,B85,D:D)/SUMIF(B:B,B85,C:C),\"\")","v":""}]
[null,null,null,null,"",null,null,{"$f":"IFERROR(SUMIF(B:B,B86,D:D)/SUMIF(B:B,B86,C:C),\"\")","v":""}]
[null,null,null,null,"",null,null,{"$f":"IFERROR(SUMIF(B:B,B87,D:D)/SUMIF(B:B,B87,C:C),\"\")","v":""}]
[null,null,null,null,"",null,null,{"$f":"IFERROR(SUMIF(B:B,B88,D:D)/SUMIF(B:B,B88,C:C),\"\")","v":""}]
[null,null,null,null,"",null,null,{"$f":"IFERROR(SUMIF(B:B,B89,D:D)/SUMIF(B:B,B89,C:C),\"\")","v":""}]
[null,null,null,null,"",null,null,{"$f":"IFERROR(SUMIF(B:B,B90,D:D)/SUMIF(B:B,B90,C:C),\"\")","v":""}]
[null,null,null,null,"",null,null,{"$f":"IFERROR(SUMIF(B:B,B91,D:D)/SUMIF(B:B,B91,C:C),\"\")","v":""}]
[null,null,null,null,"",null,null,{"$f":"IFERROR(SUMIF(B:B,B92,D:D)/SUMIF(B:B,B92,C:C),\"\")","v":""}]
[null,null,null,null,"",null,null,{"$f":"IFERROR(SUMIF(B:B,B93,D:D)/SUMIF(B:B,B93,C:C),\"\")","v":""}]
[null,null,null,null,"",null,null,{"$f":"IFERROR(SUMIF(B:B,B94,D:D)/SUMIF(B:B,B94,C:C),\"\")","v":""}]
[null,null,null,null,"",null,null,{"$f":"IFERROR(SUMIF(B:B,B95,D:D)/SUMIF(B:B,B95,C:C),\"\")","v":""}]
[null,null,null,null,"",null,null,{"$f":"IFERROR(SUMIF(B:B,B96,D:D)/SUMIF(B:B,B96,C:C),\"\")","v":""}]
[null,null,null,null,"",null,null,{"$f":"IFERROR(SUMIF(B:B,B97,D:D)/SUMIF(B:B,B97,C:C),\"\")","v":""}]
[null,null,null,null,"",null,null,{"$f":"IFERROR(SUMIF(B:B,B98,D:D)/SUMIF(B:B,B98,C:C),\"\")","v":""}]
[null,null,null,null,"",null,null,{"$f":"IFERROR(SUMIF(B:B,B99,D:D)/SUMIF(B:B,B99,C:C),\"\")","v":""}]
[null,null,null,null,"",null,null,{"$f":"IFERROR(SUMIF(B:B,B100,D:D)/SUMIF(B:B,B100,C:C),\"\")","v":""}]
[null,null,null,null,"",null,null,{"$f":"IFERROR(SUMIF(B:B,B101,D:D)/SUMIF(B:B,B101,C:C),\"\")","v":""}]
[null,null,null,null,"",null,null,{"$f":"IFERROR(SUMIF(B:B,B102,D:D)/SUMIF(B:B,B102,C:C),\"\")","v":""}]
[null,null,null,null,"",null,null,{"$f":"IFERROR(SUMIF(B:B,B103,D:D)/SUMIF(B:B,B103,C:C),\"\")","v":""}]
[null,null,null,null,"",null,null,{"$f":"IFERROR(SUMIF(B:B,B104,D:D)/SUMIF(B:B,B104,C:C),\"\")","v":""}]
[null,null,null,null,"",null,null,{"$f":"IFERROR(SUMIF(B:B,B105,D:D)/SUMIF(B:B,B105,C:C),\"\")","v":""}]
[null,null,null,null,"",null,null,{"$f":"IFERROR(SUMIF(B:B,B106,D:D)/SUMIF(B:B,B106,C:C),\"\")","v":""}]
[null,null,null,null,"",null,null,{"$f":"IFERROR(SUMIF(B:B,B107,D:D)/SUMIF(B:B,B107,C:C),\"\")","v":""}]
[null,null,null,null,"",null,null,{"$f":"IFERROR(SUMIF(B:B,B108,D:D)/SUMIF(B:B,B108,C:C),\"\")","v":""}]
[null,null,null,null,"",null,null,{"$f":"IFERROR(SUMIF(B:B,B109,D:D)/SUMIF(B:B,B109,C:C),\"\")","v":""}]
[null,null,null,null,"",null,null,{"$f":"IFERROR(SUMIF(B:B,B110,D:D)/SUMIF(B:B,B110,C:C),\"\")","v":""}]
[null,null,null,null,"",null,null,{"$f":"IFERROR(SUMIF(B:B,B111,D:D)/SUMIF(B:B,B111,C:C),\"\")","v":""}]
[null,null,null,null,"",null,null,{"$f":"IFERROR(SUMIF(B:B,B112,D:D)/SUMIF(B:B,B112,C:C),\"\")","v":""}]
[null,null,null,null,"",null,null,{"$f":"IFERROR(SUMIF(B:B,B113,D:D)/SUMIF(B:B,B113,C:C),\"\")","v":""}]
[null,null,null,null,"",null,null,{"$f":"IFERROR(SUMIF(B:B,B114,D:D)/SUMIF(B:B,B114,C:C),\"\")","v":""}]
[null,null,null,null,"",null,null,{"$f":"IFERROR(SUMIF(B:B,B115,D:D)/SUMIF(B:B,B115,C:C),\"\")","v":""}]
[null,null,null,null,"",null,null,{"$f":"IFERROR(SUMIF(B:B,B116,D:D)/SUMIF(B:B,B116,C:C),\"\")","v":""}]
[null,null,null,null,"",null,null,{"$f":"IFERROR(SUMIF(B:B,B117,D:D)/SUMIF(B:B,B117,C:C),\"\")","v":""}]
[null,null,null,null,"",null,null,{"$f":"IFERROR(SUMIF(B:B,B118,D:D)/SUMIF(B:B,B118,C:C),\"\")","v":""}]
[null,null,null,null,"",null,null,{"$f":"IFERROR(SUMIF(B:B,B119,D:D)/SUMIF(B:B,B119,C:C),\"\")","v":""}]
[null,null,null,null,"",null,null,{"$f":"IFERROR(SUMIF(B:B,B120,D:D)/SUMIF(B:B,B120,C:C),\"\")","v":""}]
[null,null,null,null,"",null,null,{"$f":"IFERROR(SUMIF(B:B,B121,D:D)/SUMIF(B:B,B121,C:C),\"\")","v":""}]
[null,null,null,null,"",null,null,{"$f":"IFERROR(SUMIF(B:B,B122,D:D)/SUMIF(B:B,B122,C:C),\"\")","v":""}]
[null,null,null,null,"",null,null,{"$f":"IFERROR(SUMIF(B:B,B123,D:D)/SUMIF(B:B,B123,C:C),\"\")","v":""}]
[null,null,null,null,"",null,null,{"$f":"IFERROR(SUMIF(B:B,B124,D:D)/SUMIF(B:B,B124,C:C),\"\")","v":""}]
[null,null,null,null,"",null,null,{"$f":"IFERROR(SUMIF(B:B,B125,D:D)/SUMIF(B:B,B125,C:C),\"\")","v":""}]
[null,null,null,null,"",null,null,{"$f":"IFERROR(SUMIF(B:B,B126,D:D)/SUMIF(B:B,B126,C:C),\"\")","v":""}]
[null,null,null,null,"",null,null,{"$f":"IFERROR(SUMIF(B:B,B127,D:D)/SUMIF(B:B,B127,C:C),\"\")","v":""}]
[null,null,null,null,{"$f":"IFERROR(D128/C128,\"\")","v":""},null,null,{"$f":"IFERROR(SUMIF(B:B,B128,D:D)/SUMIF(B:B,B128,C:C),\"\")","v":""}]
[null,null,null,null,"",null,null,{"$f":"IFERROR(SUMIF(B:B,B129,D:D)/SUMIF(B:B,B129,C:C),\"\")","v":""}]
[null,null,null,null,"",null,null,{"$f":"IFERROR(SUMIF(B:B,B130,D:D)/SUMIF(B:B,B130,C:C),\"\")","v":""}]
[null,null,null,null,"",null,null,{"$f":"IFERROR(SUMIF(B:B,B131,D:D)/SUMIF(B:B,B131,C:C),\"\")","v":""}]
[null,null,null,null,"",null,null,{"$f":"IFERROR(SUMIF(B:B,B132,D:D)/SUMIF(B:B,B132,C:C),\"\")","v":""}]
[null,null,null,null,"",null,null,{"$f":"IFERROR(SUMIF(B:B,B133,D:D)/SUMIF(B:B,B133,C:C),\"\")","v":""}]
[null,null,null,null,"",null,null,{"$f":"IFERROR(SUMIF(B:B,B134,D:D)/SUMIF(B:B,B134,C:C),\"\")","v":""}]
[null,null,null,null,"",null,null,{"$f":"IFERROR(SUMIF(B:B,B135,D:D)/SUMIF(B:B,B135,C:C),\"\")","v":""}]
[null,null,null,null,"",null,null,{"$f":"IFERROR(SUMIF(B:B,B136,D:D)/SUMIF(B:B,B136,C:C),\"\")","v":""}]
[null,null,null,null,"",null,null,{"$f":"IFERROR(SUMIF(B:B,B137,D:D)/SUMIF(B:B,B137,C:C),\"\")","v":""}]
[null,null,null,null,"",null,null,{"$f":"IFERROR(SUMIF(B:B,B138,D:D)/SUMIF(B:B,B138,C:C),\"\")","v":""}]
[null,null,null,null,"",null,null,{"$f":"IFERROR(SUMIF(B:B,B139,D:D)/SUMIF(B:B,B139,C:C),\"\")","v":""}]
[null,null,null,null,"",null,null,{"$f":"IFERROR(SUMIF(B:B,B140,D:D)/SUMIF(B:B,B140,C:C),\"\")","v":""}]
[null,null,null,null,"",null,null,{"$f":"IFERROR(SUMIF(B:B,B141,D:D)/SUMIF(B:B,B141,C:C),\"\")","v":""}]
[null,null,null,null,"",null,null,{"$f":"IFERROR(SUMIF(B:B,B142,D:D)/SUMIF(B:B,B142,C:C),\"\")","v":""}]
[null,null,null,null,"",null,null,{"$f":"IFERROR(SUMIF(B:B,B143,D:D)/SUMIF(B:B,B143,C:C),\"\")","v":""}]
[null,null,null,null,"",null,null,{"$f":"IFERROR(SUMIF(B:B,B144,D:D)/SUMIF(B:B,B144,C:C),\"\")","v":""}]
[null,null,null,null,"",null,null,{"$f":"IFERROR(SUMIF(B:B,B145,D:D)/SUMIF(B:B,B145,C:C),\"\")","v":""}]
[null,null,null,null,"",null,null,{"$f":"IFERROR(SUMIF(B:B,B146,D:D)/SUMIF(B:B,B146,C:C),\"\")","v":""}]
[null,null,null,null,"",null,null,{"$f":"IFERROR(SUMIF(B:B,B147,D:D)/SUMIF(B:B,B147,C:C),\"\")","v":""}]
[null,null,null,null,"",null,null,{"$f":"IFERROR(SUMIF(B:B,B148,D:D)/SUMIF(B:B,B148,C:C),\"\")","v":""}]
[null,null,null,null,"",null,null,{"$f":"IFERROR(SUMIF(B:B,B149,D:D)/SUMIF(B:B,B149,C:C),\"\")","v":""}]
[null,null,null,null,"",null,null,{"$f":"IFERROR(SUMIF(B:B,B150,D:D)/SUMIF(B:B,B150,C:C),\"\")","v":""}]
[null,null,null,null,"",null,null,{"$f":"IFERROR(SUMIF(B:B,B151,D:D)/SUMIF(B:B,B151,C:C),\"\")","v":""}]
[null,null,null,null,"",null,null,{"$f":"IFERROR(SUMIF(B:B,B152,D:D)/SUMIF(B:B,B152,C:C),\"\")","v":""}]
[null,null,null,null,"",null,null,{"$f":"IFERROR(SUMIF(B:B,B153,D:D)/SUMIF(B:B,B153,C:C),\"\")","v":""}]
[null,null,null,null,"",null,null,{"$f":"IFERROR(SUMIF(B:B,B154,D:D)/SUMIF(B:B,B154,C:C),\"\")","v":""}]
[null,null,null,null,"",null,null,{"$f":"IFERROR(SUMIF(B:B,B155,D:D)/SUMIF(B:B,B155,C:C),\"\")","v":""}]
[null,null,null,null,"",null,null,{"$f":"IFERROR(SUMIF(B:B,B156,D:D)/SUMIF(B:B,B156,C:C),\"\")","v":""}]
[null,null,null,null,"",null,null,{"$f":"IFERROR(SUMIF(B:B,B157,D:D)/SUMIF(B:B,B157,C:C),\"\")","v":""}]
[null,null,null,null,"",null,null,{"$f":"IFERROR(SUMIF(B:B,B158,D:D)/SUMIF(B:B,B158,C:C),\"\")","v":""}]
[null,null,null,null,"",null,null,{"$f":"IFERROR(SUMIF(B:B,B159,D:D)/SUMIF(B:B,B159,C:C),\"\")","v":""}]
[null,null,null,null,"",null,null,{"$f":"IFERROR(SUMIF(B:B,B160,D:D)/SUMIF(B:B,B160,C:C),\"\")","v":""}]
[null,null,null,null,"",null,null,{"$f":"IFERROR(SUMIF(B:B,B161,D:D)/SUMIF(B:B,B161,C:C),\"\")","v":""}]
[null,null,null,null,"",null,null,{"$f":"IFERROR(SUMIF(B:B,B162,D:D)/SUMIF(B:B,B162,C:C),\"\")","v":""}]
[null,null,null,null,"",null,null,{"$f":"IFERROR(SUMIF(B:B,B163,D:D)/SUMIF(B:B,B163,C:C),\"\")","v":""}]
[null,null,null,null,"",null,null,{"$f":"IFERROR(SUMIF(B:B,B164,D:D)/SUMIF(B:B,B164,C:C),\"\")","v":""}]
[null,null,null,null,"",null,null,{"$f":"IFERROR(SUMIF(B:B,B165,D:D)/SUMIF(B:B,B165,C:C),\"\")","v":""}]
[null,null,null,null,"",null,null,{"$f":"IFERROR(SUMIF(B:B,B166,D:D)/SUMIF(B:B,B166,C:C),\"\")","v":""}]
[null,null,null,null,"",null,null,{"$f":"IFERROR(SUMIF(B:B,B167,D:D)/SUMIF(B:B,B167,C:C),\"\")","v":""}]
[null,null,null,null,"",null,null,{"$f":"IFERROR(SUMIF(B:B,B168,D:D)/SUMIF(B:B,B168,C:C),\"\")","v":""}]
[null,null,null,null,"",null,null,{"$f":"IFERROR(SUMIF(B:B,B169,D:D)/SUMIF(B:B,B169,C:C),\"\")","v":""}]
[null,null,null,null,"",null,null,{"$f":"IFERROR(SUMIF(B:B,B170,D:D)/SUMIF(B:B,B170,C:C),\"\")","v":""}]
[null,null,null,null,"",null,null,{"$f":"IFERROR(SUMIF(B:B,B171,D:D)/SUMIF(B:B,B171,C:C),\"\")","v":""}]
[null,null,null,null,"",null,null,{"$f":"IFERROR(SUMIF(B:B,B172,D:D)/SUMIF(B:B,B172,C:C),\"\")","v":""}]
[null,null,null,null,"",null,null,{"$f":"IFERROR(SUMIF(B:B,B173,D:D)/SUMIF(B:B,B173,C:C),\"\")","v":""}]
[null,null,null,null,"",null,null,{"$f":"IFERROR(SUMIF(B:B,B174,D:D)/SUMIF(B:B,B174,C:C),\"\")","v":""}]
[null,null,null,null,"",null,null,{"$f":"IFERROR(SUMIF(B:B,B175,D:D)/SUMIF(B:B,B175,C:C),\"\")","v":""}]
[null,null,null,null,"",null,null,{"$f":"IFERROR(SUMIF(B:B,B176,D:D)/SUMIF(B:B,B176,C:C),\"\")","v":""}]
[null,null,null,null,"",null,null,{"$f":"IFERROR(SUMIF(B:B,B177,D:D)/SUMIF(B:B,B177,C:C),\"\")","v":""}]
[null,null,null,null,"",null,null,{"$f":"IFERROR(SUMIF(B:B,B178,D:D)/SUMIF(B:B,B178,C:C),\"\")","v":""}]
[null,null,null,null,"",null,null,{"$f":"IFERROR(SUMIF(B:B,B179,D:D)/SUMIF(B:B,B179,C:C),\"\")","v":""}]
[null,null,null,null,"",null,null,{"$f":"IFERROR(SUMIF(B:B,B180,D:D)/SUMIF(B:B,B180,C:C),\"\")","v":""}]
[null,null,null,null,"",null,null,{"$f":"IFERROR(SUMIF(B:B,B181,D:D)/SUMIF(B:B,B181,C:C),\"\")","v":""}]
[null,null,null,null,"",null,null,{"$f":"IFERROR(SUMIF(B:B,B182,D:D)/SUMIF(B:B,B182,C:C),\"\")","v":""}]
[null,null,null,null,"",null,null,{"$f":"IFERROR(SUMIF(B:B,B183,D:D)/SUMIF(B:B,B183,C:C),\"\")","v":""}]
[null,null,null,null,"",null,null,{"$f":"IFERROR(SUMIF(B:B,B184,D:D)/SUMIF(B:B,B184,C:C),\"\")","v":""}]
[null,null,null,null,"",null,null,{"$f":"IFERROR(SUMIF(B:B,B185,D:D)/SUMIF(B:B,B185,C:C),\"\")","v":""}]
[null,null,null,null,"",null,null,{"$f":"IFERROR(SUMIF(B:B,B186,D:D)/SUMIF(B:B,B186,C:C),\"\")","v":""}]
[null,null,null,null,"",null,null,{"$f":"IFERROR(SUMIF(B:B,B187,D:D)/SUMIF(B:B,B187,C:C),\"\")","v":""}]
[null,null,null,null,"",null,null,{"$f":"IFERROR(SUMIF(B:B,B188,D:D)/SUMIF(B:B,B188,C:C),\"\")","v":""}]
[null,null,null,null,"",null,null,{"$f":"IFERROR(SUMIF(B:B,B189,D:D)/SUMIF(B:B,B189,C:C),\"\")","v":""}]
[null,null,null,null,"",null,null,{"$f":"IFERROR(SUMIF(B:B,B190,D:D)/SUMIF(B:B,B190,C:C),\"\")","v":""}]
[null,null,null,null,"",null,null,{"$f":"IFERROR(SUMIF(B:B,B191,D:D)/SUMIF(B:B,B191,C:C),\"\")","v":""}]
[null,null,null,null,{"$f":"IFERROR(D192/C192,\"\")","v":""},null,null,{"$f":"IFERROR(SUMIF(B:B,B192,D:D)/SUMIF(B:B,B192,C:C),\"\")","v":""}]
[null,null,null,null,"",null,null,{"$f":"IFERROR(SUMIF(B:B,B193,D:D)/SUMIF(B:B,B193,C:C),\"\")","v":""}]
[null,null,null,null,"",null,null,{"$f":"IFERROR(SUMIF(B:B,B194,D:D)/SUMIF(B:B,B194,C:C),\"\")","v":""}]
[null,null,null,null,"",null,null,{"$f":"IFERROR(SUMIF(B:B,B195,D:D)/SUMIF(B:B,B195,C:C),\"\")","v":""}]
[null,null,null,null,"",null,null,{"$f":"IFERROR(SUMIF(B:B,B196,D:D)/SUMIF(B:B,B196,C:C),\"\")","v":""}]
[null,null,null,null,"",null,null,{"$f":"IFERROR(SUMIF(B:B,B197,D:D)/SUMIF(B:B,B197,C:C),\"\")","v":""}]
[null,null,null,null,"",null,null,{"$f":"IFERROR(SUMIF(B:B,B198,D:D)/SUMIF(B:B,B198,C:C),\"\")","v":""}]
[null,null,null,null,"",null,null,{"$f":"IFERROR(SUMIF(B:B,B199,D:D)/SUMIF(B:B,B199,C:C),\"\")","v":""}]
[null,null,null,null,"",null,null,{"$f":"IFERROR(SUMIF(B:B,B200,D:D)/SUMIF(B:B,B200,C:C),\"\")","v":""}]
[null,null,null,null,"",null,null,{"$f":"IFERROR(SUMIF(B:B,B201,D:D)/SUMIF(B:B,B201,C:C),\"\")","v":""}]
[null,null,null,null,"",null,null,{"$f":"IFERROR(SUMIF(B:B,B202,D:D)/SUMIF(B:B,B202,C:C),\"\")","v":""}]
[null,null,null,null,"",null,null,{"$f":"IFERROR(SUMIF(B:B,B203,D:D)/SUMIF(B:B,B203,C:C),\"\")","v":""}]
[null,null,null,null,"",null,null,{"$f":"IFERROR(SUMIF(B:B,B204,D:D)/SUMIF(B:B,B204,C:C),\"\")","v":""}]
[null,null,null,null,"",null,null,{"$f":"IFERROR(SUMIF(B:B,B205,D:D)/SUMIF(B:B,B205,C:C),\"\")","v":""}]
[null,null,null,null,"",null,null,{"$f":"IFERROR(SUMIF(B:B,B206,D:D)/SUMIF(B:B,B206,C:C),\"\")","v":""}]
[null,null,null,null,"",null,null,{"$f":"IFERROR(SUMIF(B:B,B207,D:D)/SUMIF(B:B,B207,C:C),\"\")","v":""}]
[null,null,null,null,"",null,null,{"$f":"IFERROR(SUMIF(B:B,B208,D:D)/SUMIF(B:B,B208,C:C),\"\")","v":""}]
[null,null,null,null,"",null,null,{"$f":"IFERROR(SUMIF(B:B,B209,D:D)/SUMIF(B:B,B209,C:C),\"\")","v":""}]
[null,null,null,null,"",null,null,{"$f":"IFERROR(SUMIF(B:B,B210,D:D)/SUMIF(B:B,B210,C:C),\"\")","v":""}]
[null,null,null,null,"",null,null,{"$f":"IFERROR(SUMIF(B:B,B211,D:D)/SUMIF(B:B,B211,C:C),\"\")","v":""}]
[null,null,null,null,"",null,null,{"$f":"IFERROR(SUMIF(B:B,B212,D:D)/SUMIF(B:B,B212,C:C),\"\")","v":""}]
[null,null,null,null,"",null,null,{"$f":"IFERROR(SUMIF(B:B,B213,D:D)/SUMIF(B:B,B213,C:C),\"\")","v":""}]
[null,null,null,null,"",null,null,{"$f":"IFERROR(SUMIF(B:B,B214,D:D)/SUMIF(B:B,B214,C:C),\"\")","v":""}]
[null,null,null,null,"",null,null,{"$f":"IFERROR(SUMIF(B:B,B215,D:D)/SUMIF(B:B,B215,C:C),\"\")","v":""}]
[null,null,null,null,"",null,null,{"$f":"IFERROR(SUMIF(B:B,B216,D:D)/SUMIF(B:B,B216,C:C),\"\")","v":""}]
[null,null,null,null,"",null,null,{"$f":"IFERROR(SUMIF(B:B,B217,D:D)/SUMIF(B:B,B217,C:C),\"\")","v":""}]
[null,null,null,null,"",null,null,{"$f":"IFERROR(SUMIF(B:B,B218,D:D)/SUMIF(B:B,B218,C:C),\"\")","v":""}]
[null,null,null,null,"",null,null,{"$f":"IFERROR(SUMIF(B:B,B219,D:D)/SUMIF(B:B,B219,C:C),\"\")","v":""}]
[null,null,null,null,"",null,null,{"$f":"IFERROR(SUMIF(B:B,B220,D:D)/SUMIF(B:B,B220,C:C),\"\")","v":""}]
[null,null,null,null,"",null,null,{"$f":"IFERROR(SUMIF(B:B,B221,D:D)/SUMIF(B:B,B221,C:C),\"\")","v":""}]
[null,null,null,null,"",null,null,{"$f":"IFERROR(SUMIF(B:B,B222,D:D)/SUMIF(B:B,B222,C:C),\"\")","v":""}]
[null,null,null,null,"",null,null,{"$f":"IFERROR(SUMIF(B:B,B223,D:D)/SUMIF(B:B,B223,C:C),\"\")","v":""}]
[null,null,null,null,"",null,null,{"$f":"IFERROR(SUMIF(B:B,B224,D:D)/SUMIF(B:B,B224,C:C),\"\")","v":""}]
[null,null,null,null,"",null,null,{"$f":"IFERROR(SUMIF(B:B,B225,D:D)/SUMIF(B:B,B225,C:C),\"\")","v":""}]
[null,null,null,null,"",null,null,{"$f":"IFERROR(SUMIF(B:B,B226,D:D)/SUMIF(B:B,B226,C:C),\"\")","v":""}]
[null,null,null,null,"",null,null,{"$f":"IFERROR(SUMIF(B:B,B227,D:D)/SUMIF(B:B,B227,C:C),\"\")","v":""}]
[null,null,null,null,"",null,null,{"$f":"IFERROR(SUMIF(B:B,B228,D:D)/SUMIF(B:B,B228,C:C),\"\")","v":""}]
[null,null,null,null,"",null,null,{"$f":"IFERROR(SUMIF(B:B,B229,D:D)/SUMIF(B:B,B229,C:C),\"\")","v":""}]
[null,null,null,null,"",null,null,{"$f":"IFERROR(SUMIF(B:B,B230,D:D)/SUMIF(B:B,B230,C:C),\"\")","v":""}]
[null,null,null,null,"",null,null,{"$f":"IFERROR(SUMIF(B:B,B231,D:D)/SUMIF(B:B,B231,C:C),\"\")","v":""}]
[null,null,null,null,"",null,null,{"$f":"IFERROR(SUMIF(B:B,B232,D:D)/SUMIF(B:B,B232,C:C),\"\")","v":""}]
[null,null,null,null,"",null,null,{"$f":"IFERROR(SUMIF(B:B,B233,D:D)/SUMIF(B:B,B233,C:C),\"\")","v":""}]
[null,null,null,null,"",null,null,{"$f":"IFERROR(SUMIF(B:B,B234,D:D)/SUMIF(B:B,B234,C:C),\"\")","v":""}]
[null,null,null,null,"",null,null,{"$f":"IFERROR(SUMIF(B:B,B235,D:D)/SUMIF(B:B,B235,C:C),\"\")","v":""}]
[null,null,null,null,"",null,null,{"$f":"IFERROR(SUMIF(B:B,B236,D:D)/SUMIF(B:B,B236,C:C),\"\")","v":""}]
[null,null,null,null,"",null,null,{"$f":"IFERROR(SUMIF(B:B,B237,D:D)/SUMIF(B:B,B237,C:C),\"\")","v":""}]
[null,null,null,null,"",null,null,{"$f":"IFERROR(SUMIF(B:B,B238,D:D)/SUMIF(B:B,B238,C:C),\"\")","v":""}]
[null,null,null,null,"",null,null,{"$f":"IFERROR(SUMIF(B:B,B239,D:D)/SUMIF(B:B,B239,C:C),\"\")","v":""}]
[null,null,null,null,"",null,null,{"$f":"IFERROR(SUMIF(B:B,B240,D:D)/SUMIF(B:B,B240,C:C),\"\")","v":""}]
[null,null,null,null,"",null,null,{"$f":"IFERROR(SUMIF(B:B,B241,D:D)/SUMIF(B:B,B241,C:C),\"\")","v":""}]
[null,null,null,null,"",null,null,{"$f":"IFERROR(SUMIF(B:B,B242,D:D)/SUMIF(B:B,B242,C:C),\"\")","v":""}]
[null,null,null,null,"",null,null,{"$f":"IFERROR(SUMIF(B:B,B243,D:D)/SUMIF(B:B,B243,C:C),\"\")","v":""}]
[null,null,null,null,"",null,null,{"$f":"IFERROR(SUMIF(B:B,B244,D:D)/SUMIF(B:B,B244,C:C),\"\")","v":""}]
[null,null,null,null,"",null,null,{"$f":"IFERROR(SUMIF(B:B,B245,D:D)/SUMIF(B:B,B245,C:C),\"\")","v":""}]
[null,null,null,null,"",null,null,{"$f":"IFERROR(SUMIF(B:B,B246,D:D)/SUMIF(B:B,B246,C:C),\"\")","v":""}]
[null,null,null,null,"",null,null,{"$f":"IFERROR(SUMIF(B:B,B247,D:D)/SUMIF(B:B,B247,C:C),\"\")","v":""}]
[null,null,null,null,"",null,null,{"$f":"IFERROR(SUMIF(B:B,B248,D:D)/SUMIF(B:B,B248,C:C),\"\")","v":""}]
[null,null,null,null,"",null,null,{"$f":"IFERROR(SUMIF(B:B,B249,D:D)/SUMIF(B:B,B249,C:C),\"\")","v":""}]
[null,null,null,null,"",null,null,{"$f":"IFERROR(SUMIF(B:B,B250,D:D)/SUMIF(B:B,B250,C:C),\"\")","v":""}]
[null,null,null,null,"",null,null,{"$f":"IFERROR(SUMIF(B:B,B251,D:D)/SUMIF(B:B,B251,C:C),\"\")","v":""}]
[null,null,null,null,"",null,null,{"$f":"IFERROR(SUMIF(B:B,B252,D:D)/SUMIF(B:B,B252,C:C),\"\")","v":""}]
[null,null,null,null,"",null,null,{"$f":"IFERROR(SUMIF(B:B,B253,D:D)/SUMIF(B:B,B253,C:C),\"\")","v":""}]
[null,null,null,null,"",null,null,{"$f":"IFERROR(SUMIF(B:B,B254,D:D)/SUMIF(B:B,B254,C:C),\"\")","v":""}]
[null,null,null,null,"",null,null,{"$f":"IFERROR(SUMIF(B:B,B255,D:D)/SUMIF(B:B,B255,C:C),\"\")","v":""}]
[null,null,null,null,{"$f":"IFERROR(D256/C256,\"\")","v":""},null,null,{"$f":"IFERROR(SUMIF(B:B,B256,D:D)/SUMIF(B:B,B256,C:C),\"\")","v":""}]
[null,null,null,null,"",null,null,{"$f":"IFERROR(SUMIF(B:B,B257,D:D)/SUMIF(B:B,B257,C:C),\"\")","v":""}]
[null,null,null,null,"",null,null,{"$f":"IFERROR(SUMIF(B:B,B258,D:D)/SUMIF(B:B,B258,C:C),\"\")","v":""}]
[null,null,null,null,"",null,null,{"$f":"IFERROR(SUMIF(B:B,B259,D:D)/SUMIF(B:B,B259,C:C),\"\")","v":""}]
[null,null,null,null,"",null,null,{"$f":"IFERROR(SUMIF(B:B,B260,D:D)/SUMIF(B:B,B260,C:C),\"\")","v":""}]
[null,null,null,null,"",null,null,{"$f":"IFERROR(SUMIF(B:B,B261,D:D)/SUMIF(B:B,B261,C:C),\"\")","v":""}]
[null,null,null,null,"",null,null,{"$f":"IFERROR(SUMIF(B:B,B262,D:D)/SUMIF(B:B,B262,C:C),\"\")","v":""}]
[null,null,null,null,"",null,null,{"$f":"IFERROR(SUMIF(B:B,B263,D:D)/SUMIF(B:B,B263,C:C),\"\")","v":""}]
[null,null,null,null,"",null,null,{"$f":"IFERROR(SUMIF(B:B,B264,D:D)/SUMIF(B:B,B264,C:C),\"\")","v":""}]
[null,null,null,null,"",null,null,{"$f":"IFERROR(SUMIF(B:B,B265,D:D)/SUMIF(B:B,B265,C:C),\"\")","v":""}]
[null,null,null,null,"",null,null,{"$f":"IFERROR(SUMIF(B:B,B266,D:D)/SUMIF(B:B,B266,C:C),\"\")","v":""}]
[null,null,null,null,"",null,null,{"$f":"IFERROR(SUMIF(B:B,B267,D:D)/SUMIF(B:B,B267,C:C),\"\")","v":""}]
[null,null,null,null,"",null,null,{"$f":"IFERROR(SUMIF(B:B,B268,D:D)/SUMIF(B:B,B268,C:C),\"\")","v":""}]
[null,null,null,null,"",null,null,{"$f":"IFERROR(SUMIF(B:B,B269,D:D)/SUMIF(B:B,B269,C:C),\"\")","v":""}]
[null,null,null,null,"",null,null,{"$f":"IFERROR(SUMIF(B:B,B270,D:D)/SUMIF(B:B,B270,C:C),\"\")","v":""}]
[null,null,null,null,"",null,null,{"$f":"IFERROR(SUMIF(B:B,B271,D:D)/SUMIF(B:B,B271,C:C),\"\")","v":""}]
[null,null,null,null,"",null,null,{"$f":"IFERROR(SUMIF(B:B,B272,D:D)/SUMIF(B:B,B272,C:C),\"\")","v":""}]
[null,null,null,null,"",null,null,{"$f":"IFERROR(SUMIF(B:B,B273,D:D)/SUMIF(B:B,B273,C:C),\"\")","v":""}]
[null,null,null,null,"",null,null,{"$f":"IFERROR(SUMIF(B:B,B274,D:D)/SUMIF(B:B,B274,C:C),\"\")","v":""}]
[null,null,null,null,"",null,null,{"$f":"IFERROR(SUMIF(B:B,B275,D:D)/SUMIF(B:B,B275,C:C),\"\")","v":""}]
[null,null,null,null,"",null,null,{"$f":"IFERROR(SUMIF(B:B,B276,D:D)/SUMIF(B:B,B276,C:C),\"\")","v":""}]
[null,null,null,null,"",null,null,{"$f":"IFERROR(SUMIF(B:B,B277,D:D)/SUMIF(B:B,B277,C:C),\"\")","v":""}]
[null,null,null,null,"",null,null,{"$f":"IFERROR(SUMIF(B:B,B278,D:D)/SUMIF(B:B,B278,C:C),\"\")","v":""}]
[null,null,null,null,"",null,null,{"$f":"IFERROR(SUMIF(B:B,B279,D:D)/SUMIF(B:B,B279,C:C),\"\")","v":""}]
[null,null,null,null,"",null,null,{"$f":"IFERROR(SUMIF(B:B,B280,D:D)/SUMIF(B:B,B280,C:C),\"\")","v":""}]
[null,null,null,null,"",null,null,{"$f":"IFERROR(SUMIF(B:B,B281,D:D)/SUMIF(B:B,B281,C:C),\"\")","v":""}]
[null,null,null,null,"",null,null,{"$f":"IFERROR(SUMIF(B:B,B282,D:D)/SUMIF(B:B,B282,C:C),\"\")","v":""}]
[null,null,null,null,"",null,null,{"$f":"IFERROR(SUMIF(B:B,B283,D:D)/SUMIF(B:B,B283,C:C),\"\")","v":""}]
[null,null,null,null,"",null,null,{"$f":"IFERROR(SUMIF(B:B,B284,D:D)/SUMIF(B:B,B284,C:C),\"\")","v":""}]
[null,null,null,null,"",null,null,{"$f":"IFERROR(SUMIF(B:B,B285,D:D)/SUMIF(B:B,B285,C:C),\"\")","v":""}]
[null,null,null,null,"",null,null,{"$f":"IFERROR(SUMIF(B:B,B286,D:D)/SUMIF(B:B,B286,C:C),\"\")","v":""}]
[null,null,null,null,"",null,null,{"$f":"IFERROR(SUMIF(B:B,B287,D:D)/SUMIF(B:B,B287,C:C),\"\")","v":""}]
[null,null,null,null,"",null,null,{"$f":"IFERROR(SUMIF(B:B,B288,D:D)/SUMIF(B:B,B288,C:C),\"\")","v":""}]
[null,null,null,null,"",null,null,{"$f":"IFERROR(SUMIF(B:B,B289,D:D)/SUMIF(B:B,B289,C:C),\"\")","v":""}]
[null,null,null,null,"",null,null,{"$f":"IFERROR(SUMIF(B:B,B290,D:D)/SUMIF(B:B,B290,C:C),\"\")","v":""}]
[null,null,null,null,"",null,null,{"$f":"IFERROR(SUMIF(B:B,B291,D:D)/SUMIF(B:B,B291,C:C),\"\")","v":""}]
[null,null,null,null,"",null,null,{"$f":"IFERROR(SUMIF(B:B,B292,D:D)/SUMIF(B:B,B292,C:C),\"\")","v":""}]
[null,null,null,null,"",null,null,{"$f":"IFERROR(SUMIF(B:B,B293,D:D)/SUMIF(B:B,B293,C:C),\"\")","v":""}]
[null,null,null,null,"",null,null,{"$f":"IFERROR(SUMIF(B:B,B294,D:D)/SUMIF(B:B,B294,C:C),\"\")","v":""}]
[null,null,null,null,"",null,null,{"$f":"IFERROR(SUMIF(B:B,B295,D:D)/SUMIF(B:B,B295,C:C),\"\")","v":""}]
[null,null,null,null,"",null,null,{"$f":"IFERROR(SUMIF(B:B,B296,D:D)/SUMIF(B:B,B296,C:C),\"\")","v":""}]
[null,null,null,null,"",null,null,{"$f":"IFERROR(SUMIF(B:B,B297,D:D)/SUMIF(B:B,B297,C:C),\"\")","v":""}]
[null,null,null,null,"",null,null,{"$f":"IFERROR(SUMIF(B:B,B298,D:D)/SUMIF(B:B,B298,C:C),\"\")","v":""}]
[null,null,null,null,"",null,null,{"$f":"IFERROR(SUMIF(B:B,B299,D:D)/SUMIF(B:B,B299,C:C),\"\")","v":""}]
[null,null,null,null,"",null,null,{"$f":"IFERROR(SUMIF(B:B,B300,D:D)/SUMIF(B:B,B300,C:C),\"\")","v":""}]
[null,null,null,null,"",null,null,{"$f":"IFERROR(SUMIF(B:B,B301,D:D)/SUMIF(B:B,B301,C:C),\"\")","v":""}]
[null,null,null,null,"",null,null,{"$f":"IFERROR(SUMIF(B:B,B302,D:D)/SUMIF(B:B,B302,C:C),\"\")","v":""}]
[null,null,null,null,"",null,null,{"$f":"IFERROR(SUMIF(B:B,B303,D:D)/SUMIF(B:B,B303,C:C),\"\")","v":""}]
[null,null,null,null,"",null,null,{"$f":"IFERROR(SUMIF(B:B,B304,D:D)/SUMIF(B:B,B304,C:C),\"\")","v":""}]
[null,null,null,null,"",null,null,{"$f":"IFERROR(SUMIF(B:B,B305,D:D)/SUMIF(B:B,B305,C:C),\"\")","v":""}]
[null,null,null,null,"",null,null,{"$f":"IFERROR(SUMIF(B:B,B306,D:D)/SUMIF(B:B,B306,C:C),\"\")","v":""}]
[null,null,null,null,"",null,null,{"$f":"IFERROR(SUMIF(B:B,B307,D:D)/SUMIF(B:B,B307,C:C),\"\")","v":""}]
[null,null,null,null,"",null,null,{"$f":"IFERROR(SUMIF(B:B,B308,D:D)/SUMIF(B:B,B308,C:C),\"\")","v":""}]
[null,null,null,null,"",null,null,{"$f":"IFERROR(SUMIF(B:B,B309,D:D)/SUMIF(B:B,B309,C:C),\"\")","v":""}]
[null,null,null,null,"",null,null,{"$f":"IFERROR(SUMIF(B:B,B310,D:D)/SUMIF(B:B,B310,C:C),\"\")","v":""}]
[null,null,null,null,"",null,null,{"$f":"IFERROR(SUMIF(B:B,B311,D:D)/SUMIF(B:B,B311,C:C),\"\")","v":""}]
[null,null,null,null,"",null,null,{"$f":"IFERROR(SUMIF(B:B,B312,D:D)/SUMIF(B:B,B312,C:C),\"\")","v":""}]
[null,null,null,null,"",null,null,{"$f":"IFERROR(SUMIF(B:B,B313,D:D)/SUMIF(B:B,B313,C:C),\"\")","v":""}]
[null,null,null,null,"",null,null,{"$f":"IFERROR(SUMIF(B:B,B314,D:D)/SUMIF(B:B,B314,C:C),\"\")","v":""}]
[null,null,null,null,"",null,null,{"$f":"IFERROR(SUMIF(B:B,B315,D:D)/SUMIF(B:B,B315,C:C),\"\")","v":""}]
[null,null,null,null,"",null,null,{"$f":"IFERROR(SUMIF(B:B,B316,D:D)/SUMIF(B:B,B316,C:C),\"\")","v":""}]
[null,null,null,null,"",null,null,{"$f":"IFERROR(SUMIF(B:B,B317,D:D)/SUMIF(B:B,B317,C:C),\"\")","v":""}]
[null,null,null,null,"",null,null,{"$f":"IFERROR(SUMIF(B:B,B318,D:D)/SUMIF(B:B,B318,C:C),\"\")","v":""}]
[null,null,null,null,"",null,null,{"$f":"IFERROR(SUMIF(B:B,B319,D:D)/SUMIF(B:B,B319,C:C),\"\")","v":""}]
[null,null,null,null,{"$f":"IFERROR(D320/C320,\"\")","v":""},null,null,{"$f":"IFERROR(SUMIF(B:B,B320,D:D)/SUMIF(B:B,B320,C:C),\"\")","v":""}]
[null,null,null,null,"",null,null,{"$f":"IFERROR(SUMIF(B:B,B321,D:D)/SUMIF(B:B,B321,C:C),\"\")","v":""}]
[null,null,null,null,"",null,null,{"$f":"IFERROR(SUMIF(B:B,B322,D:D)/SUMIF(B:B,B322,C:C),\"\")","v":""}]
[null,null,null,null,"",null,null,{"$f":"IFERROR(SUMIF(B:B,B323,D:D)/SUMIF(B:B,B323,C:C),\"\")","v":""}]
[null,null,null,null,"",null,null,{"$f":"IFERROR(SUMIF(B:B,B324,D:D)/SUMIF(B:B,B324,C:C),\"\")","v":""}]
[null,null,null,null,"",null,null,{"$f":"IFERROR(SUMIF(B:B,B325,D:D)/SUMIF(B:B,B325,C:C),\"\")","v":""}]
[null,null,null,null,"",null,null,{"$f":"IFERROR(SUMIF(B:B,B326,D:D)/SUMIF(B:B,B326,C:C),\"\")","v":""}]
[null,null,null,null,"",null,null,{"$f":"IFERROR(SUMIF(B:B,B327,D:D)/SUMIF(B:B,B327,C:C),\"\")","v":""}]
[null,null,null,null,"",null,null,{"$f":"IFERROR(SUMIF(B:B,B328,D:D)/SUMIF(B:B,B328,C:C),\"\")","v":""}]
[null,null,null,null,"",null,null,{"$f":"IFERROR(SUMIF(B:B,B329,D:D)/SUMIF(B:B,B329,C:C),\"\")","v":""}]
[null,null,null,null,"",null,null,{"$f":"IFERROR(SUMIF(B:B,B330,D:D)/SUMIF(B:B,B330,C:C),\"\")","v":""}]
[null,null,null,null,"",null,null,{"$f":"IFERROR(SUMIF(B:B,B331,D:D)/SUMIF(B:B,B331,C:C),\"\")","v":""}]
[null,null,null,null,"",null,null,{"$f":"IFERROR(SUMIF(B:B,B332,D:D)/SUMIF(B:B,B332,C:C),\"\")","v":""}]
[null,null,null,null,"",null,null,{"$f":"IFERROR(SUMIF(B:B,B333,D:D)/SUMIF(B:B,B333,C:C),\"\")","v":""}]
[null,null,null,null,"",null,null,{"$f":"IFERROR(SUMIF(B:B,B334,D:D)/SUMIF(B:B,B334,C:C),\"\")","v":""}]
[null,null,null,null,"",null,null,{"$f":"IFERROR(SUMIF(B:B,B335,D:D)/SUMIF(B:B,B335,C:C),\"\")","v":""}]
[null,null,null,null,"",null,null,{"$f":"IFERROR(SUMIF(B:B,B336,D:D)/SUMIF(B:B,B336,C:C),\"\")","v":""}]
[null,null,null,null,"",null,null,{"$f":"IFERROR(SUMIF(B:B,B337,D:D)/SUMIF(B:B,B337,C:C),\"\")","v":""}]
[null,null,null,null,"",null,null,{"$f":"IFERROR(SUMIF(B:B,B338,D:D)/SUMIF(B:B,B338,C:C),\"\")","v":""}]
[null,null,null,null,"",null,null,{"$f":"IFERROR(SUMIF(B:B,B339,D:D)/SUMIF(B:B,B339,C:C),\"\")","v":""}]
[null,null,null,null,"",null,null,{"$f":"IFERROR(SUMIF(B:B,B340,D:D)/SUMIF(B:B,B340,C:C),\"\")","v":""}]
[null,null,null,null,"",null,null,{"$f":"IFERROR(SUMIF(B:B,B341,D:D)/SUMIF(B:B,B341,C:C),\"\")","v":""}]
[null,null,null,null,"",null,null,{"$f":"IFERROR(SUMIF(B:B,B342,D:D)/SUMIF(B:B,B342,C:C),\"\")","v":""}]
[null,null,null,null,"",null,null,{"$f":"IFERROR(SUMIF(B:B,B343,D:D)/SUMIF(B:B,B343,C:C),\"\")","v":""}]
[null,null,null,null,"",null,null,{"$f":"IFERROR(SUMIF(B:B,B344,D:D)/SUMIF(B:B,B344,C:C),\"\")","v":""}]
[null,null,null,null,"",null,null,{"$f":"IFERROR(SUMIF(B:B,B345,D:D)/SUMIF(B:B,B345,C:C),\"\")","v":""}]
[null,null,null,null,"",null,null,{"$f":"IFERROR(SUMIF(B:B,B346,D:D)/SUMIF(B:B,B346,C:C),\"\")","v":""}]
[null,null,null,null,"",null,null,{"$f":"IFERROR(SUMIF(B:B,B347,D:D)/SUMIF(B:B,B347,C:C),\"\")","v":""}]
[null,null,null,null,"",null,null,{"$f":"IFERROR(SUMIF(B:B,B348,D:D)/SUMIF(B:B,B348,C:C),\"\")","v":""}]
[null,null,null,null,"",null,null,{"$f":"IFERROR(SUMIF(B:B,B349,D:D)/SUMIF(B:B,B349,C:C),\"\")","v":""}]
[null,null,null,null,"",null,null,{"$f":"IFERROR(SUMIF(B:B,B350,D:D)/SUMIF(B:B,B350,C:C),\"\")","v":""}]
[null,null,null,null,"",null,null,{"$f":"IFERROR(SUMIF(B:B,B351,D:D)/SUMIF(B:B,B351,C:C),\"\")","v":""}]
[null,null,null,null,"",null,null,{"$f":"IFERROR(SUMIF(B:B,B352,D:D)/SUMIF(B:B,B352,C:C),\"\")","v":""}]
[null,null,null,null,"",null,null,{"$f":"IFERROR(SUMIF(B:B,B353,D:D)/SUMIF(B:B,B353,C:C),\"\")","v":""}]
[null,null,null,null,"",null,null,{"$f":"IFERROR(SUMIF(B:B,B354,D:D)/SUMIF(B:B,B354,C:C),\"\")","v":""}]
[null,null,null,null,"",null,null,{"$f":"IFERROR(SUMIF(B:B,B355,D:D)/SUMIF(B:B,B355,C:C),\"\")","v":""}]
[null,null,null,null,"",null,null,{"$f":"IFERROR(SUMIF(B:B,B356,D:D)/SUMIF(B:B,B356,C:C),\"\")","v":""}]
[null,null,null,null,"",null,null,{"$f":"IFERROR(SUMIF(B:B,B357,D:D)/SUMIF(B:B,B357,C:C),\"\")","v":""}]
[null,null,null,null,"",null,null,{"$f":"IFERROR(SUMIF(B:B,B358,D:D)/SUMIF(B:B,B358,C:C),\"\")","v":""}]
[null,null,null,null,"",null,null,{"$f":"IFERROR(SUMIF(B:B,B359,D:D)/SUMIF(B:B,B359,C:C),\"\")","v":""}]
[null,null,null,null,"",null,null,{"$f":"IFERROR(SUMIF(B:B,B360,D:D)/SUMIF(B:B,B360,C:C),\"\")","v":""}]
[null,null,null,null,"",null,null,{"$f":"IFERROR(SUMIF(B:B,B361,D:D)/SUMIF(B:B,B361,C:C),\"\")","v":""}]
[null,null,null,null,"",null,null,{"$f":"IFERROR(SUMIF(B:B,B362,D:D)/SUMIF(B:B,B362,C:C),\"\")","v":""}]
[null,null,null,null,"",null,null,{"$f":"IFERROR(SUMIF(B:B,B363,D:D)/SUMIF(B:B,B363,C:C),\"\")","v":""}]
[null,null,null,null,"",null,null,{"$f":"IFERROR(SUMIF(B:B,B364,D:D)/SUMIF(B:B,B364,C:C),\"\")","v":""}]
[null,null,null,null,"",null,null,{"$f":"IFERROR(SUMIF(B:B,B365,D:D)/SUMIF(B:B,B365,C:C),\"\")","v":""}]
[null,null,null,null,"",null,null,{"$f":"IFERROR(SUMIF(B:B,B366,D:D)/SUMIF(B:B,B366,C:C),\"\")","v":""}]
[null,null,null,null,"",null,null,{"$f":"IFERROR(SUMIF(B:B,B367,D:D)/SUMIF(B:B,B367,C:C),\"\")","v":""}]
[null,null,null,null,"",null,null,{"$f":"IFERROR(SUMIF(B:B,B368,D:D)/SUMIF(B:B,B368,C:C),\"\")","v":""}]
[null,null,null,null,"",null,null,{"$f":"IFERROR(SUMIF(B:B,B369,D:D)/SUMIF(B:B,B369,C:C),\"\")","v":""}]
[null,null,null,null,"",null,null,{"$f":"IFERROR(SUMIF(B:B,B370,D:D)/SUMIF(B:B,B370,C:C),\"\")","v":""}]
[null,null,null,null,"",null,null,{"$f":"IFERROR(SUMIF(B:B,B371,D:D)/SUMIF(B:B,B371,C:C),\"\")","v":""}]
[null,null,null,null,"",null,null,{"$f":"IFERROR(SUMIF(B:B,B372,D:D)/SUMIF(B:B,B372,C:C),\"\")","v":""}]
[null,null,null,null,"",null,null,{"$f":"IFERROR(SUMIF(B:B,B373,D:D)/SUMIF(B:B,B373,C:C),\"\")","v":""}]
[null,null,null,null,"",null,null,{"$f":"IFERROR(SUMIF(B:B,B374,D:D)/SUMIF(B:B,B374,C:C),\"\")","v":""}]
[null,null,null,null,"",null,null,{"$f":"IFERROR(SUMIF(B:B,B375,D:D)/SUMIF(B:B,B375,C:C),\"\")","v":""}]
[null,null,null,null,"",null,null,{"$f":"IFERROR(SUMIF(B:B,B376,D:D)/SUMIF(B:B,B376,C:C),\"\")","v":""}]
[null,null,null,null,"",null,null,{"$f":"IFERROR(SUMIF(B:B,B377,D:D)/SUMIF(B:B,B377,C:C),\"\")","v":""}]
[null,null,null,null,"",null,null,{"$f":"IFERROR(SUMIF(B:B,B378,D:D)/SUMIF(B:B,B378,C:C),\"\")","v":""}]
[null,null,null,null,"",null,null,{"$f":"IFERROR(SUMIF(B:B,B379,D:D)/SUMIF(B:B,B379,C:C),\"\")","v":""}]
[null,null,null,null,"",null,null,{"$f":"IFERROR(SUMIF(B:B,B380,D:D)/SUMIF(B:B,B380,C:C),\"\")","v":""}]
[null,null,null,null,"",null,null,{"$f":"IFERROR(SUMIF(B:B,B381,D:D)/SUMIF(B:B,B381,C:C),\"\")","v":""}]
[null,null,null,null,"",null,null,{"$f":"IFERROR(SUMIF(B:B,B382,D:D)/SUMIF(B:B,B382,C:C),\"\")","v":""}]
[null,null,null,null,"",null,null,{"$f":"IFERROR(SUMIF(B:B,B383,D:D)/SUMIF(B:B,B383,C:C),\"\")","v":""}]
[null,null,null,null,{"$f":"IFERROR(D384/C384,\"\")","v":""},null,null,{"$f":"IFERROR(SUMIF(B:B,B384,D:D)/SUMIF(B:B,B384,C:C),\"\")","v":""}]
[null,null,null,null,"",null,null,{"$f":"IFERROR(SUMIF(B:B,B385,D:D)/SUMIF(B:B,B385,C:C),\"\")","v":""}]
[null,null,null,null,"",null,null,{"$f":"IFERROR(SUMIF(B:B,B386,D:D)/SUMIF(B:B,B386,C:C),\"\")","v":""}]
[null,null,null,null,"",null,null,{"$f":"IFERROR(SUMIF(B:B,B387,D:D)/SUMIF(B:B,B387,C:C),\"\")","v":""}]
[null,null,null,null,"",null,null,{"$f":"IFERROR(SUMIF(B:B,B388,D:D)/SUMIF(B:B,B388,C:C),\"\")","v":""}]
[null,null,null,null,"",null,null,{"$f":"IFERROR(SUMIF(B:B,B389,D:D)/SUMIF(B:B,B389,C:C),\"\")","v":""}]
[null,null,null,null,"",null,null,{"$f":"IFERROR(SUMIF(B:B,B390,D:D)/SUMIF(B:B,B390,C:C),\"\")","v":""}]
[null,null,null,null,"",null,null,{"$f":"IFERROR(SUMIF(B:B,B391,D:D)/SUMIF(B:B,B391,C:C),\"\")","v":""}]
[null,null,null,null,"",null,null,{"$f":"IFERROR(SUMIF(B:B,B392,D:D)/SUMIF(B:B,B392,C:C),\"\")","v":""}]
[null,null,null,null,"",null,null,{"$f":"IFERROR(SUMIF(B:B,B393,D:D)/SUMIF(B:B,B393,C:C),\"\")","v":""}]
[null,null,null,null,"",null,null,{"$f":"IFERROR(SUMIF(B:B,B394,D:D)/SUMIF(B:B,B394,C:C),\"\")","v":""}]
[null,null,null,null,"",null,null,{"$f":"IFERROR(SUMIF(B:B,B395,D:D)/SUMIF(B:B,B395,C:C),\"\")","v":""}]
[null,null,null,null,"",null,null,{"$f":"IFERROR(SUMIF(B:B,B396,D:D)/SUMIF(B:B,B396,C:C),\"\")","v":""}]
[null,null,null,null,"",null,null,{"$f":"IFERROR(SUMIF(B:B,B397,D:D)/SUMIF(B:B,B397,C:C),\"\")","v":""}]
[null,null,null,null,"",null,null,{"$f":"IFERROR(SUMIF(B:B,B398,D:D)/SUMIF(B:B,B398,C:C),\"\")","v":""}]
[null,null,null,null,"",null,null,{"$f":"IFERROR(SUMIF(B:B,B399,D:D)/SUMIF(B:B,B399,C:C),\"\")","v":""}]
[null,null,null,null,"",null,null,{"$f":"IFERROR(SUMIF(B:B,B400,D:D)/SUMIF(B:B,B400,C:C),\"\")","v":""}]
[null,null,null,null,"",null,null,{"$f":"IFERROR(SUMIF(B:B,B401,D:D)/SUMIF(B:B,B401,C:C),\"\")","v":""}]
[null,null,null,null,"",null,null,{"$f":"IFERROR(SUMIF(B:B,B402,D:D)/SUMIF(B:B,B402,C:C),\"\")","v":""}]
[null,null,null,null,"",null,null,{"$f":"IFERROR(SUMIF(B:B,B403,D:D)/SUMIF(B:B,B403,C:C),\"\")","v":""}]
[null,null,null,null,"",null,null,{"$f":"IFERROR(SUMIF(B:B,B404,D:D)/SUMIF(B:B,B404,C:C),\"\")","v":""}]
[null,null,null,null,"",null,null,{"$f":"IFERROR(SUMIF(B:B,B405,D:D)/SUMIF(B:B,B405,C:C),\"\")","v":""}]
[null,null,null,null,"",null,null,{"$f":"IFERROR(SUMIF(B:B,B406,D:D)/SUMIF(B:B,B406,C:C),\"\")","v":""}]
[null,null,null,null,"",null,null,{"$f":"IFERROR(SUMIF(B:B,B407,D:D)/SUMIF(B:B,B407,C:C),\"\")","v":""}]
[null,null,null,null,"",null,null,{"$f":"IFERROR(SUMIF(B:B,B408,D:D)/SUMIF(B:B,B408,C:C),\"\")","v":""}]
[null,null,null,null,"",null,null,{"$f":"IFERROR(SUMIF(B:B,B409,D:D)/SUMIF(B:B,B409,C:C),\"\")","v":""}]
[null,null,null,null,"",null,null,{"$f":"IFERROR(SUMIF(B:B,B410,D:D)/SUMIF(B:B,B410,C:C),\"\")","v":""}]
[null,null,null,null,"",null,null,{"$f":"IFERROR(SUMIF(B:B,B411,D:D)/SUMIF(B:B,B411,C:C),\"\")","v":""}]
[null,null,null,null,"",null,null,{"$f":"IFERROR(SUMIF(B:B,B412,D:D)/SUMIF(B:B,B412,C:C),\"\")","v":""}]
[null,null,null,null,"",null,null,{"$f":"IFERROR(SUMIF(B:B,B413,D:D)/SUMIF(B:B,B413,C:C),\"\")","v":""}]
[null,null,null,null,"",null,null,{"$f":"IFERROR(SUMIF(B:B,B414,D:D)/SUMIF(B:B,B414,C:C),\"\")","v":""}]
[null,null,null,null,"",null,null,{"$f":"IFERROR(SUMIF(B:B,B415,D:D)/SUMIF(B:B,B415,C:C),\"\")","v":""}]
[null,null,null,null,"",null,null,{"$f":"IFERROR(SUMIF(B:B,B416,D:D)/SUMIF(B:B,B416,C:C),\"\")","v":""}]
[null,null,null,null,"",null,null,{"$f":"IFERROR(SUMIF(B:B,B417,D:D)/SUMIF(B:B,B417,C:C),\"\")","v":""}]
[null,null,null,null,"",null,null,{"$f":"IFERROR(SUMIF(B:B,B418,D:D)/SUMIF(B:B,B418,C:C),\"\")","v":""}]
[null,null,null,null,"",null,null,{"$f":"IFERROR(SUMIF(B:B,B419,D:D)/SUMIF(B:B,B419,C:C),\"\")","v":""}]
[null,null,null,null,"",null,null,{"$f":"IFERROR(SUMIF(B:B,B420,D:D)/SUMIF(B:B,B420,C:C),\"\")","v":""}]
[null,null,null,null,"",null,null,{"$f":"IFERROR(SUMIF(B:B,B421,D:D)/SUMIF(B:B,B421,C:C),\"\")","v":""}]
[null,null,null,null,"",null,null,{"$f":"IFERROR(SUMIF(B:B,B422,D:D)/SUMIF(B:B,B422,C:C),\"\")","v":""}]
[null,null,null,null,"",null,null,{"$f":"IFERROR(SUMIF(B:B,B423,D:D)/SUMIF(B:B,B423,C:C),\"\")","v":""}]
[null,null,null,null,"",null,null,{"$f":"IFERROR(SUMIF(B:B,B424,D:D)/SUMIF(B:B,B424,C:C),\"\")","v":""}]
[null,null,null,null,"",null,null,{"$f":"IFERROR(SUMIF(B:B,B425,D:D)/SUMIF(B:B,B425,C:C),\"\")","v":""}]
[null,null,null,null,"",null,null,{"$f":"IFERROR(SUMIF(B:B,B426,D:D)/SUMIF(B:B,B426,C:C),\"\")","v":""}]
[null,null,null,null,"",null,null,{"$f":"IFERROR(SUMIF(B:B,B427,D:D)/SUMIF(B:B,B427,C:C),\"\")","v":""}]
[null,null,null,null,"",null,null,{"$f":"IFERROR(SUMIF(B:B,B428,D:D)/SUMIF(B:B,B428,C:C),\"\")","v":""}]
[null,null,null,null,"",null,null,{"$f":"IFERROR(SUMIF(B:B,B429,D:D)/SUMIF(B:B,B429,C:C),\"\")","v":""}]
[null,null,null,null,"",null,null,{"$f":"IFERROR(SUMIF(B:B,B430,D:D)/SUMIF(B:B,B430,C:C),\"\")","v":""}]
[null,null,null,null,"",null,null,{"$f":"IFERROR(SUMIF(B:B,B431,D:D)/SUMIF(B:B,B431,C:C),\"\")","v":""}]
[null,null,null,null,"",null,null,{"$f":"IFERROR(SUMIF(B:B,B432,D:D)/SUMIF(B:B,B432,C:C),\"\")","v":""}]
[null,null,null,null,"",null,null,{"$f":"IFERROR(SUMIF(B:B,B433,D:D)/SUMIF(B:B,B433,C:C),\"\")","v":""}]
[null,null,null,null,"",null,null,{"$f":"IFERROR(SUMIF(B:B,B434,D:D)/SUMIF(B:B,B434,C:C),\"\")","v":""}]
[null,null,null,null,"",null,null,{"$f":"IFERROR(SUMIF(B:B,B435,D:D)/SUMIF(B:B,B435,C:C),\"\")","v":""}]
[null,null,null,null,"",null,null,{"$f":"IFERROR(SUMIF(B:B,B436,D:D)/SUMIF(B:B,B436,C:C),\"\")","v":""}]
[null,null,null,null,"",null,null,{"$f":"IFERROR(SUMIF(B:B,B437,D:D)/SUMIF(B:B,B437,C:C),\"\")","v":""}]
[null,null,null,null,"",null,null,{"$f":"IFERROR(SUMIF(B:B,B438,D:D)/SUMIF(B:B,B438,C:C),\"\")","v":""}]
[null,null,null,null,"",null,null,{"$f":"IFERROR(SUMIF(B:B,B439,D:D)/SUMIF(B:B,B439,C:C),\"\")","v":""}]
[null,null,null,null,"",null,null,{"$f":"IFERROR(SUMIF(B:B,B440,D:D)/SUMIF(B:B,B440,C:C),\"\")","v":""}]
[null,null,null,null,"",null,null,{"$f":"IFERROR(SUMIF(B:B,B441,D:D)/SUMIF(B:B,B441,C:C),\"\")","v":""}]
[null,null,null,null,"",null,null,{"$f":"IFERROR(SUMIF(B:B,B442,D:D)/SUMIF(B:B,B442,C:C),\"\")","v":""}]
[null,null,null,null,"",null,null,{"$f":"IFERROR(SUMIF(B:B,B443,D:D)/SUMIF(B:B,B443,C:C),\"\")","v":""}]
[null,null,null,null,"",null,null,{"$f":"IFERROR(SUMIF(B:B,B444,D:D)/SUMIF(B:B,B444,C:C),\"\")","v":""}]
[null,null,null,null,"",null,null,{"$f":"IFERROR(SUMIF(B:B,B445,D:D)/SUMIF(B:B,B445,C:C),\"\")","v":""}]
[null,null,null,null,"",null,null,{"$f":"IFERROR(SUMIF(B:B,B446,D:D)/SUMIF(B:B,B446,C:C),\"\")","v":""}]
[null,null,null,null,"",null,null,{"$f":"IFERROR(SUMIF(B:B,B447,D:D)/SUMIF(B:B,B447,C:C),\"\")","v":""}]
[null,null,null,null,{"$f":"IFERROR(D448/C448,\"\")","v":""},null,null,{"$f":"IFERROR(SUMIF(B:B,B448,D:D)/SUMIF(B:B,B448,C:C),\"\")","v":""}]
[null,null,null,null,"",null,null,{"$f":"IFERROR(SUMIF(B:B,B449,D:D)/SUMIF(B:B,B449,C:C),\"\")","v":""}]
[null,null,null,null,"",null,null,{"$f":"IFERROR(SUMIF(B:B,B450,D:D)/SUMIF(B:B,B450,C:C),\"\")","v":""}]
[null,null,null,null,"",null,null,{"$f":"IFERROR(SUMIF(B:B,B451,D:D)/SUMIF(B:B,B451,C:C),\"\")","v":""}]
[null,null,null,null,"",null,null,{"$f":"IFERROR(SUMIF(B:B,B452,D:D)/SUMIF(B:B,B452,C:C),\"\")","v":""}]
[null,null,null,null,"",null,null,{"$f":"IFERROR(SUMIF(B:B,B453,D:D)/SUMIF(B:B,B453,C:C),\"\")","v":""}]
[null,null,null,null,"",null,null,{"$f":"IFERROR(SUMIF(B:B,B454,D:D)/SUMIF(B:B,B454,C:C),\"\")","v":""}]
[null,null,null,null,"",null,null,{"$f":"IFERROR(SUMIF(B:B,B455,D:D)/SUMIF(B:B,B455,C:C),\"\")","v":""}]
[null,null,null,null,"",null,null,{"$f":"IFERROR(SUMIF(B:B,B456,D:D)/SUMIF(B:B,B456,C:C),\"\")","v":""}]
[null,null,null,null,"",null,null,{"$f":"IFERROR(SUMIF(B:B,B457,D:D)/SUMIF(B:B,B457,C:C),\"\")","v":""}]
[null,null,null,null,"",null,null,{"$f":"IFERROR(SUMIF(B:B,B458,D:D)/SUMIF(B:B,B458,C:C),\"\")","v":""}]
[null,null,null,null,"",null,null,{"$f":"IFERROR(SUMIF(B:B,B459,D:D)/SUMIF(B:B,B459,C:C),\"\")","v":""}]
[null,null,null,null,"",null,null,{"$f":"IFERROR(SUMIF(B:B,B460,D:D)/SUMIF(B:B,B460,C:C),\"\")","v":""}]
[null,null,null,null,"",null,null,{"$f":"IFERROR(SUMIF(B:B,B461,D:D)/SUMIF(B:B,B461,C:C),\"\")","v":""}]
[null,null,null,null,"",null,null,{"$f":"IFERROR(SUMIF(B:B,B462,D:D)/SUMIF(B:B,B462,C:C),\"\")","v":""}]
[null,null,null,null,"",null,null,{"$f":"IFERROR(SUMIF(B:B,B463,D:D)/SUMIF(B:B,B463,C:C),\"\")","v":""}]
[null,null,null,null,"",null,null,{"$f":"IFERROR(SUMIF(B:B,B464,D:D)/SUMIF(B:B,B464,C:C),\"\")","v":""}]
[null,null,null,null,"",null,null,{"$f":"IFERROR(SUMIF(B:B,B465,D:D)/SUMIF(B:B,B465,C:C),\"\")","v":""}]
[null,null,null,null,"",null,null,{"$f":"IFERROR(SUMIF(B:B,B466,D:D)/SUMIF(B:B,B466,C:C),\"\")","v":""}]
[null,null,null,null,"",null,null,{"$f":"IFERROR(SUMIF(B:B,B467,D:D)/SUMIF(B:B,B467,C:C),\"\")","v":""}]
[null,null,null,null,"",null,null,{"$f":"IFERROR(SUMIF(B:B,B468,D:D)/SUMIF(B:B,B468,C:C),\"\")","v":""}]
[null,null,null,null,"",null,null,{"$f":"IFERROR(SUMIF(B:B,B469,D:D)/SUMIF(B:B,B469,C:C),\"\")","v":""}]
[null,null,null,null,"",null,null,{"$f":"IFERROR(SUMIF(B:B,B470,D:D)/SUMIF(B:B,B470,C:C),\"\")","v":""}]
[null,null,null,null,"",null,null,{"$f":"IFERROR(SUMIF(B:B,B471,D:D)/SUMIF(B:B,B471,C:C),\"\")","v":""}]
[null,null,null,null,"",null,null,{"$f":"IFERROR(SUMIF(B:B,B472,D:D)/SUMIF(B:B,B472,C:C),\"\")","v":""}]
[null,null,null,null,"",null,null,{"$f":"IFERROR(SUMIF(B:B,B473,D:D)/SUMIF(B:B,B473,C:C),\"\")","v":""}]
[null,null,null,null,"",null,null,{"$f":"IFERROR(SUMIF(B:B,B474,D:D)/SUMIF(B:B,B474,C:C),\"\")","v":""}]
[null,null,null,null,"",null,null,{"$f":"IFERROR(SUMIF(B:B,B475,D:D)/SUMIF(B:B,B475,C:C),\"\")","v":""}]
[null,null,null,null,"",null,null,{"$f":"IFERROR(SUMIF(B:B,B476,D:D)/SUMIF(B:B,B476,C:C),\"\")","v":""}]
[null,null,null,null,"",null,null,{"$f":"IFERROR(SUMIF(B:B,B477,D:D)/SUMIF(B:B,B477,C:C),\"\")","v":""}]
[null,null,null,null,"",null,null,{"$f":"IFERROR(SUMIF(B:B,B478,D:D)/SUMIF(B:B,B478,C:C),\"\")","v":""}]
[null,null,null,null,"",null,null,{"$f":"IFERROR(SUMIF(B:B,B479,D:D)/SUMIF(B:B,B479,C:C),\"\")","v":""}]
[null,null,null,null,"",null,null,{"$f":"IFERROR(SUMIF(B:B,B480,D:D)/SUMIF(B:B,B480,C:C),\"\")","v":""}]
[null,null,null,null,"",null,null,{"$f":"IFERROR(SUMIF(B:B,B481,D:D)/SUMIF(B:B,B481,C:C),\"\")","v":""}]
[null,null,null,null,"",null,null,{"$f":"IFERROR(SUMIF(B:B,B482,D:D)/SUMIF(B:B,B482,C:C),\"\")","v":""}]
[null,null,null,null,"",null,null,{"$f":"IFERROR(SUMIF(B:B,B483,D:D)/SUMIF(B:B,B483,C:C),\"\")","v":""}]
[null,null,null,null,"",null,null,{"$f":"IFERROR(SUMIF(B:B,B484,D:D)/SUMIF(B:B,B484,C:C),\"\")","v":""}]
[null,null,null,null,"",null,null,{"$f":"IFERROR(SUMIF(B:B,B485,D:D)/SUMIF(B:B,B485,C:C),\"\")","v":""}]
[null,null,null,null,"",null,null,{"$f":"IFERROR(SUMIF(B:B,B486,D:D)/SUMIF(B:B,B486,C:C),\"\")","v":""}]
[null,null,null,null,"",null,null,{"$f":"IFERROR(SUMIF(B:B,B487,D:D)/SUMIF(B:B,B487,C:C),\"\")","v":""}]
[null,null,null,null,"",null,null,{"$f":"IFERROR(SUMIF(B:B,B488,D:D)/SUMIF(B:B,B488,C:C),\"\")","v":""}]
[null,null,null,null,"",null,null,{"$f":"IFERROR(SUMIF(B:B,B489,D:D)/SUMIF(B:B,B489,C:C),\"\")","v":""}]
[null,null,null,null,"",null,null,{"$f":"IFERROR(SUMIF(B:B,B490,D:D)/SUMIF(B:B,B490,C:C),\"\")","v":""}]
[null,null,null,null,"",null,null,{"$f":"IFERROR(SUMIF(B:B,B491,D:D)/SUMIF(B:B,B491,C:C),\"\")","v":""}]
[null,null,null,null,"",null,null,{"$f":"IFERROR(SUMIF(B:B,B492,D:D)/SUMIF(B:B,B492,C:C),\"\")","v":""}]
[null,null,null,null,"",null,null,{"$f":"IFERROR(SUMIF(B:B,B493,D:D)/SUMIF(B:B,B493,C:C),\"\")","v":""}]
[null,null,null,null,"",null,null,{"$f":"IFERROR(SUMIF(B:B,B494,D:D)/SUMIF(B:B,B494,C:C),\"\")","v":""}]
[null,null,null,null,"",null,null,{"$f":"IFERROR(SUMIF(B:B,B495,D:D)/SUMIF(B:B,B495,C:C),\"\")","v":""}]
[null,null,null,null,"",null,null,{"$f":"IFERROR(SUMIF(B:B,B496,D:D)/SUMIF(B:B,B496,C:C),\"\")","v":""}]
[null,null,null,null,"",null,null,{"$f":"IFERROR(SUMIF(B:B,B497,D:D)/SUMIF(B:B,B497,C:C),\"\")","v":""}]
[null,null,null,null,"",null,null,{"$f":"IFERROR(SUMIF(B:B,B498,D:D)/SUMIF(B:B,B498,C:C),\"\")","v":""}]
[null,null,null,null,"",null,null,{"$f":"IFERROR(SUMIF(B:B,B499,D:D)/SUMIF(B:B,B499,C:C),\"\")","v":""}]
[null,null,null,null,"",null,null,{"$f":"IFERROR(SUMIF(B:B,B500,D:D)/SUMIF(B:B,B500,C:C),\"\")","v":""}]
[null,null,null,null,"",null,null,{"$f":"IFERROR(SUMIF(B:B,B501,D:D)/SUMIF(B:B,B501,C:C),\"\")","v":""}]
[null,null,null,null,"",null,null,{"$f":"IFERROR(SUMIF(B:B,B502,D:D)/SUMIF(B:B,B502,C:C),\"\")","v":""}]
[null,null,null,null,"",null,null,{"$f":"IFERROR(SUMIF(B:B,B503,D:D)/SUMIF(B:B,B503,C:C),\"\")","v":""}]
[null,null,null,null,"",null,null,{"$f":"IFERROR(SUMIF(B:B,B504,D:D)/SUMIF(B:B,B504,C:C),\"\")","v":""}]
[null,null,null,null,"",null,null,{"$f":"IFERROR(SUMIF(B:B,B505,D:D)/SUMIF(B:B,B505,C:C),\"\")","v":""}]
[null,null,null,null,"",null,null,{"$f":"IFERROR(SUMIF(B:B,B506,D:D)/SUMIF(B:B,B506,C:C),\"\")","v":""}]
[null,null,null,null,"",null,null,{"$f":"IFERROR(SUMIF(B:B,B507,D:D)/SUMIF(B:B,B507,C:C),\"\")","v":""}]
[null,null,null,null,"",null,null,{"$f":"IFERROR(SUMIF(B:B,B508,D:D)/SUMIF(B:B,B508,C:C),\"\")","v":""}]
[null,null,null,null,"",null,null,{"$f":"IFERROR(SUMIF(B:B,B509,D:D)/SUMIF(B:B,B509,C:C),\"\")","v":""}]
[null,null,null,null,"",null,null,{"$f":"IFERROR(SUMIF(B:B,B510,D:D)/SUMIF(B:B,B510,C:C),\"\")","v":""}]
[null,null,null,null,"",null,null,{"$f":"IFERROR(SUMIF(B:B,B511,D:D)/SUMIF(B:B,B511,C:C),\"\")","v":""}]
[null,null,null,null,{"$f":"IFERROR(D512/C512,\"\")","v":""},null,null,{"$f":"IFERROR(SUMIF(B:B,B512,D:D)/SUMIF(B:B,B512,C:C),\"\")","v":""}]
[null,null,null,null,"",null,null,{"$f":"IFERROR(SUMIF(B:B,B513,D:D)/SUMIF(B:B,B513,C:C),\"\")","v":""}]
[null,null,null,null,"",null,null,{"$f":"IFERROR(SUMIF(B:B,B514,D:D)/SUMIF(B:B,B514,C:C),\"\")","v":""}]
[null,null,null,null,"",null,null,{"$f":"IFERROR(SUMIF(B:B,B515,D:D)/SUMIF(B:B,B515,C:C),\"\")","v":""}]
[null,null,null,null,"",null,null,{"$f":"IFERROR(SUMIF(B:B,B516,D:D)/SUMIF(B:B,B516,C:C),\"\")","v":""}]
[null,null,null,null,"",null,null,{"$f":"IFERROR(SUMIF(B:B,B517,D:D)/SUMIF(B:B,B517,C:C),\"\")","v":""}]
[null,null,null,null,"",null,null,{"$f":"IFERROR(SUMIF(B:B,B518,D:D)/SUMIF(B:B,B518,C:C),\"\")","v":""}]
[null,null,null,null,"",null,null,{"$f":"IFERROR(SUMIF(B:B,B519,D:D)/SUMIF(B:B,B519,C:C),\"\")","v":""}]
[null,null,null,null,"",null,null,{"$f":"IFERROR(SUMIF(B:B,B520,D:D)/SUMIF(B:B,B520,C:C),\"\")","v":""}]
[null,null,null,null,"",null,null,{"$f":"IFERROR(SUMIF(B:B,B521,D:D)/SUMIF(B:B,B521,C:C),\"\")","v":""}]
[null,null,null,null,"",null,null,{"$f":"IFERROR(SUMIF(B:B,B522,D:D)/SUMIF(B:B,B522,C:C),\"\")","v":""}]
[null,null,null,null,"",null,null,{"$f":"IFERROR(SUMIF(B:B,B523,D:D)/SUMIF(B:B,B523,C:C),\"\")","v":""}]
[null,null,null,null,"",null,null,{"$f":"IFERROR(SUMIF(B:B,B524,D:D)/SUMIF(B:B,B524,C:C),\"\")","v":""}]
[null,null,null,null,"",null,null,{"$f":"IFERROR(SUMIF(B:B,B525,D:D)/SUMIF(B:B,B525,C:C),\"\")","v":""}]
[null,null,null,null,"",null,null,{"$f":"IFERROR(SUMIF(B:B,B526,D:D)/SUMIF(B:B,B526,C:C),\"\")","v":""}]
[null,null,null,null,"",null,null,{"$f":"IFERROR(SUMIF(B:B,B527,D:D)/SUMIF(B:B,B527,C:C),\"\")","v":""}]
[null,null,null,null,"",null,null,{"$f":"IFERROR(SUMIF(B:B,B528,D:D)/SUMIF(B:B,B528,C:C),\"\")","v":""}]
[null,null,null,null,"",null,null,{"$f":"IFERROR(SUMIF(B:B,B529,D:D)/SUMIF(B:B,B529,C:C),\"\")","v":""}]
[null,null,null,null,"",null,null,{"$f":"IFERROR(SUMIF(B:B,B530,D:D)/SUMIF(B:B,B530,C:C),\"\")","v":""}]
[null,null,null,null,"",null,null,{"$f":"IFERROR(SUMIF(B:B,B531,D:D)/SUMIF(B:B,B531,C:C),\"\")","v":""}]
[null,null,null,null,"",null,null,{"$f":"IFERROR(SUMIF(B:B,B532,D:D)/SUMIF(B:B,B532,C:C),\"\")","v":""}]
[null,null,null,null,"",null,null,{"$f":"IFERROR(SUMIF(B:B,B533,D:D)/SUMIF(B:B,B533,C:C),\"\")","v":""}]
[null,null,null,null,"",null,null,{"$f":"IFERROR(SUMIF(B:B,B534,D:D)/SUMIF(B:B,B534,C:C),\"\")","v":""}]
[null,null,null,null,"",null,null,{"$f":"IFERROR(SUMIF(B:B,B535,D:D)/SUMIF(B:B,B535,C:C),\"\")","v":""}]
[null,null,null,null,"",null,null,{"$f":"IFERROR(SUMIF(B:B,B536,D:D)/SUMIF(B:B,B536,C:C),\"\")","v":""}]
[null,null,null,null,"",null,null,{"$f":"IFERROR(SUMIF(B:B,B537,D:D)/SUMIF(B:B,B537,C:C),\"\")","v":""}]
[null,null,null,null,"",null,null,{"$f":"IFERROR(SUMIF(B:B,B538,D:D)/SUMIF(B:B,B538,C:C),\"\")","v":""}]
[null,null,null,null,"",null,null,{"$f":"IFERROR(SUMIF(B:B,B539,D:D)/SUMIF(B:B,B539,C:C),\"\")","v":""}]
[null,null,null,null,"",null,null,{"$f":"IFERROR(SUMIF(B:B,B540,D:D)/SUMIF(B:B,B540,C:C),\"\")","v":""}]
[null,null,null,null,"",null,null,{"$f":"IFERROR(SUMIF(B:B,B541,D:D)/SUMIF(B:B,B541,C:C),\"\")","v":""}]
[null,null,null,null,"",null,null,{"$f":"IFERROR(SUMIF(B:B,B542,D:D)/SUMIF(B:B,B542,C:C),\"\")","v":""}]
[null,null,null,null,"",null,null,{"$f":"IFERROR(SUMIF(B:B,B543,D:D)/SUMIF(B:B,B543,C:C),\"\")","v":""}]
[null,null,null,null,"",null,null,{"$f":"IFERROR(SUMIF(B:B,B544,D:D)/SUMIF(B:B,B544,C:C),\"\")","v":""}]
[null,null,null,null,"",null,null,{"$f":"IFERROR(SUMIF(B:B,B545,D:D)/SUMIF(B:B,B545,C:C),\"\")","v":""}]
[null,null,null,null,"",null,null,{"$f":"IFERROR(SUMIF(B:B,B546,D:D)/SUMIF(B:B,B546,C:C),\"\")","v":""}]
[null,null,null,null,"",null,null,{"$f":"IFERROR(SUMIF(B:B,B547,D:D)/SUMIF(B:B,B547,C:C),\"\")","v":""}]
[null,null,null,null,"",null,null,{"$f":"IFERROR(SUMIF(B:B,B548,D:D)/SUMIF(B:B,B548,C:C),\"\")","v":""}]
[null,null,null,null,"",null,null,{"$f":"IFERROR(SUMIF(B:B,B549,D:D)/SUMIF(B:B,B549,C:C),\"\")","v":""}]
[null,null,null,null,"",null,null,{"$f":"IFERROR(SUMIF(B:B,B550,D:D)/SUMIF(B:B,B550,C:C),\"\")","v":""}]
[null,null,null,null,"",null,null,{"$f":"IFERROR(SUMIF(B:B,B551,D:D)/SUMIF(B:B,B551,C:C),\"\")","v":""}]
[null,null,null,null,"",null,null,{"$f":"IFERROR(SUMIF(B:B,B552,D:D)/SUMIF(B:B,B552,C:C),\"\")","v":""}]
[null,null,null,null,"",null,null,{"$f":"IFERROR(SUMIF(B:B,B553,D:D)/SUMIF(B:B,B553,C:C),\"\")","v":""}]
[null,null,null,null,"",null,null,{"$f":"IFERROR(SUMIF(B:B,B554,D:D)/SUMIF(B:B,B554,C:C),\"\")","v":""}]
[null,null,null,null,"",null,null,{"$f":"IFERROR(SUMIF(B:B,B555,D:D)/SUMIF(B:B,B555,C:C),\"\")","v":""}]
[null,null,null,null,"",null,null,{"$f":"IFERROR(SUMIF(B:B,B556,D:D)/SUMIF(B:B,B556,C:C),\"\")","v":""}]
[null,null,null,null,"",null,null,{"$f":"IFERROR(SUMIF(B:B,B557,D:D)/SUMIF(B:B,B557,C:C),\"\")","v":""}]
[null,null,null,null,"",null,null,{"$f":"IFERROR(SUMIF(B:B,B558,D:D)/SUMIF(B:B,B558,C:C),\"\")","v":""}]
[null,null,null,null,"",null,null,{"$f":"IFERROR(SUMIF(B:B,B559,D:D)/SUMIF(B:B,B559,C:C),\"\")","v":""}]
[null,null,null,null,"",null,null,{"$f":"IFERROR(SUMIF(B:B,B560,D:D)/SUMIF(B:B,B560,C:C),\"\")","v":""}]
[null,null,null,null,"",null,null,{"$f":"IFERROR(SUMIF(B:B,B561,D:D)/SUMIF(B:B,B561,C:C),\"\")","v":""}]
[null,null,null,null,"",null,null,{"$f":"IFERROR(SUMIF(B:B,B562,D:D)/SUMIF(B:B,B562,C:C),\"\")","v":""}]
[null,null,null,null,"",null,null,{"$f":"IFERROR(SUMIF(B:B,B563,D:D)/SUMIF(B:B,B563,C:C),\"\")","v":""}]
[null,null,null,null,"",null,null,{"$f":"IFERROR(SUMIF(B:B,B564,D:D)/SUMIF(B:B,B564,C:C),\"\")","v":""}]
[null,null,null,null,"",null,null,{"$f":"IFERROR(SUMIF(B:B,B565,D:D)/SUMIF(B:B,B565,C:C),\"\")","v":""}]
[null,null,null,null,"",null,null,{"$f":"IFERROR(SUMIF(B:B,B566,D:D)/SUMIF(B:B,B566,C:C),\"\")","v":""}]
[null,null,null,null,"",null,null,{"$f":"IFERROR(SUMIF(B:B,B567,D:D)/SUMIF(B:B,B567,C:C),\"\")","v":""}]
[null,null,null,null,"",null,null,{"$f":"IFERROR(SUMIF(B:B,B568,D:D)/SUMIF(B:B,B568,C:C),\"\")","v":""}]
[null,null,null,null,"",null,null,{"$f":"IFERROR(SUMIF(B:B,B569,D:D)/SUMIF(B:B,B569,C:C),\"\")","v":""}]
[null,null,null,null,"",null,null,{"$f":"IFERROR(SUMIF(B:B,B570,D:D)/SUMIF(B:B,B570,C:C),\"\")","v":""}]
[null,null,null,null,"",null,null,{"$f":"IFERROR(SUMIF(B:B,B571,D:D)/SUMIF(B:B,B571,C:C),\"\")","v":""}]
[null,null,null,null,"",null,null,{"$f":"IFERROR(SUMIF(B:B,B572,D:D)/SUMIF(B:B,B572,C:C),\"\")","v":""}]
[null,null,null,null,"",null,null,{"$f":"IFERROR(SUMIF(B:B,B573,D:D)/SUMIF(B:B,B573,C:C),\"\")","v":""}]
[null,null,null,null,"",null,null,{"$f":"IFERROR(SUMIF(B:B,B574,D:D)/SUMIF(B:B,B574,C:C),\"\")","v":""}]
[null,null,null,null,"",null,null,{"$f":"IFERROR(SUMIF(B:B,B575,D:D)/SUMIF(B:B,B575,C:C),\"\")","v":""}]
[null,null,null,null,{"$f":"IFERROR(D576/C576,\"\")","v":""},null,null,{"$f":"IFERROR(SUMIF(B:B,B576,D:D)/SUMIF(B:B,B576,C:C),\"\")","v":""}]
[null,null,null,null,"",null,null,{"$f":"IFERROR(SUMIF(B:B,B577,D:D)/SUMIF(B:B,B577,C:C),\"\")","v":""}]
[null,null,null,null,"",null,null,{"$f":"IFERROR(SUMIF(B:B,B578,D:D)/SUMIF(B:B,B578,C:C),\"\")","v":""}]
[null,null,null,null,"",null,null,{"$f":"IFERROR(SUMIF(B:B,B579,D:D)/SUMIF(B:B,B579,C:C),\"\")","v":""}]
[null,null,null,null,"",null,null,{"$f":"IFERROR(SUMIF(B:B,B580,D:D)/SUMIF(B:B,B580,C:C),\"\")","v":""}]
[null,null,null,null,"",null,null,{"$f":"IFERROR(SUMIF(B:B,B581,D:D)/SUMIF(B:B,B581,C:C),\"\")","v":""}]
[null,null,null,null,"",null,null,{"$f":"IFERROR(SUMIF(B:B,B582,D:D)/SUMIF(B:B,B582,C:C),\"\")","v":""}]
[null,null,null,null,"",null,null,{"$f":"IFERROR(SUMIF(B:B,B583,D:D)/SUMIF(B:B,B583,C:C),\"\")","v":""}]
[null,null,null,null,"",null,null,{"$f":"IFERROR(SUMIF(B:B,B584,D:D)/SUMIF(B:B,B584,C:C),\"\")","v":""}]
[null,null,null,null,"",null,null,{"$f":"IFERROR(SUMIF(B:B,B585,D:D)/SUMIF(B:B,B585,C:C),\"\")","v":""}]
[null,null,null,null,"",null,null,{"$f":"IFERROR(SUMIF(B:B,B586,D:D)/SUMIF(B:B,B586,C:C),\"\")","v":""}]
[null,null,null,null,"",null,null,{"$f":"IFERROR(SUMIF(B:B,B587,D:D)/SUMIF(B:B,B587,C:C),\"\")","v":""}]
[null,null,null,null,"",null,null,{"$f":"IFERROR(SUMIF(B:B,B588,D:D)/SUMIF(B:B,B588,C:C),\"\")","v":""}]
[null,null,null,null,"",null,null,{"$f":"IFERROR(SUMIF(B:B,B589,D:D)/SUMIF(B:B,B589,C:C),\"\")","v":""}]
[null,null,null,null,"",null,null,{"$f":"IFERROR(SUMIF(B:B,B590,D:D)/SUMIF(B:B,B590,C:C),\"\")","v":""}]
[null,null,null,null,"",null,null,{"$f":"IFERROR(SUMIF(B:B,B591,D:D)/SUMIF(B:B,B591,C:C),\"\")","v":""}]
[null,null,null,null,"",null,null,{"$f":"IFERROR(SUMIF(B:B,B592,D:D)/SUMIF(B:B,B592,C:C),\"\")","v":""}]
[null,null,null,null,"",null,null,{"$f":"IFERROR(SUMIF(B:B,B593,D:D)/SUMIF(B:B,B593,C:C),\"\")","v":""}]
[null,null,null,null,"",null,null,{"$f":"IFERROR(SUMIF(B:B,B594,D:D)/SUMIF(B:B,B594,C:C),\"\")","v":""}]
[null,null,null,null,"",null,null,{"$f":"IFERROR(SUMIF(B:B,B595,D:D)/SUMIF(B:B,B595,C:C),\"\")","v":""}]
[null,null,null,null,"",null,null,{"$f":"IFERROR(SUMIF(B:B,B596,D:D)/SUMIF(B:B,B596,C:C),\"\")","v":""}]
[null,null,null,null,"",null,null,{"$f":"IFERROR(SUMIF(B:B,B597,D:D)/SUMIF(B:B,B597,C:C),\"\")","v":""}]
[null,null,null,null,"",null,null,{"$f":"IFERROR(SUMIF(B:B,B598,D:D)/SUMIF(B:B,B598,C:C),\"\")","v":""}]
[null,null,null,null,"",null,null,{"$f":"IFERROR(SUMIF(B:B,B599,D:D)/SUMIF(B:B,B599,C:C),\"\")","v":""}]
[null,null,null,null,"",null,null,{"$f":"IFERROR(SUMIF(B:B,B600,D:D)/SUMIF(B:B,B600,C:C),\"\")","v":""}]
[null,null,null,null,"",null,null,{"$f":"IFERROR(SUMIF(B:B,B601,D:D)/SUMIF(B:B,B601,C:C),\"\")","v":""}]
[null,null,null,null,"",null,null,{"$f":"IFERROR(SUMIF(B:B,B602,D:D)/SUMIF(B:B,B602,C:C),\"\")","v":""}]
[null,null,null,null,"",null,null,{"$f":"IFERROR(SUMIF(B:B,B603,D:D)/SUMIF(B:B,B603,C:C),\"\")","v":""}]
[null,null,null,null,"",null,null,{"$f":"IFERROR(SUMIF(B:B,B604,D:D)/SUMIF(B:B,B604,C:C),\"\")","v":""}]
[null,null,null,null,"",null,null,{"$f":"IFERROR(SUMIF(B:B,B605,D:D)/SUMIF(B:B,B605,C:C),\"\")","v":""}]
[null,null,null,null,"",null,null,{"$f":"IFERROR(SUMIF(B:B,B606,D:D)/SUMIF(B:B,B606,C:C),\"\")","v":""}]
[null,null,null,null,"",null,null,{"$f":"IFERROR(SUMIF(B:B,B607,D:D)/SUMIF(B:B,B607,C:C),\"\")","v":""}]
[null,null,null,null,"",null,null,{"$f":"IFERROR(SUMIF(B:B,B608,D:D)/SUMIF(B:B,B608,C:C),\"\")","v":""}]
[null,null,null,null,"",null,null,{"$f":"IFERROR(SUMIF(B:B,B609,D:D)/SUMIF(B:B,B609,C:C),\"\")","v":""}]
[null,null,null,null,"",null,null,{"$f":"IFERROR(SUMIF(B:B,B610,D:D)/SUMIF(B:B,B610,C:C),\"\")","v":""}]
[null,null,null,null,"",null,null,{"$f":"IFERROR(SUMIF(B:B,B611,D:D)/SUMIF(B:B,B611,C:C),\"\")","v":""}]
[null,null,null,null,"",null,null,{"$f":"IFERROR(SUMIF(B:B,B612,D:D)/SUMIF(B:B,B612,C:C),\"\")","v":""}]
[null,null,null,null,"",null,null,{"$f":"IFERROR(SUMIF(B:B,B613,D:D)/SUMIF(B:B,B613,C:C),\"\")","v":""}]
[null,null,null,null,"",null,null,{"$f":"IFERROR(SUMIF(B:B,B614,D:D)/SUMIF(B:B,B614,C:C),\"\")","v":""}]
[null,null,null,null,"",null,null,{"$f":"IFERROR(SUMIF(B:B,B615,D:D)/SUMIF(B:B,B615,C:C),\"\")","v":""}]
[null,null,null,null,"",null,null,{"$f":"IFERROR(SUMIF(B:B,B616,D:D)/SUMIF(B:B,B616,C:C),\"\")","v":""}]
[null,null,null,null,"",null,null,{"$f":"IFERROR(SUMIF(B:B,B617,D:D)/SUMIF(B:B,B617,C:C),\"\")","v":""}]
[null,null,null,null,"",null,null,{"$f":"IFERROR(SUMIF(B:B,B618,D:D)/SUMIF(B:B,B618,C:C),\"\")","v":""}]
[null,null,null,null,"",null,null,{"$f":"IFERROR(SUMIF(B:B,B619,D:D)/SUMIF(B:B,B619,C:C),\"\")","v":""}]
[null,null,null,null,"",null,null,{"$f":"IFERROR(SUMIF(B:B,B620,D:D)/SUMIF(B:B,B620,C:C),\"\")","v":""}]
[null,null,null,null,"",null,null,{"$f":"IFERROR(SUMIF(B:B,B621,D:D)/SUMIF(B:B,B621,C:C),\"\")","v":""}]
[null,null,null,null,"",null,null,{"$f":"IFERROR(SUMIF(B:B,B622,D:D)/SUMIF(B:B,B622,C:C),\"\")","v":""}]
[null,null,null,null,"",null,null,{"$f":"IFERROR(SUMIF(B:B,B623,D:D)/SUMIF(B:B,B623,C:C),\"\")","v":""}]
[null,null,null,null,"",null,null,{"$f":"IFERROR(SUMIF(B:B,B624,D:D)/SUMIF(B:B,B624,C:C),\"\")","v":""}]
[null,null,null,null,"",null,null,{"$f":"IFERROR(SUMIF(B:B,B625,D:D)/SUMIF(B:B,B625,C:C),\"\")","v":""}]
[null,null,null,null,"",null,null,{"$f":"IFERROR(SUMIF(B:B,B626,D:D)/SUMIF(B:B,B626,C:C),\"\")","v":""}]
[null,null,null,null,"",null,null,{"$f":"IFERROR(SUMIF(B:B,B627,D:D)/SUMIF(B:B,B627,C:C),\"\")","v":""}]
[null,null,null,null,"",null,null,{"$f":"IFERROR(SUMIF(B:B,B628,D:D)/SUMIF(B:B,B628,C:C),\"\")","v":""}]
[null,null,null,null,"",null,null,{"$f":"IFERROR(SUMIF(B:B,B629,D:D)/SUMIF(B:B,B629,C:C),\"\")","v":""}]
[null,null,null,null,"",null,null,{"$f":"IFERROR(SUMIF(B:B,B630,D:D)/SUMIF(B:B,B630,C:C),\"\")","v":""}]
[null,null,null,null,"",null,null,{"$f":"IFERROR(SUMIF(B:B,B631,D:D)/SUMIF(B:B,B631,C:C),\"\")","v":""}]
[null,null,null,null,"",null,null,{"$f":"IFERROR(SUMIF(B:B,B632,D:D)/SUMIF(B:B,B632,C:C),\"\")","v":""}]
[null,null,null,null,"",null,null,{"$f":"IFERROR(SUMIF(B:B,B633,D:D)/SUMIF(B:B,B633,C:C),\"\")","v":""}]
[null,null,null,null,"",null,null,{"$f":"IFERROR(SUMIF(B:B,B634,D:D)/SUMIF(B:B,B634,C:C),\"\")","v":""}]
[null,null,null,null,"",null,null,{"$f":"IFERROR(SUMIF(B:B,B635,D:D)/SUMIF(B:B,B635,C:C),\"\")","v":""}]
[null,null,null,null,"",null,null,{"$f":"IFERROR(SUMIF(B:B,B636,D:D)/SUMIF(B:B,B636,C:C),\"\")","v":""}]
[null,null,null,null,"",null,null,{"$f":"IFERROR(SUMIF(B:B,B637,D:D)/SUMIF(B:B,B637,C:C),\"\")","v":""}]
[null,null,null,null,"",null,null,{"$f":"IFERROR(SUMIF(B:B,B638,D:D)/SUMIF(B:B,B638,C:C),\"\")","v":""}]
[null,null,null,null,"",null,null,{"$f":"IFERROR(SUMIF(B:B,B639,D:D)/SUMIF(B:B,B639,C:C),\"\")","v":""}]
[null,null,null,null,{"$f":"IFERROR(D640/C640,\"\")","v":""},null,null,{"$f":"IFERROR(SUMIF(B:B,B640,D:D)/SUMIF(B:B,B640,C:C),\"\")","v":""}]
[null,null,null,null,"",null,null,{"$f":"IFERROR(SUMIF(B:B,B641,D:D)/SUMIF(B:B,B641,C:C),\"\")","v":""}]
[null,null,null,null,"",null,null,{"$f":"IFERROR(SUMIF(B:B,B642,D:D)/SUMIF(B:B,B642,C:C),\"\")","v":""}]
[null,null,null,null,"",null,null,{"$f":"IFERROR(SUMIF(B:B,B643,D:D)/SUMIF(B:B,B643,C:C),\"\")","v":""}]
[null,null,null,null,"",null,null,{"$f":"IFERROR(SUMIF(B:B,B644,D:D)/SUMIF(B:B,B644,C:C),\"\")","v":""}]
[null,null,null,null,"",null,null,{"$f":"IFERROR(SUMIF(B:B,B645,D:D)/SUMIF(B:B,B645,C:C),\"\")","v":""}]
[null,null,null,null,"",null,null,{"$f":"IFERROR(SUMIF(B:B,B646,D:D)/SUMIF(B:B,B646,C:C),\"\")","v":""}]
[null,null,null,null,"",null,null,{"$f":"IFERROR(SUMIF(B:B,B647,D:D)/SUMIF(B:B,B647,C:C),\"\")","v":""}]
[null,null,null,null,"",null,null,{"$f":"IFERROR(SUMIF(B:B,B648,D:D)/SUMIF(B:B,B648,C:C),\"\")","v":""}]
[null,null,null,null,"",null,null,{"$f":"IFERROR(SUMIF(B:B,B649,D:D)/SUMIF(B:B,B649,C:C),\"\")","v":""}]
[null,null,null,null,"",null,null,{"$f":"IFERROR(SUMIF(B:B,B650,D:D)/SUMIF(B:B,B650,C:C),\"\")","v":""}]
[null,null,null,null,"",null,null,{"$f":"IFERROR(SUMIF(B:B,B651,D:D)/SUMIF(B:B,B651,C:C),\"\")","v":""}]
[null,null,null,null,"",null,null,{"$f":"IFERROR(SUMIF(B:B,B652,D:D)/SUMIF(B:B,B652,C:C),\"\")","v":""}]
[null,null,null,null,"",null,null,{"$f":"IFERROR(SUMIF(B:B,B653,D:D)/SUMIF(B:B,B653,C:C),\"\")","v":""}]
[null,null,null,null,"",null,null,{"$f":"IFERROR(SUMIF(B:B,B654,D:D)/SUMIF(B:B,B654,C:C),\"\")","v":""}]
[null,null,null,null,"",null,null,{"$f":"IFERROR(SUMIF(B:B,B655,D:D)/SUMIF(B:B,B655,C:C),\"\")","v":""}]
[null,null,null,null,"",null,null,{"$f":"IFERROR(SUMIF(B:B,B656,D:D)/SUMIF(B:B,B656,C:C),\"\")","v":""}]
[null,null,null,null,"",null,null,{"$f":"IFERROR(SUMIF(B:B,B657,D:D)/SUMIF(B:B,B657,C:C),\"\")","v":""}]
[null,null,null,null,"",null,null,{"$f":"IFERROR(SUMIF(B:B,B658,D:D)/SUMIF(B:B,B658,C:C),\"\")","v":""}]
[null,null,null,null,"",null,null,{"$f":"IFERROR(SUMIF(B:B,B659,D:D)/SUMIF(B:B,B659,C:C),\"\")","v":""}]
[null,null,null,null,"",null,null,{"$f":"IFERROR(SUMIF(B:B,B660,D:D)/SUMIF(B:B,B660,C:C),\"\")","v":""}]
[null,null,null,null,"",null,null,{"$f":"IFERROR(SUMIF(B:B,B661,D:D)/SUMIF(B:B,B661,C:C),\"\")","v":""}]
[null,null,null,null,"",null,null,{"$f":"IFERROR(SUMIF(B:B,B662,D:D)/SUMIF(B:B,B662,C:C),\"\")","v":""}]
[null,null,null,null,"",null,null,{"$f":"IFERROR(SUMIF(B:B,B663,D:D)/SUMIF(B:B,B663,C:C),\"\")","v":""}]
[null,null,null,null,"",null,null,{"$f":"IFERROR(SUMIF(B:B,B664,D:D)/SUMIF(B:B,B664,C:C),\"\")","v":""}]
[null,null,null,null,"",null,null,{"$f":"IFERROR(SUMIF(B:B,B665,D:D)/SUMIF(B:B,B665,C:C),\"\")","v":""}]
[null,null,null,null,"",null,null,{"$f":"IFERROR(SUMIF(B:B,B666,D:D)/SUMIF(B:B,B666,C:C),\"\")","v":""}]
[null,null,null,null,"",null,null,{"$f":"IFERROR(SUMIF(B:B,B667,D:D)/SUMIF(B:B,B667,C:C),\"\")","v":""}]
[null,null,null,null,"",null,null,{"$f":"IFERROR(SUMIF(B:B,B668,D:D)/SUMIF(B:B,B668,C:C),\"\")","v":""}]
[null,null,null,null,"",null,null,{"$f":"IFERROR(SUMIF(B:B,B669,D:D)/SUMIF(B:B,B669,C:C),\"\")","v":""}]
[null,null,null,null,"",null,null,{"$f":"IFERROR(SUMIF(B:B,B670,D:D)/SUMIF(B:B,B670,C:C),\"\")","v":""}]
[null,null,null,null,"",null,null,{"$f":"IFERROR(SUMIF(B:B,B671,D:D)/SUMIF(B:B,B671,C:C),\"\")","v":""}]
[null,null,null,null,"",null,null,{"$f":"IFERROR(SUMIF(B:B,B672,D:D)/SUMIF(B:B,B672,C:C),\"\")","v":""}]
[null,null,null,null,"",null,null,{"$f":"IFERROR(SUMIF(B:B,B673,D:D)/SUMIF(B:B,B673,C:C),\"\")","v":""}]
[null,null,null,null,"",null,null,{"$f":"IFERROR(SUMIF(B:B,B674,D:D)/SUMIF(B:B,B674,C:C),\"\")","v":""}]
[null,null,null,null,"",null,null,{"$f":"IFERROR(SUMIF(B:B,B675,D:D)/SUMIF(B:B,B675,C:C),\"\")","v":""}]
[null,null,null,null,"",null,null,{"$f":"IFERROR(SUMIF(B:B,B676,D:D)/SUMIF(B:B,B676,C:C),\"\")","v":""}]
[null,null,null,null,"",null,null,{"$f":"IFERROR(SUMIF(B:B,B677,D:D)/SUMIF(B:B,B677,C:C),\"\")","v":""}]
[null,null,null,null,"",null,null,{"$f":"IFERROR(SUMIF(B:B,B678,D:D)/SUMIF(B:B,B678,C:C),\"\")","v":""}]
[null,null,null,null,"",null,null,{"$f":"IFERROR(SUMIF(B:B,B679,D:D)/SUMIF(B:B,B679,C:C),\"\")","v":""}]
[null,null,null,null,"",null,null,{"$f":"IFERROR(SUMIF(B:B,B680,D:D)/SUMIF(B:B,B680,C:C),\"\")","v":""}]
[null,null,null,null,"",null,null,{"$f":"IFERROR(SUMIF(B:B,B681,D:D)/SUMIF(B:B,B681,C:C),\"\")","v":""}]
[null,null,null,null,"",null,null,{"$f":"IFERROR(SUMIF(B:B,B682,D:D)/SUMIF(B:B,B682,C:C),\"\")","v":""}]
[null,null,null,null,"",null,null,{"$f":"IFERROR(SUMIF(B:B,B683,D:D)/SUMIF(B:B,B683,C:C),\"\")","v":""}]
[null,null,null,null,"",null,null,{"$f":"IFERROR(SUMIF(B:B,B684,D:D)/SUMIF(B:B,B684,C:C),\"\")","v":""}]
[null,null,null,null,"",null,null,{"$f":"IFERROR(SUMIF(B:B,B685,D:D)/SUMIF(B:B,B685,C:C),\"\")","v":""}]
[null,null,null,null,"",null,null,{"$f":"IFERROR(SUMIF(B:B,B686,D:D)/SUMIF(B:B,B686,C:C),\"\")","v":""}]
[null,null,null,null,"",null,null,{"$f":"IFERROR(SUMIF(B:B,B687,D:D)/SUMIF(B:B,B687,C:C),\"\")","v":""}]
[null,null,null,null,"",null,null,{"$f":"IFERROR(SUMIF(B:B,B688,D:D)/SUMIF(B:B,B688,C:C),\"\")","v":""}]
[null,null,null,null,"",null,null,{"$f":"IFERROR(SUMIF(B:B,B689,D:D)/SUMIF(B:B,B689,C:C),\"\")","v":""}]
[null,null,null,null,"",null,null,{"$f":"IFERROR(SUMIF(B:B,B690,D:D)/SUMIF(B:B,B690,C:C),\"\")","v":""}]
[null,null,null,null,"",null,null,{"$f":"IFERROR(SUMIF(B:B,B691,D:D)/SUMIF(B:B,B691,C:C),\"\")","v":""}]
[null,null,null,null,"",null,null,{"$f":"IFERROR(SUMIF(B:B,B692,D:D)/SUMIF(B:B,B692,C:C),\"\")","v":""}]
[null,null,null,null,"",null,null,{"$f":"IFERROR(SUMIF(B:B,B693,D:D)/SUMIF(B:B,B693,C:C),\"\")","v":""}]
[null,null,null,null,"",null,null,{"$f":"IFERROR(SUMIF(B:B,B694,D:D)/SUMIF(B:B,B694,C:C),\"\")","v":""}]
[null,null,null,null,"",null,null,{"$f":"IFERROR(SUMIF(B:B,B695,D:D)/SUMIF(B:B,B695,C:C),\"\")","v":""}]
[null,null,null,null,"",null,null,{"$f":"IFERROR(SUMIF(B:B,B696,D:D)/SUMIF(B:B,B696,C:C),\"\")","v":""}]
[null,null,null,null,"",null,null,{"$f":"IFERROR(SUMIF(B:B,B697,D:D)/SUMIF(B:B,B697,C:C),\"\")","v":""}]
[null,null,null,null,"",null,null,{"$f":"IFERROR(SUMIF(B:B,B698,D:D)/SUMIF(B:B,B698,C:C),\"\")","v":""}]
[null,null,null,null,"",null,null,{"$f":"IFERROR(SUMIF(B:B,B699,D:D)/SUMIF(B:B,B699,C:C),\"\")","v":""}]
[null,null,null,null,"",null,null,{"$f":"IFERROR(SUMIF(B:B,B700,D:D)/SUMIF(B:B,B700,C:C),\"\")","v":""}]
[null,null,null,null,"",null,null,{"$f":"IFERROR(SUMIF(B:B,B701,D:D)/SUMIF(B:B,B701,C:C),\"\")","v":""}]
[null,null,null,null,"",null,null,{"$f":"IFERROR(SUMIF(B:B,B702,D:D)/SUMIF(B:B,B702,C:C),\"\")","v":""}]
[null,null,null,null,"",null,null,{"$f":"IFERROR(SUMIF(B:B,B703,D:D)/SUMIF(B:B,B703,C:C),\"\")","v":""}]
[null,null,null,null,{"$f":"IFERROR(D704/C704,\"\")","v":""},null,null,{"$f":"IFERROR(SUMIF(B:B,B704,D:D)/SUMIF(B:B,B704,C:C),\"\")","v":""}]
[null,null,null,null,"",null,null,{"$f":"IFERROR(SUMIF(B:B,B705,D:D)/SUMIF(B:B,B705,C:C),\"\")","v":""}]
[null,null,null,null,"",null,null,{"$f":"IFERROR(SUMIF(B:B,B706,D:D)/SUMIF(B:B,B706,C:C),\"\")","v":""}]
[null,null,null,null,"",null,null,{"$f":"IFERROR(SUMIF(B:B,B707,D:D)/SUMIF(B:B,B707,C:C),\"\")","v":""}]
[null,null,null,null,"",null,null,{"$f":"IFERROR(SUMIF(B:B,B708,D:D)/SUMIF(B:B,B708,C:C),\"\")","v":""}]
[null,null,null,null,"",null,null,{"$f":"IFERROR(SUMIF(B:B,B709,D:D)/SUMIF(B:B,B709,C:C),\"\")","v":""}]
[null,null,null,null,"",null,null,{"$f":"IFERROR(SUMIF(B:B,B710,D:D)/SUMIF(B:B,B710,C:C),\"\")","v":""}]
[null,null,null,null,"",null,null,{"$f":"IFERROR(SUMIF(B:B,B711,D:D)/SUMIF(B:B,B711,C:C),\"\")","v":""}]
[null,null,null,null,"",null,null,{"$f":"IFERROR(SUMIF(B:B,B712,D:D)/SUMIF(B:B,B712,C:C),\"\")","v":""}]
[null,null,null,null,"",null,null,{"$f":"IFERROR(SUMIF(B:B,B713,D:D)/SUMIF(B:B,B713,C:C),\"\")","v":""}]
[null,null,null,null,"",null,null,{"$f":"IFERROR(SUMIF(B:B,B714,D:D)/SUMIF(B:B,B714,C:C),\"\")","v":""}]
[null,null,null,null,"",null,null,{"$f":"IFERROR(SUMIF(B:B,B715,D:D)/SUMIF(B:B,B715,C:C),\"\")","v":""}]
[null,null,null,null,"",null,null,{"$f":"IFERROR(SUMIF(B:B,B716,D:D)/SUMIF(B:B,B716,C:C),\"\")","v":""}]
[null,null,null,null,"",null,null,{"$f":"IFERROR(SUMIF(B:B,B717,D:D)/SUMIF(B:B,B717,C:C),\"\")","v":""}]
[null,null,null,null,"",null,null,{"$f":"IFERROR(SUMIF(B:B,B718,D:D)/SUMIF(B:B,B718,C:C),\"\")","v":""}]
[null,null,null,null,"",null,null,{"$f":"IFERROR(SUMIF(B:B,B719,D:D)/SUMIF(B:B,B719,C:C),\"\")","v":""}]
[null,null,null,null,"",null,null,{"$f":"IFERROR(SUMIF(B:B,B720,D:D)/SUMIF(B:B,B720,C:C),\"\")","v":""}]
[null,null,null,null,"",null,null,{"$f":"IFERROR(SUMIF(B:B,B721,D:D)/SUMIF(B:B,B721,C:C),\"\")","v":""}]
[null,null,null,null,"",null,null,{"$f":"IFERROR(SUMIF(B:B,B722,D:D)/SUMIF(B:B,B722,C:C),\"\")","v":""}]
[null,null,null,null,"",null,null,{"$f":"IFERROR(SUMIF(B:B,B723,D:D)/SUMIF(B:B,B723,C:C),\"\")","v":""}]
[null,null,null,null,"",null,null,{"$f":"IFERROR(SUMIF(B:B,B724,D:D)/SUMIF(B:B,B724,C:C),\"\")","v":""}]
[null,null,null,null,"",null,null,{"$f":"IFERROR(SUMIF(B:B,B725,D:D)/SUMIF(B:B,B725,C:C),\"\")","v":""}]
[null,null,null,null,"",null,null,{"$f":"IFERROR(SUMIF(B:B,B726,D:D)/SUMIF(B:B,B726,C:C),\"\")","v":""}]
[null,null,null,null,"",null,null,{"$f":"IFERROR(SUMIF(B:B,B727,D:D)/SUMIF(B:B,B727,C:C),\"\")","v":""}]
[null,null,null,null,"",null,null,{"$f":"IFERROR(SUMIF(B:B,B728,D:D)/SUMIF(B:B,B728,C:C),\"\")","v":""}]
[null,null,null,null,"",null,null,{"$f":"IFERROR(SUMIF(B:B,B729,D:D)/SUMIF(B:B,B729,C:C),\"\")","v":""}]
[null,null,null,null,"",null,null,{"$f":"IFERROR(SUMIF(B:B,B730,D:D)/SUMIF(B:B,B730,C:C),\"\")","v":""}]
[null,null,null,null,"",null,null,{"$f":"IFERROR(SUMIF(B:B,B731,D:D)/SUMIF(B:B,B731,C:C),\"\")","v":""}]
[null,null,null,null,"",null,null,{"$f":"IFERROR(SUMIF(B:B,B732,D:D)/SUMIF(B:B,B732,C:C),\"\")","v":""}]
[null,null,null,null,"",null,null,{"$f":"IFERROR(SUMIF(B:B,B733,D:D)/SUMIF(B:B,B733,C:C),\"\")","v":""}]
[null,null,null,null,"",null,null,{"$f":"IFERROR(SUMIF(B:B,B734,D:D)/SUMIF(B:B,B734,C:C),\"\")","v":""}]
[null,null,null,null,"",null,null,{"$f":"IFERROR(SUMIF(B:B,B735,D:D)/SUMIF(B:B,B735,C:C),\"\")","v":""}]
[null,null,null,null,"",null,null,{"$f":"IFERROR(SUMIF(B:B,B736,D:D)/SUMIF(B:B,B736,C:C),\"\")","v":""}]
[null,null,null,null,"",null,null,{"$f":"IFERROR(SUMIF(B:B,B737,D:D)/SUMIF(B:B,B737,C:C),\"\")","v":""}]
[null,null,null,null,"",null,null,{"$f":"IFERROR(SUMIF(B:B,B738,D:D)/SUMIF(B:B,B738,C:C),\"\")","v":""}]
[null,null,null,null,"",null,null,{"$f":"IFERROR(SUMIF(B:B,B739,D:D)/SUMIF(B:B,B739,C:C),\"\")","v":""}]
[null,null,null,null,"",null,null,{"$f":"IFERROR(SUMIF(B:B,B740,D:D)/SUMIF(B:B,B740,C:C),\"\")","v":""}]
[null,null,null,null,"",null,null,{"$f":"IFERROR(SUMIF(B:B,B741,D:D)/SUMIF(B:B,B741,C:C),\"\")","v":""}]
[null,null,null,null,"",null,null,{"$f":"IFERROR(SUMIF(B:B,B742,D:D)/SUMIF(B:B,B742,C:C),\"\")","v":""}]
[null,null,null,null,"",null,null,{"$f":"IFERROR(SUMIF(B:B,B743,D:D)/SUMIF(B:B,B743,C:C),\"\")","v":""}]
[null,null,null,null,"",null,null,{"$f":"IFERROR(SUMIF(B:B,B744,D:D)/SUMIF(B:B,B744,C:C),\"\")","v":""}]
[null,null,null,null,"",null,null,{"$f":"IFERROR(SUMIF(B:B,B745,D:D)/SUMIF(B:B,B745,C:C),\"\")","v":""}]
[null,null,null,null,"",null,null,{"$f":"IFERROR(SUMIF(B:B,B746,D:D)/SUMIF(B:B,B746,C:C),\"\")","v":""}]
[null,null,null,null,"",null,null,{"$f":"IFERROR(SUMIF(B:B,B747,D:D)/SUMIF(B:B,B747,C:C),\"\")","v":""}]
[null,null,null,null,"",null,null,{"$f":"IFERROR(SUMIF(B:B,B748,D:D)/SUMIF(B:B,B748,C:C),\"\")","v":""}]
[null,null,null,null,"",null,null,{"$f":"IFERROR(SUMIF(B:B,B749,D:D)/SUMIF(B:B,B749,C:C),\"\")","v":""}]
[null,null,null,null,"",null,null,{"$f":"IFERROR(SUMIF(B:B,B750,D:D)/SUMIF(B:B,B750,C:C),\"\")","v":""}]
[null,null,null,null,"",null,null,{"$f":"IFERROR(SUMIF(B:B,B751,D:D)/SUMIF(B:B,B751,C:C),\"\")","v":""}]
[null,null,null,null,"",null,null,{"$f":"IFERROR(SUMIF(B:B,B752,D:D)/SUMIF(B:B,B752,C:C),\"\")","v":""}]
[null,null,null,null,"",null,null,{"$f":"IFERROR(SUMIF(B:B,B753,D:D)/SUMIF(B:B,B753,C:C),\"\")","v":""}]
[null,null,null,null,"",null,null,{"$f":"IFERROR(SUMIF(B:B,B754,D:D)/SUMIF(B:B,B754,C:C),\"\")","v":""}]
[null,null,null,null,"",null,null,{"$f":"IFERROR(SUMIF(B:B,B755,D:D)/SUMIF(B:B,B755,C:C),\"\")","v":""}]
[null,null,null,null,"",null,null,{"$f":"IFERROR(SUMIF(B:B,B756,D:D)/SUMIF(B:B,B756,C:C),\"\")","v":""}]
[null,null,null,null,"",null,null,{"$f":"IFERROR(SUMIF(B:B,B757,D:D)/SUMIF(B:B,B757,C:C),\"\")","v":""}]
[null,null,null,null,"",null,null,{"$f":"IFERROR(SUMIF(B:B,B758,D:D)/SUMIF(B:B,B758,C:C),\"\")","v":""}]
[null,null,null,null,"",null,null,{"$f":"IFERROR(SUMIF(B:B,B759,D:D)/SUMIF(B:B,B759,C:C),\"\")","v":""}]
[null,null,null,null,"",null,null,{"$f":"IFERROR(SUMIF(B:B,B760,D:D)/SUMIF(B:B,B760,C:C),\"\")","v":""}]
[null,null,null,null,"",null,null,{"$f":"IFERROR(SUMIF(B:B,B761,D:D)/SUMIF(B:B,B761,C:C),\"\")","v":""}]
[null,null,null,null,"",null,null,{"$f":"IFERROR(SUMIF(B:B,B762,D:D)/SUMIF(B:B,B762,C:C),\"\")","v":""}]
[null,null,null,null,"",null,null,{"$f":"IFERROR(SUMIF(B:B,B763,D:D)/SUMIF(B:B,B763,C:C),\"\")","v":""}]
[null,null,null,null,"",null,null,{"$f":"IFERROR(SUMIF(B:B,B764,D:D)/SUMIF(B:B,B764,C:C),\"\")","v":""}]
[null,null,null,null,"",null,null,{"$f":"IFERROR(SUMIF(B:B,B765,D:D)/SUMIF(B:B,B765,C:C),\"\")","v":""}]
[null,null,null,null,"",null,null,{"$f":"IFERROR(SUMIF(B:B,B766,D:D)/SUMIF(B:B,B766,C:C),\"\")","v":""}]
[null,null,null,null,"",null,null,{"$f":"IFERROR(SUMIF(B:B,B767,D:D)/SUMIF(B:B,B767,C:C),\"\")","v":""}]
[null,null,null,null,{"$f":"IFERROR(D768/C768,\"\")","v":""},null,null,{"$f":"IFERROR(SUMIF(B:B,B768,D:D)/SUMIF(B:B,B768,C:C),\"\")","v":""}]
[null,null,null,null,"",null,null,{"$f":"IFERROR(SUMIF(B:B,B769,D:D)/SUMIF(B:B,B769,C:C),\"\")","v":""}]
[null,null,null,null,"",null,null,{"$f":"IFERROR(SUMIF(B:B,B770,D:D)/SUMIF(B:B,B770,C:C),\"\")","v":""}]
[null,null,null,null,"",null,null,{"$f":"IFERROR(SUMIF(B:B,B771,D:D)/SUMIF(B:B,B771,C:C),\"\")","v":""}]
[null,null,null,null,"",null,null,{"$f":"IFERROR(SUMIF(B:B,B772,D:D)/SUMIF(B:B,B772,C:C),\"\")","v":""}]
[null,null,null,null,"",null,null,{"$f":"IFERROR(SUMIF(B:B,B773,D:D)/SUMIF(B:B,B773,C:C),\"\")","v":""}]
[null,null,null,null,"",null,null,{"$f":"IFERROR(SUMIF(B:B,B774,D:D)/SUMIF(B:B,B774,C:C),\"\")","v":""}]
[null,null,null,null,"",null,null,{"$f":"IFERROR(SUMIF(B:B,B775,D:D)/SUMIF(B:B,B775,C:C),\"\")","v":""}]
[null,null,null,null,"",null,null,{"$f":"IFERROR(SUMIF(B:B,B776,D:D)/SUMIF(B:B,B776,C:C),\"\")","v":""}]
[null,null,null,null,"",null,null,{"$f":"IFERROR(SUMIF(B:B,B777,D:D)/SUMIF(B:B,B777,C:C),\"\")","v":""}]
[null,null,null,null,"",null,null,{"$f":"IFERROR(SUMIF(B:B,B778,D:D)/SUMIF(B:B,B778,C:C),\"\")","v":""}]
[null,null,null,null,"",null,null,{"$f":"IFERROR(SUMIF(B:B,B779,D:D)/SUMIF(B:B,B779,C:C),\"\")","v":""}]
[null,null,null,null,"",null,null,{"$f":"IFERROR(SUMIF(B:B,B780,D:D)/SUMIF(B:B,B780,C:C),\"\")","v":""}]
[null,null,null,null,"",null,null,{"$f":"IFERROR(SUMIF(B:B,B781,D:D)/SUMIF(B:B,B781,C:C),\"\")","v":""}]
[null,null,null,null,"",null,null,{"$f":"IFERROR(SUMIF(B:B,B782,D:D)/SUMIF(B:B,B782,C:C),\"\")","v":""}]
[null,null,null,null,"",null,null,{"$f":"IFERROR(SUMIF(B:B,B783,D:D)/SUMIF(B:B,B783,C:C),\"\")","v":""}]
[null,null,null,null,"",null,null,{"$f":"IFERROR(SUMIF(B:B,B784,D:D)/SUMIF(B:B,B784,C:C),\"\")","v":""}]
[null,null,null,null,"",null,null,{"$f":"IFERROR(SUMIF(B:B,B785,D:D)/SUMIF(B:B,B785,C:C),\"\")","v":""}]
[null,null,null,null,"",null,null,{"$f":"IFERROR(SUMIF(B:B,B786,D:D)/SUMIF(B:B,B786,C:C),\"\")","v":""}]
[null,null,null,null,"",null,null,{"$f":"IFERROR(SUMIF(B:B,B787,D:D)/SUMIF(B:B,B787,C:C),\"\")","v":""}]
[null,null,null,null,"",null,null,{"$f":"IFERROR(SUMIF(B:B,B788,D:D)/SUMIF(B:B,B788,C:C),\"\")","v":""}]
[null,null,null,null,"",null,null,{"$f":"IFERROR(SUMIF(B:B,B789,D:D)/SUMIF(B:B,B789,C:C),\"\")","v":""}]
[null,null,null,null,"",null,null,{"$f":"IFERROR(SUMIF(B:B,B790,D:D)/SUMIF(B:B,B790,C:C),\"\")","v":""}]
[null,null,null,null,"",null,null,{"$f":"IFERROR(SUMIF(B:B,B791,D:D)/SUMIF(B:B,B791,C:C),\"\")","v":""}]
[null,null,null,null,"",null,null,{"$f":"IFERROR(SUMIF(B:B,B792,D:D)/SUMIF(B:B,B792,C:C),\"\")","v":""}]
[null,null,null,null,"",null,null,{"$f":"IFERROR(SUMIF(B:B,B793,D:D)/SUMIF(B:B,B793,C:C),\"\")","v":""}]
[null,null,null,null,"",null,null,{"$f":"IFERROR(SUMIF(B:B,B794,D:D)/SUMIF(B:B,B794,C:C),\"\")","v":""}]
[null,null,null,null,"",null,null,{"$f":"IFERROR(SUMIF(B:B,B795,D:D)/SUMIF(B:B,B795,C:C),\"\")","v":""}]
[null,null,null,null,"",null,null,{"$f":"IFERROR(SUMIF(B:B,B796,D:D)/SUMIF(B:B,B796,C:C),\"\")","v":""}]
[null,null,null,null,"",null,null,{"$f":"IFERROR(SUMIF(B:B,B797,D:D)/SUMIF(B:B,B797,C:C),\"\")","v":""}]
[null,null,null,null,"",null,null,{"$f":"IFERROR(SUMIF(B:B,B798,D:D)/SUMIF(B:B,B798,C:C),\"\")","v":""}]
[null,null,null,null,"",null,null,{"$f":"IFERROR(SUMIF(B:B,B799,D:D)/SUMIF(B:B,B799,C:C),\"\")","v":""}]
[null,null,null,null,"",null,null,{"$f":"IFERROR(SUMIF(B:B,B800,D:D)/SUMIF(B:B,B800,C:C),\"\")","v":""}]
[null,null,null,null,"",null,null,{"$f":"IFERROR(SUMIF(B:B,B801,D:D)/SUMIF(B:B,B801,C:C),\"\")","v":""}]
[null,null,null,null,"",null,null,{"$f":"IFERROR(SUMIF(B:B,B802,D:D)/SUMIF(B:B,B802,C:C),\"\")","v":""}]
[null,null,null,null,"",null,null,{"$f":"IFERROR(SUMIF(B:B,B803,D:D)/SUMIF(B:B,B803,C:C),\"\")","v":""}]
[null,null,null,null,"",null,null,{"$f":"IFERROR(SUMIF(B:B,B804,D:D)/SUMIF(B:B,B804,C:C),\"\")","v":""}]
[null,null,null,null,"",null,null,{"$f":"IFERROR(SUMIF(B:B,B805,D:D)/SUMIF(B:B,B805,C:C),\"\")","v":""}]
[null,null,null,null,"",null,null,{"$f":"IFERROR(SUMIF(B:B,B806,D:D)/SUMIF(B:B,B806,C:C),\"\")","v":""}]
[null,null,null,null,"",null,null,{"$f":"IFERROR(SUMIF(B:B,B807,D:D)/SUMIF(B:B,B807,C:C),\"\")","v":""}]
[null,null,null,null,"",null,null,{"$f":"IFERROR(SUMIF(B:B,B808,D:D)/SUMIF(B:B,B808,C:C),\"\")","v":""}]
[null,null,null,null,"",null,null,{"$f":"IFERROR(SUMIF(B:B,B809,D:D)/SUMIF(B:B,B809,C:C),\"\")","v":""}]
[null,null,null,null,"",null,null,{"$f":"IFERROR(SUMIF(B:B,B810,D:D)/SUMIF(B:B,B810,C:C),\"\")","v":""}]
[null,null,null,null,"",null,null,{"$f":"IFERROR(SUMIF(B:B,B811,D:D)/SUMIF(B:B,B811,C:C),\"\")","v":""}]
[null,null,null,null,"",null,null,{"$f":"IFERROR(SUMIF(B:B,B812,D:D)/SUMIF(B:B,B812,C:C),\"\")","v":""}]
[null,null,null,null,"",null,null,{"$f":"IFERROR(SUMIF(B:B,B813,D:D)/SUMIF(B:B,B813,C:C),\"\")","v":""}]
[null,null,null,null,"",null,null,{"$f":"IFERROR(SUMIF(B:B,B814,D:D)/SUMIF(B:B,B814,C:C),\"\")","v":""}]
[null,null,null,null,"",null,null,{"$f":"IFERROR(SUMIF(B:B,B815,D:D)/SUMIF(B:B,B815,C:C),\"\")","v":""}]
[null,null,null,null,"",null,null,{"$f":"IFERROR(SUMIF(B:B,B816,D:D)/SUMIF(B:B,B816,C:C),\"\")","v":""}]
[null,null,null,null,"",null,null,{"$f":"IFERROR(SUMIF(B:B,B817,D:D)/SUMIF(B:B,B817,C:C),\"\")","v":""}]
[null,null,null,null,"",null,null,{"$f":"IFERROR(SUMIF(B:B,B818,D:D)/SUMIF(B:B,B818,C:C),\"\")","v":""}]
[null,null,null,null,"",null,null,{"$f":"IFERROR(SUMIF(B:B,B819,D:D)/SUMIF(B:B,B819,C:C),\"\")","v":""}]
[null,null,null,null,"",null,null,{"$f":"IFERROR(SUMIF(B:B,B820,D:D)/SUMIF(B:B,B820,C:C),\"\")","v":""}]
[null,null,null,null,"",null,null,{"$f":"IFERROR(SUMIF(B:B,B821,D:D)/SUMIF(B:B,B821,C:C),\"\")","v":""}]
[null,null,null,null,"",null,null,{"$f":"IFERROR(SUMIF(B:B,B822,D:D)/SUMIF(B:B,B822,C:C),\"\")","v":""}]
[null,null,null,null,"",null,null,{"$f":"IFERROR(SUMIF(B:B,B823,D:D)/SUMIF(B:B,B823,C:C),\"\")","v":""}]
[null,null,null,null,"",null,null,{"$f":"IFERROR(SUMIF(B:B,B824,D:D)/SUMIF(B:B,B824,C:C),\"\")","v":""}]
[null,null,null,null,"",null,null,{"$f":"IFERROR(SUMIF(B:B,B825,D:D)/SUMIF(B:B,B825,C:C),\"\")","v":""}]
[null,null,null,null,"",null,null,{"$f":"IFERROR(SUMIF(B:B,B826,D:D)/SUMIF(B:B,B826,C:C),\"\")","v":""}]
[null,null,null,null,"",null,null,{"$f":"IFERROR(SUMIF(B:B,B827,D:D)/SUMIF(B:B,B827,C:C),\"\")","v":""}]
[null,null,null,null,"",null,null,{"$f":"IFERROR(SUMIF(B:B,B828,D:D)/SUMIF(B:B,B828,C:C),\"\")","v":""}]
[null,null,null,null,"",null,null,{"$f":"IFERROR(SUMIF(B:B,B829,D:D)/SUMIF(B:B,B829,C:C),\"\")","v":""}]
[null,null,null,null,"",null,null,{"$f":"IFERROR(SUMIF(B:B,B830,D:D)/SUMIF(B:B,B830,C:C),\"\")","v":""}]
[null,null,null,null,"",null,null,{"$f":"IFERROR(SUMIF(B:B,B831,D:D)/SUMIF(B:B,B831,C:C),\"\")","v":""}]
[null,null,null,null,{"$f":"IFERROR(D832/C832,\"\")","v":""},null,null,{"$f":"IFERROR(SUMIF(B:B,B832,D:D)/SUMIF(B:B,B832,C:C),\"\")","v":""}]
[null,null,null,null,"",null,null,{"$f":"IFERROR(SUMIF(B:B,B833,D:D)/SUMIF(B:B,B833,C:C),\"\")","v":""}]
[null,null,null,null,"",null,null,{"$f":"IFERROR(SUMIF(B:B,B834,D:D)/SUMIF(B:B,B834,C:C),\"\")","v":""}]
[null,null,null,null,"",null,null,{"$f":"IFERROR(SUMIF(B:B,B835,D:D)/SUMIF(B:B,B835,C:C),\"\")","v":""}]
[null,null,null,null,"",null,null,{"$f":"IFERROR(SUMIF(B:B,B836,D:D)/SUMIF(B:B,B836,C:C),\"\")","v":""}]
[null,null,null,null,"",null,null,{"$f":"IFERROR(SUMIF(B:B,B837,D:D)/SUMIF(B:B,B837,C:C),\"\")","v":""}]
[null,null,null,null,"",null,null,{"$f":"IFERROR(SUMIF(B:B,B838,D:D)/SUMIF(B:B,B838,C:C),\"\")","v":""}]
[null,null,null,null,"",null,null,{"$f":"IFERROR(SUMIF(B:B,B839,D:D)/SUMIF(B:B,B839,C:C),\"\")","v":""}]
[null,null,null,null,"",null,null,{"$f":"IFERROR(SUMIF(B:B,B840,D:D)/SUMIF(B:B,B840,C:C),\"\")","v":""}]
[null,null,null,null,"",null,null,{"$f":"IFERROR(SUMIF(B:B,B841,D:D)/SUMIF(B:B,B841,C:C),\"\")","v":""}]
[null,null,null,null,"",null,null,{"$f":"IFERROR(SUMIF(B:B,B842,D:D)/SUMIF(B:B,B842,C:C),\"\")","v":""}]
[null,null,null,null,"",null,null,{"$f":"IFERROR(SUMIF(B:B,B843,D:D)/SUMIF(B:B,B843,C:C),\"\")","v":""}]
[null,null,null,null,"",null,null,{"$f":"IFERROR(SUMIF(B:B,B844,D:D)/SUMIF(B:B,B844,C:C),\"\")","v":""}]
[null,null,null,null,"",null,null,{"$f":"IFERROR(SUMIF(B:B,B845,D:D)/SUMIF(B:B,B845,C:C),\"\")","v":""}]
[null,null,null,null,"",null,null,{"$f":"IFERROR(SUMIF(B:B,B846,D:D)/SUMIF(B:B,B846,C:C),\"\")","v":""}]
[null,null,null,null,"",null,null,{"$f":"IFERROR(SUMIF(B:B,B847,D:D)/SUMIF(B:B,B847,C:C),\"\")","v":""}]
[null,null,null,null,"",null,null,{"$f":"IFERROR(SUMIF(B:B,B848,D:D)/SUMIF(B:B,B848,C:C),\"\")","v":""}]
[null,null,null,null,"",null,null,{"$f":"IFERROR(SUMIF(B:B,B849,D:D)/SUMIF(B:B,B849,C:C),\"\")","v":""}]
[null,null,null,null,"",null,null,{"$f":"IFERROR(SUMIF(B:B,B850,D:D)/SUMIF(B:B,B850,C:C),\"\")","v":""}]
[null,null,null,null,"",null,null,{"$f":"IFERROR(SUMIF(B:B,B851,D:D)/SUMIF(B:B,B851,C:C),\"\")","v":""}]
[null,null,null,null,"",null,null,{"$f":"IFERROR(SUMIF(B:B,B852,D:D)/SUMIF(B:B,B852,C:C),\"\")","v":""}]
[null,null,null,null,"",null,null,{"$f":"IFERROR(SUMIF(B:B,B853,D:D)/SUMIF(B:B,B853,C:C),\"\")","v":""}]
[null,null,null,null,"",null,null,{"$f":"IFERROR(SUMIF(B:B,B854,D:D)/SUMIF(B:B,B854,C:C),\"\")","v":""}]
[null,null,null,null,"",null,null,{"$f":"IFERROR(SUMIF(B:B,B855,D:D)/SUMIF(B:B,B855,C:C),\"\")","v":""}]
[null,null,null,null,"",null,null,{"$f":"IFERROR(SUMIF(B:B,B856,D:D)/SUMIF(B:B,B856,C:C),\"\")","v":""}]
[null,null,null,null,"",null,null,{"$f":"IFERROR(SUMIF(B:B,B857,D:D)/SUMIF(B:B,B857,C:C),\"\")","v":""}]
[null,null,null,null,"",null,null,{"$f":"IFERROR(SUMIF(B:B,B858,D:D)/SUMIF(B:B,B858,C:C),\"\")","v":""}]
[null,null,null,null,"",null,null,{"$f":"IFERROR(SUMIF(B:B,B859,D:D)/SUMIF(B:B,B859,C:C),\"\")","v":""}]
[null,null,null,null,"",null,null,{"$f":"IFERROR(SUMIF(B:B,B860,D:D)/SUMIF(B:B,B860,C:C),\"\")","v":""}]
[null,null,null,null,"",null,null,{"$f":"IFERROR(SUMIF(B:B,B861,D:D)/SUMIF(B:B,B861,C:C),\"\")","v":""}]
[null,null,null,null,"",null,null,{"$f":"IFERROR(SUMIF(B:B,B862,D:D)/SUMIF(B:B,B862,C:C),\"\")","v":""}]
[null,null,null,null,"",null,null,{"$f":"IFERROR(SUMIF(B:B,B863,D:D)/SUMIF(B:B,B863,C:C),\"\")","v":""}]
[null,null,null,null,"",null,null,{"$f":"IFERROR(SUMIF(B:B,B864,D:D)/SUMIF(B:B,B864,C:C),\"\")","v":""}]
[null,null,null,null,"",null,null,{"$f":"IFERROR(SUMIF(B:B,B865,D:D)/SUMIF(B:B,B865,C:C),\"\")","v":""}]
[null,null,null,null,"",null,null,{"$f":"IFERROR(SUMIF(B:B,B866,D:D)/SUMIF(B:B,B866,C:C),\"\")","v":""}]
[null,null,null,null,"",null,null,{"$f":"IFERROR(SUMIF(B:B,B867,D:D)/SUMIF(B:B,B867,C:C),\"\")","v":""}]
[null,null,null,null,"",null,null,{"$f":"IFERROR(SUMIF(B:B,B868,D:D)/SUMIF(B:B,B868,C:C),\"\")","v":""}]
[null,null,null,null,"",null,null,{"$f":"IFERROR(SUMIF(B:B,B869,D:D)/SUMIF(B:B,B869,C:C),\"\")","v":""}]
[null,null,null,null,"",null,null,{"$f":"IFERROR(SUMIF(B:B,B870,D:D)/SUMIF(B:B,B870,C:C),\"\")","v":""}]
[null,null,null,null,"",null,null,{"$f":"IFERROR(SUMIF(B:B,B871,D:D)/SUMIF(B:B,B871,C:C),\"\")","v":""}]
[null,null,null,null,"",null,null,{"$f":"IFERROR(SUMIF(B:B,B872,D:D)/SUMIF(B:B,B872,C:C),\"\")","v":""}]
[null,null,null,null,"",null,null,{"$f":"IFERROR(SUMIF(B:B,B873,D:D)/SUMIF(B:B,B873,C:C),\"\")","v":""}]
[null,null,null,null,"",null,null,{"$f":"IFERROR(SUMIF(B:B,B874,D:D)/SUMIF(B:B,B874,C:C),\"\")","v":""}]
[null,null,null,null,"",null,null,{"$f":"IFERROR(SUMIF(B:B,B875,D:D)/SUMIF(B:B,B875,C:C),\"\")","v":""}]
[null,null,null,null,"",null,null,{"$f":"IFERROR(SUMIF(B:B,B876,D:D)/SUMIF(B:B,B876,C:C),\"\")","v":""}]
[null,null,null,null,"",null,null,{"$f":"IFERROR(SUMIF(B:B,B877,D:D)/SUMIF(B:B,B877,C:C),\"\")","v":""}]
[null,null,null,null,"",null,null,{"$f":"IFERROR(SUMIF(B:B,B878,D:D)/SUMIF(B:B,B878,C:C),\"\")","v":""}]
[null,null,null,null,"",null,null,{"$f":"IFERROR(SUMIF(B:B,B879,D:D)/SUMIF(B:B,B879,C:C),\"\")","v":""}]
[null,null,null,null,"",null,null,{"$f":"IFERROR(SUMIF(B:B,B880,D:D)/SUMIF(B:B,B880,C:C),\"\")","v":""}]
[null,null,null,null,"",null,null,{"$f":"IFERROR(SUMIF(B:B,B881,D:D)/SUMIF(B:B,B881,C:C),\"\")","v":""}]
[null,null,null,null,"",null,null,{"$f":"IFERROR(SUMIF(B:B,B882,D:D)/SUMIF(B:B,B882,C:C),\"\")","v":""}]
[null,null,null,null,"",null,null,{"$f":"IFERROR(SUMIF(B:B,B883,D:D)/SUMIF(B:B,B883,C:C),\"\")","v":""}]
[null,null,null,null,"",null,null,{"$f":"IFERROR(SUMIF(B:B,B884,D:D)/SUMIF(B:B,B884,C:C),\"\")","v":""}]
[null,null,null,null,"",null,null,{"$f":"IFERROR(SUMIF(B:B,B885,D:D)/SUMIF(B:B,B885,C:C),\"\")","v":""}]
[null,null,null,null,"",null,null,{"$f":"IFERROR(SUMIF(B:B,B886,D:D)/SUMIF(B:B,B886,C:C),\"\")","v":""}]
[null,null,null,null,"",null,null,{"$f":"IFERROR(SUMIF(B:B,B887,D:D)/SUMIF(B:B,B887,C:C),\"\")","v":""}]
[null,null,null,null,"",null,null,{"$f":"IFERROR(SUMIF(B:B,B888,D:D)/SUMIF(B:B,B888,C:C),\"\")","v":""}]
[null,null,null,null,"",null,null,{"$f":"IFERROR(SUMIF(B:B,B889,D:D)/SUMIF(B:B,B889,C:C),\"\")","v":""}]
[null,null,null,null,"",null,null,{"$f":"IFERROR(SUMIF(B:B,B890,D:D)/SUMIF(B:B,B890,C:C),\"\")","v":""}]
[null,null,null,null,"",null,null,{"$f":"IFERROR(SUMIF(B:B,B891,D:D)/SUMIF(B:B,B891,C:C),\"\")","v":""}]
[null,null,null,null,"",null,null,{"$f":"IFERROR(SUMIF(B:B,B892,D:D)/SUMIF(B:B,B892,C:C),\"\")","v":""}]
[null,null,null,null,"",null,null,{"$f":"IFERROR(SUMIF(B:B,B893,D:D)/SUMIF(B:B,B893,C:C),\"\")","v":""}]
[null,null,null,null,"",null,null,{"$f":"IFERROR(SUMIF(B:B,B894,D:D)/SUMIF(B:B,B894,C:C),\"\")","v":""}]
[null,null,null,null,"",null,null,{"$f":"IFERROR(SUMIF(B:B,B895,D:D)/SUMIF(B:B,B895,C:C),\"\")","v":""}]
[null,null,null,null,{"$f":"IFERROR(D896/C896,\"\")","v":""},null,null,{"$f":"IFERROR(SUMIF(B:B,B896,D:D)/SUMIF(B:B,B896,C:C),\"\")","v":""}]
[null,null,null,null,"",null,null,{"$f":"IFERROR(SUMIF(B:B,B897,D:D)/SUMIF(B:B,B897,C:C),\"\")","v":""}]
[null,null,null,null,"",null,null,{"$f":"IFERROR(SUMIF(B:B,B898,D:D)/SUMIF(B:B,B898,C:C),\"\")","v":""}]
[null,null,null,null,"",null,null,{"$f":"IFERROR(SUMIF(B:B,B899,D:D)/SUMIF(B:B,B899,C:C),\"\")","v":""}]
[null,null,null,null,"",null,null,{"$f":"IFERROR(SUMIF(B:B,B900,D:D)/SUMIF(B:B,B900,C:C),\"\")","v":""}]
[null,null,null,null,"",null,null,{"$f":"IFERROR(SUMIF(B:B,B901,D:D)/SUMIF(B:B,B901,C:C),\"\")","v":""}]
[null,null,null,null,"",null,null,{"$f":"IFERROR(SUMIF(B:B,B902,D:D)/SUMIF(B:B,B902,C:C),\"\")","v":""}]
[null,null,null,null,"",null,null,{"$f":"IFERROR(SUMIF(B:B,B903,D:D)/SUMIF(B:B,B903,C:C),\"\")","v":""}]
[null,null,null,null,"",null,null,{"$f":"IFERROR(SUMIF(B:B,B904,D:D)/SUMIF(B:B,B904,C:C),\"\")","v":""}]
[null,null,null,null,"",null,null,{"$f":"IFERROR(SUMIF(B:B,B905,D:D)/SUMIF(B:B,B905,C:C),\"\")","v":""}]
[null,null,null,null,"",null,null,{"$f":"IFERROR(SUMIF(B:B,B906,D:D)/SUMIF(B:B,B906,C:C),\"\")","v":""}]
[null,null,null,null,"",null,null,{"$f":"IFERROR(SUMIF(B:B,B907,D:D)/SUMIF(B:B,B907,C:C),\"\")","v":""}]
[null,null,null,null,"",null,null,{"$f":"IFERROR(SUMIF(B:B,B908,D:D)/SUMIF(B:B,B908,C:C),\"\")","v":""}]
[null,null,null,null,"",null,null,{"$f":"IFERROR(SUMIF(B:B,B909,D:D)/SUMIF(B:B,B909,C:C),\"\")","v":""}]
[null,null,null,null,"",null,null,{"$f":"IFERROR(SUMIF(B:B,B910,D:D)/SUMIF(B:B,B910,C:C),\"\")","v":""}]
[null,null,null,null,"",null,null,{"$f":"IFERROR(SUMIF(B:B,B911,D:D)/SUMIF(B:B,B911,C:C),\"\")","v":""}]
[null,null,null,null,"",null,null,{"$f":"IFERROR(SUMIF(B:B,B912,D:D)/SUMIF(B:B,B912,C:C),\"\")","v":""}]
[null,null,null,null,"",null,null,{"$f":"IFERROR(SUMIF(B:B,B913,D:D)/SUMIF(B:B,B913,C:C),\"\")","v":""}]
[null,null,null,null,"",null,null,{"$f":"IFERROR(SUMIF(B:B,B914,D:D)/SUMIF(B:B,B914,C:C),\"\")","v":""}]
[null,null,null,null,"",null,null,{"$f":"IFERROR(SUMIF(B:B,B915,D:D)/SUMIF(B:B,B915,C:C),\"\")","v":""}]
[null,null,null,null,"",null,null,{"$f":"IFERROR(SUMIF(B:B,B916,D:D)/SUMIF(B:B,B916,C:C),\"\")","v":""}]
[null,null,null,null,"",null,null,{"$f":"IFERROR(SUMIF(B:B,B917,D:D)/SUMIF(B:B,B917,C:C),\"\")","v":""}]
[null,null,null,null,"",null,null,{"$f":"IFERROR(SUMIF(B:B,B918,D:D)/SUMIF(B:B,B918,C:C),\"\")","v":""}]
[null,null,null,null,"",null,null,{"$f":"IFERROR(SUMIF(B:B,B919,D:D)/SUMIF(B:B,B919,C:C),\"\")","v":""}]
[null,null,null,null,"",null,null,{"$f":"IFERROR(SUMIF(B:B,B920,D:D)/SUMIF(B:B,B920,C:C),\"\")","v":""}]
[null,null,null,null,"",null,null,{"$f":"IFERROR(SUMIF(B:B,B921,D:D)/SUMIF(B:B,B921,C:C),\"\")","v":""}]
[null,null,null,null,"",null,null,{"$f":"IFERROR(SUMIF(B:B,B922,D:D)/SUMIF(B:B,B922,C:C),\"\")","v":""}]
[null,null,null,null,"",null,null,{"$f":"IFERROR(SUMIF(B:B,B923,D:D)/SUMIF(B:B,B923,C:C),\"\")","v":""}]
[null,null,null,null,"",null,null,{"$f":"IFERROR(SUMIF(B:B,B924,D:D)/SUMIF(B:B,B924,C:C),\"\")","v":""}]
[null,null,null,null,"",null,null,{"$f":"IFERROR(SUMIF(B:B,B925,D:D)/SUMIF(B:B,B925,C:C),\"\")","v":""}]
[null,null,null,null,"",null,null,{"$f":"IFERROR(SUMIF(B:B,B926,D:D)/SUMIF(B:B,B926,C:C),\"\")","v":""}]
[null,null,null,null,"",null,null,{"$f":"IFERROR(SUMIF(B:B,B927,D:D)/SUMIF(B:B,B927,C:C),\"\")","v":""}]
[null,null,null,null,"",null,null,{"$f":"IFERROR(SUMIF(B:B,B928,D:D)/SUMIF(B:B,B928,C:C),\"\")","v":""}]
[null,null,null,null,"",null,null,{"$f":"IFERROR(SUMIF(B:B,B929,D:D)/SUMIF(B:B,B929,C:C),\"\")","v":""}]
[null,null,null,null,"",null,null,{"$f":"IFERROR(SUMIF(B:B,B930,D:D)/SUMIF(B:B,B930,C:C),\"\")","v":""}]
[null,null,null,null,"",null,null,{"$f":"IFERROR(SUMIF(B:B,B931,D:D)/SUMIF(B:B,B931,C:C),\"\")","v":""}]
[null,null,null,null,"",null,null,{"$f":"IFERROR(SUMIF(B:B,B932,D:D)/SUMIF(B:B,B932,C:C),\"\")","v":""}]
[null,null,null,null,"",null,null,{"$f":"IFERROR(SUMIF(B:B,B933,D:D)/SUMIF(B:B,B933,C:C),\"\")","v":""}]
[null,null,null,null,"",null,null,{"$f":"IFERROR(SUMIF(B:B,B934,D:D)/SUMIF(B:B,B934,C:C),\"\")","v":""}]
[null,null,null,null,"",null,null,{"$f":"IFERROR(SUMIF(B:B,B935,D:D)/SUMIF(B:B,B935,C:C),\"\")","v":""}]
[null,null,null,null,"",null,null,{"$f":"IFERROR(SUMIF(B:B,B936,D:D)/SUMIF(B:B,B936,C:C),\"\")","v":""}]
[null,null,null,null,"",null,null,{"$f":"IFERROR(SUMIF(B:B,B937,D:D)/SUMIF(B:B,B937,C:C),\"\")","v":""}]
[null,null,null,null,"",null,null,{"$f":"IFERROR(SUMIF(B:B,B938,D:D)/SUMIF(B:B,B938,C:C),\"\")","v":""}]
[null,null,null,null,"",null,null,{"$f":"IFERROR(SUMIF(B:B,B939,D:D)/SUMIF(B:B,B939,C:C),\"\")","v":""}]
[null,null,null,null,"",null,null,{"$f":"IFERROR(SUMIF(B:B,B940,D:D)/SUMIF(B:B,B940,C:C),\"\")","v":""}]
[null,null,null,null,"",null,null,{"$f":"IFERROR(SUMIF(B:B,B941,D:D)/SUMIF(B:B,B941,C:C),\"\")","v":""}]
[null,null,null,null,"",null,null,{"$f":"IFERROR(SUMIF(B:B,B942,D:D)/SUMIF(B:B,B942,C:C),\"\")","v":""}]
[null,null,null,null,"",null,null,{"$f":"IFERROR(SUMIF(B:B,B943,D:D)/SUMIF(B:B,B943,C:C),\"\")","v":""}]
[null,null,null,null,"",null,null,{"$f":"IFERROR(SUMIF(B:B,B944,D:D)/SUMIF(B:B,B944,C:C),\"\")","v":""}]
[null,null,null,null,"",null,null,{"$f":"IFERROR(SUMIF(B:B,B945,D:D)/SUMIF(B:B,B945,C:C),\"\")","v":""}]
[null,null,null,null,"",null,null,{"$f":"IFERROR(SUMIF(B:B,B946,D:D)/SUMIF(B:B,B946,C:C),\"\")","v":""}]
[null,null,null,null,"",null,null,{"$f":"IFERROR(SUMIF(B:B,B947,D:D)/SUMIF(B:B,B947,C:C),\"\")","v":""}]
[null,null,null,null,"",null,null,{"$f":"IFERROR(SUMIF(B:B,B948,D:D)/SUMIF(B:B,B948,C:C),\"\")","v":""}]
[null,null,null,null,"",null,null,{"$f":"IFERROR(SUMIF(B:B,B949,D:D)/SUMIF(B:B,B949,C:C),\"\")","v":""}]
[null,null,null,null,"",null,null,{"$f":"IFERROR(SUMIF(B:B,B950,D:D)/SUMIF(B:B,B950,C:C),\"\")","v":""}]
[null,null,null,null,"",null,null,{"$f":"IFERROR(SUMIF(B:B,B951,D:D)/SUMIF(B:B,B951,C:C),\"\")","v":""}]
[null,null,null,null,"",null,null,{"$f":"IFERROR(SUMIF(B:B,B952,D:D)/SUMIF(B:B,B952,C:C),\"\")","v":""}]
[null,null,null,null,"",null,null,{"$f":"IFERROR(SUMIF(B:B,B953,D:D)/SUMIF(B:B,B953,C:C),\"\")","v":""}]
[null,null,null,null,"",null,null,{"$f":"IFERROR(SUMIF(B:B,B954,D:D)/SUMIF(B:B,B954,C:C),\"\")","v":""}]
[null,null,null,null,"",null,null,{"$f":"IFERROR(SUMIF(B:B,B955,D:D)/SUMIF(B:B,B955,C:C),\"\")","v":""}]
[null,null,null,null,"",null,null,{"$f":"IFERROR(SUMIF(B:B,B956,D:D)/SUMIF(B:B,B956,C:C),\"\")","v":""}]
[null,null,null,null,"",null,null,{"$f":"IFERROR(SUMIF(B:B,B957,D:D)/SUMIF(B:B,B957,C:C),\"\")","v":""}]
[null,null,null,null,"",null,null,{"$f":"IFERROR(SUMIF(B:B,B958,D:D)/SUMIF(B:B,B958,C:C),\"\")","v":""}]
[null,null,null,null,"",null,null,{"$f":"IFERROR(SUMIF(B:B,B959,D:D)/SUMIF(B:B,B959,C:C),\"\")","v":""}]
[null,null,null,null,{"$f":"IFERROR(D960/C960,\"\")","v":""},null,null,{"$f":"IFERROR(SUMIF(B:B,B960,D:D)/SUMIF(B:B,B960,C:C),\"\")","v":""}]
[null,null,null,null,"",null,null,{"$f":"IFERROR(SUMIF(B:B,B961,D:D)/SUMIF(B:B,B961,C:C),\"\")","v":""}]
[null,null,null,null,"",null,null,{"$f":"IFERROR(SUMIF(B:B,B962,D:D)/SUMIF(B:B,B962,C:C),\"\")","v":""}]
[null,null,null,null,"",null,null,{"$f":"IFERROR(SUMIF(B:B,B963,D:D)/SUMIF(B:B,B963,C:C),\"\")","v":""}]
[null,null,null,null,"",null,null,{"$f":"IFERROR(SUMIF(B:B,B964,D:D)/SUMIF(B:B,B964,C:C),\"\")","v":""}]
[null,null,null,null,"",null,null,{"$f":"IFERROR(SUMIF(B:B,B965,D:D)/SUMIF(B:B,B965,C:C),\"\")","v":""}]
[null,null,null,null,"",null,null,{"$f":"IFERROR(SUMIF(B:B,B966,D:D)/SUMIF(B:B,B966,C:C),\"\")","v":""}]
[null,null,null,null,"",null,null,{"$f":"IFERROR(SUMIF(B:B,B967,D:D)/SUMIF(B:B,B967,C:C),\"\")","v":""}]
[null,null,null,null,"",null,null,{"$f":"IFERROR(SUMIF(B:B,B968,D:D)/SUMIF(B:B,B968,C:C),\"\")","v":""}]
[null,null,null,null,"",null,null,{"$f":"IFERROR(SUMIF(B:B,B969,D:D)/SUMIF(B:B,B969,C:C),\"\")","v":""}]
[null,null,null,null,"",null,null,{"$f":"IFERROR(SUMIF(B:B,B970,D:D)/SUMIF(B:B,B970,C:C),\"\")","v":""}]
[null,null,null,null,"",null,null,{"$f":"IFERROR(SUMIF(B:B,B971,D:D)/SUMIF(B:B,B971,C:C),\"\")","v":""}]
[null,null,null,null,"",null,null,{"$f":"IFERROR(SUMIF(B:B,B972,D:D)/SUMIF(B:B,B972,C:C),\"\")","v":""}]
[null,null,null,null,"",null,null,{"$f":"IFERROR(SUMIF(B:B,B973,D:D)/SUMIF(B:B,B973,C:C),\"\")","v":""}]
[null,null,null,null,"",null,null,{"$f":"IFERROR(SUMIF(B:B,B974,D:D)/SUMIF(B:B,B974,C:C),\"\")","v":""}]
[null,null,null,null,"",null,null,{"$f":"IFERROR(SUMIF(B:B,B975,D:D)/SUMIF(B:B,B975,C:C),\"\")","v":""}]
[null,null,null,null,"",null,null,{"$f":"IFERROR(SUMIF(B:B,B976,D:D)/SUMIF(B:B,B976,C:C),\"\")","v":""}]
[null,null,null,null,"",null,null,{"$f":"IFERROR(SUMIF(B:B,B977,D:D)/SUMIF(B:B,B977,C:C),\"\")","v":""}]
[null,null,null,null,"",null,null,{"$f":"IFERROR(SUMIF(B:B,B978,D:D)/SUMIF(B:B,B978,C:C),\"\")","v":""}]
[null,null,null,null,"",null,null,{"$f":"IFERROR(SUMIF(B:B,B979,D:D)/SUMIF(B:B,B979,C:C),\"\")","v":""}]
[null,null,null,null,"",null,null,{"$f":"IFERROR(SUMIF(B:B,B980,D:D)/SUMIF(B:B,B980,C:C),\"\")","v":""}]
[null,null,null,null,"",null,null,{"$f":"IFERROR(SUMIF(B:B,B981,D:D)/SUMIF(B:B,B981,C:C),\"\")","v":""}]
[null,null,null,null,"",null,null,{"$f":"IFERROR(SUMIF(B:B,B982,D:D)/SUMIF(B:B,B982,C:C),\"\")","v":""}]
[null,null,null,null,"",null,null,{"$f":"IFERROR(SUMIF(B:B,B983,D:D)/SUMIF(B:B,B983,C:C),\"\")","v":""}]
[null,null,null,null,"",null,null,{"$f":"IFERROR(SUMIF(B:B,B984,D:D)/SUMIF(B:B,B984,C:C),\"\")","v":""}]
[null,null,null,null,"",null,null,{"$f":"IFERROR(SUMIF(B:B,B985,D:D)/SUMIF(B:B,B985,C:C),\"\")","v":""}]
[null,null,null,null,"",null,null,{"$f":"IFERROR(SUMIF(B:B,B986,D:D)/SUMIF(B:B,B986,C:C),\"\")","v":""}]
[null,null,null,null,"",null,null,{"$f":"IFERROR(SUMIF(B:B,B987,D:D)/SUMIF(B:B,B987,C:C),\"\")","v":""}]
[null,null,null,null,"",null,null,{"$f":"IFERROR(SUMIF(B:B,B988,D:D)/SUMIF(B:B,B988,C:C),\"\")","v":""}]
[null,null,null,null,"",null,null,{"$f":"IFERROR(SUMIF(B:B,B989,D:D)/SUMIF(B:B,B989,C:C),\"\")","v":""}]
[null,null,null,null,"",null,null,{"$f":"IFERROR(SUMIF(B:B,B990,D:D)/SUMIF(B:B,B990,C:C),\"\")","v":""}]
[null,null,null,null,"",null,null,{"$f":"IFERROR(SUMIF(B:B,B991,D:D)/SUMIF(B:B,B991,C:C),\"\")","v":""}]
[null,null,null,null,"",null,null,{"$f":"IFERROR(SUMIF(B:B,B992,D:D)/SUMIF(B:B,B992,C:C),\"\")","v":""}]
[null,null,null,null,"",null,null,{"$f":"IFERROR(SUMIF(B:B,B993,D:D)/SUMIF(B:B,B993,C:C),\"\")","v":""}]
[null,null,null,null,"",null,null,{"$f":"IFERROR(SUMIF(B:B,B994,D:D)/SUMIF(B:B,B994,C:C),\"\")","v":""}]
[null,null,null,null,"",null,null,{"$f":"IFERROR(SUMIF(B:B,B995,D:D)/SUMIF(B:B,B995,C:C),\"\")","v":""}]
[null,null,null,null,"",null,null,{"$f":"IFERROR(SUMIF(B:B,B996,D:D)/SUMIF(B:B,B996,C:C),\"\")","v":""}]
[null,null,null,null,"",null,null,{"$f":"IFERROR(SUMIF(B:B,B997,D:D)/SUMIF(B:B,B997,C:C),\"\")","v":""}]
[null,null,null,null,"",null,null,{"$f":"IFERROR(SUMIF(B:B,B998,D:D)/SUMIF(B:B,B998,C:C),\"\")","v":""}]
[null,null,null,null,""]
[null,null,null,null,""]
[null,null,null,null,""]
[null,null,null,null,""]

{"sheet":"SaleInfo","index":2,"n_rows":1002,"n_cols":6,"rows_kept":1002,"cut":false,"hidden":false,"merged":[[0,3,0,4]]}
["Sale Info",null,null,"Only enter shares sold, not bought.\n(Enter Volume Sold and Stock)"]
["Date","Stock","Volume Sold","Total Value Sold","Share Sale Price","Notes"]
["2019-06-12","NCBFG (JMD)",12000,2520000,{"$f":"IFERROR(D3/C3,\"\")","v":210}]
[null,null,null,null,{"$f":"IFERROR(D4/C4,\"\")","v":""}]
[null,null,null,null,""]
[null,null,null,null,""]
[null,null,null,null,""]
[null,null,null,null,""]
[null,null,null,null,""]
[null,null,null,null,""]
[null,null,null,null,""]
[null,null,null,null,""]
[null,null,null,null,""]
[null,null,null,null,""]
[null,null,null,null,""]
[null,null,null,null,""]
[null,null,null,null,""]
[null,null,null,null,""]
[null,null,null,null,""]
[null,null,null,null,""]
[null,null,null,null,""]
[null,null,null,null,""]
[null,null,null,null,""]
[null,null,null,null,""]
[null,null,null,null,""]
[null,null,null,null,""]
[null,null,null,null,""]
[null,null,null,null,""]
[null,null,null,null,""]
[null,null,null,null,""]
[null,null,null,null,""]
[null,null,null,null,""]
[null,null,null,null,""]
[null,null,null,null,""]
[null,null,null,null,""]
[null,null,null,null,""]
[null,null,null,null,""]
[null,null,null,null,""]
[null,null,null,null,""]
[null,null,null,null,""]
[null,null,null,null,""]
[null,null,null,null,""]
[null,null,null,null,""]
[null,null,null,null,""]
[null,null,null,null,""]
[null,null,null,null,""]
[null,null,null,null,""]
[null,null,null,null,""]
[null,null,null,null,""]
[null,null,null,null,""]
[null,null,null,null,""]
[null,null,null,null,""]
[null,null,null,null,""]
[null,null,null,null,""]
[null,null,null,null,""]
[null,null,null,null,""]
[null,null,null,null,""]
[null,null,null,null,""]
[null,null,null,null,""]
[null,null,null,null,""]
[null,null,null,null,""]
[null,null,null,null,""]
[null,null,null,null,""]
[null,null,null,null,""]
[null,null,null,null,""]
[null,null,null,null,""]
[null,null,null,null,""]
[null,null,null,null,{"$f":"IFERROR(D68/C68,\"\")","v":""}]
[null,null,null,null,""]
[null,null,null,null,""]
[null,null,null,null,""]
[null,null,null,null,""]
[null,null,null,null,""]
[null,null,null,null,""]
[null,null,null,null,""]
[null,null,null,null,""]
[null,null,null,null,""]
[null,null,null,null,""]
[null,null,null,null,""]
[null,null,null,null,""]
[null,null,null,null,""]
[null,null,null,null,""]
[null,null,null,null,""]
[null,null,null,null,""]
[null,null,null,null,""]
[null,null,null,null,""]
[null,null,null,null,""]
[null,null,null,null,""]
[null,null,null,null,""]
[null,null,null,null,""]
[null,null,null,null,""]
[null,null,null,null,""]
[null,null,null,null,""]
[null,null,null,null,""]
[null,null,null,null,""]
[null,null,null,null,""]
[null,null,null,null,""]
[null,null,null,null,""]
[null,null,null,null,""]
[null,null,null,null,""]
[null,null,null,null,""]
[null,null,null,null,""]
[null,null,null,null,""]
[null,null,null,null,""]
[null,null,null,null,""]
[null,null,null,null,""]
[null,null,null,null,""]
[null,null,null,null,""]
[null,null,null,null,""]
[null,null,null,null,""]
[null,null,null,null,""]
[null,null,null,null,""]
[null,null,null,null,""]
[null,null,null,null,""]
[null,null,null,null,""]
[null,null,null,null,""]
[null,null,null,null,""]
[null,null,null,null,""]
[null,null,null,null,""]
[null,null,null,null,""]
[null,null,null,null,""]
[null,null,null,null,""]
[null,null,null,null,""]
[null,null,null,null,""]
[null,null,null,null,""]
[null,null,null,null,""]
[null,null,null,null,""]
[null,null,null,null,""]
[null,null,null,null,""]
[null,null,null,null,""]
[null,null,null,null,""]
[null,null,null,null,{"$f":"IFERROR(D132/C132,\"\")","v":""}]
[null,null,null,null,""]
[null,null,null,null,""]
[null,null,null,null,""]
[null,null,null,null,""]
[null,null,null,null,""]
[null,null,null,null,""]
[null,null,null,null,""]
[null,null,null,null,""]
[null,null,null,null,""]
[null,null,null,null,""]
[null,null,null,null,""]
[null,null,null,null,""]
[null,null,null,null,""]
[null,null,null,null,""]
[null,null,null,null,""]
[null,null,null,null,""]
[null,null,null,null,""]
[null,null,null,null,""]
[null,null,null,null,""]
[null,null,null,null,""]
[null,null,null,null,""]
[null,null,null,null,""]
[null,null,null,null,""]
[null,null,null,null,""]
[null,null,null,null,""]
[null,null,null,null,""]
[null,null,null,null,""]
[null,null,null,null,""]
[null,null,null,null,""]
[null,null,null,null,""]
[null,null,null,null,""]
[null,null,null,null,""]
[null,null,null,null,""]
[null,null,null,null,""]
[null,null,null,null,""]
[null,null,null,null,""]
[null,null,null,null,""]
[null,null,null,null,""]
[null,null,null,null,""]
[null,null,null,null,""]
[null,null,null,null,""]
[null,null,null,null,""]
[null,null,null,null,""]
[null,null,null,null,""]
[null,null,null,null,""]
[null,null,null,null,""]
[null,null,null,null,""]
[null,null,null,null,""]
[null,null,null,null,""]
[null,null,null,null,""]
[null,null,null,null,""]
[null,null,null,null,""]
[null,null,null,null,""]
[null,null,null,null,""]
[null,null,null,null,""]
[null,null,null,null,""]
[null,null,null,null,""]
[null,null,null,null,""]
[null,null,null,null,""]
[null,null,null,null,""]
[null,null,null,null,""]
[null,null,null,null,""]
[null,null,null,null,""]
[null,null,null,null,{"$f":"IFERROR(D196/C196,\"\")","v":""}]
[null,null,null,null,""]
[null,null,null,null,""]
[null,null,null,null,""]
[null,null,null,null,""]
[null,null,null,null,""]
[null,null,null,null,""]
[null,null,null,null,""]
[null,null,null,null,""]
[null,null,null,null,""]
[null,null,null,null,""]
[null,null,null,null,""]
[null,null,null,null,""]
[null,null,null,null,""]
[null,null,null,null,""]
[null,null,null,null,""]
[null,null,null,null,""]
[null,null,null,null,""]
[null,null,null,null,""]
[null,null,null,null,""]
[null,null,null,null,""]
[null,null,null,null,""]
[null,null,null,null,""]
[null,null,null,null,""]
[null,null,null,null,""]
[null,null,null,null,""]
[null,null,null,null,""]
[null,null,null,null,""]
[null,null,null,null,""]
[null,null,null,null,""]
[null,null,null,null,""]
[null,null,null,null,""]
[null,null,null,null,""]
[null,null,null,null,""]
[null,null,null,null,""]
[null,null,null,null,""]
[null,null,null,null,""]
[null,null,null,null,""]
[null,null,null,null,""]
[null,null,null,null,""]
[null,null,null,null,""]
[null,null,null,null,""]
[null,null,null,null,""]
[null,null,null,null,""]
[null,null,null,null,""]
[null,null,null,null,""]
[null,null,null,null,""]
[null,null,null,null,""]
[null,null,null,null,""]
[null,null,null,null,""]
[null,null,null,null,""]
[null,null,null,null,""]
[null,null,null,null,""]
[null,null,null,null,""]
[null,null,null,null,""]
[null,null,null,null,""]
[null,null,null,null,""]
[null,null,null,null,""]
[null,null,null,null,""]
[null,null,null,null,""]
[null,null,null,null,""]
[null,null,null,null,""]
[null,null,null,null,""]
[null,null,null,null,""]
[null,null,null,null,{"$f":"IFERROR(D260/C260,\"\")","v":""}]
[null,null,null,null,""]
[null,null,null,null,""]
[null,null,null,null,""]
[null,null,null,null,""]
[null,null,null,null,""]
[null,null,null,null,""]
[null,null,null,null,""]
[null,null,null,null,""]
[null,null,null,null,""]
[null,null,null,null,""]
[null,null,null,null,""]
[null,null,null,null,""]
[null,null,null,null,""]
[null,null,null,null,""]
[null,null,null,null,""]
[null,null,null,null,""]
[null,null,null,null,""]
[null,null,null,null,""]
[null,null,null,null,""]
[null,null,null,null,""]
[null,null,null,null,""]
[null,null,null,null,""]
[null,null,null,null,""]
[null,null,null,null,""]
[null,null,null,null,""]
[null,null,null,null,""]
[null,null,null,null,""]
[null,null,null,null,""]
[null,null,null,null,""]
[null,null,null,null,""]
[null,null,null,null,""]
[null,null,null,null,""]
[null,null,null,null,""]
[null,null,null,null,""]
[null,null,null,null,""]
[null,null,null,null,""]
[null,null,null,null,""]
[null,null,null,null,""]
[null,null,null,null,""]
[null,null,null,null,""]
[null,null,null,null,""]
[null,null,null,null,""]
[null,null,null,null,""]
[null,null,null,null,""]
[null,null,null,null,""]
[null,null,null,null,""]
[null,null,null,null,""]
[null,null,null,null,""]
[null,null,null,null,""]
[null,null,null,null,""]
[null,null,null,null,""]
[null,null,null,null,""]
[null,null,null,null,""]
[null,null,null,null,""]
[null,null,null,null,""]
[null,null,null,null,""]
[null,null,null,null,""]
[null,null,null,null,""]
[null,null,null,null,""]
[null,null,null,null,""]
[null,null,null,null,""]
[null,null,null,null,""]
[null,null,null,null,""]
[null,null,null,null,{"$f":"IFERROR(D324/C324,\"\")","v":""}]
[null,null,null,null,""]
[null,null,null,null,""]
[null,null,null,null,""]
[null,null,null,null,""]
[null,null,null,null,""]
[null,null,null,null,""]
[null,null,null,null,""]
[null,null,null,null,""]
[null,null,null,null,""]
[null,null,null,null,""]
[null,null,null,null,""]
[null,null,null,null,""]
[null,null,null,null,""]
[null,null,null,null,""]
[null,null,null,null,""]
[null,null,null,null,""]
[null,null,null,null,""]
[null,null,null,null,""]
[null,null,null,null,""]
[null,null,null,null,""]
[null,null,null,null,""]
[null,null,null,null,""]
[null,null,null,null,""]
[null,null,null,null,""]
[null,null,null,null,""]
[null,null,null,null,""]
[null,null,null,null,""]
[null,null,null,null,""]
[null,null,null,null,""]
[null,null,null,null,""]
[null,null,null,null,""]
[null,null,null,null,""]
[null,null,null,null,""]
[null,null,null,null,""]
[null,null,null,null,""]
[null,null,null,null,""]
[null,null,null,null,""]
[null,null,null,null,""]
[null,null,null,null,""]
[null,null,null,null,""]
[null,null,null,null,""]
[null,null,null,null,""]
[null,null,null,null,""]
[null,null,null,null,""]
[null,null,null,null,""]
[null,null,null,null,""]
[null,null,null,null,""]
[null,null,null,null,""]
[null,null,null,null,""]
[null,null,null,null,""]
[null,null,null,null,""]
[null,null,null,null,""]
[null,null,null,null,""]
[null,null,null,null,""]
[null,null,null,null,""]
[null,null,null,null,""]
[null,null,null,null,""]
[null,null,null,null,""]
[null,null,null,null,""]
[null,null,null,null,""]
[null,null,null,null,""]
[null,null,null,null,""]
[null,null,null,null,""]
[null,null,null,null,{"$f":"IFERROR(D388/C388,\"\")","v":""}]
[null,null,null,null,""]
[null,null,null,null,""]
[null,null,null,null,""]
[null,null,null,null,""]
[null,null,null,null,""]
[null,null,null,null,""]
[null,null,null,null,""]
[null,null,null,null,""]
[null,null,null,null,""]
[null,null,null,null,""]
[null,null,null,null,""]
[null,null,null,null,""]
[null,null,null,null,""]
[null,null,null,null,""]
[null,null,null,null,""]
[null,null,null,null,""]
[null,null,null,null,""]
[null,null,null,null,""]
[null,null,null,null,""]
[null,null,null,null,""]
[null,null,null,null,""]
[null,null,null,null,""]
[null,null,null,null,""]
[null,null,null,null,""]
[null,null,null,null,""]
[null,null,null,null,""]
[null,null,null,null,""]
[null,null,null,null,""]
[null,null,null,null,""]
[null,null,null,null,""]
[null,null,null,null,""]
[null,null,null,null,""]
[null,null,null,null,""]
[null,null,null,null,""]
[null,null,null,null,""]
[null,null,null,null,""]
[null,null,null,null,""]
[null,null,null,null,""]
[null,null,null,null,""]
[null,null,null,null,""]
[null,null,null,null,""]
[null,null,null,null,""]
[null,null,null,null,""]
[null,null,null,null,""]
[null,null,null,null,""]
[null,null,null,null,""]
[null,null,null,null,""]
[null,null,null,null,""]
[null,null,null,null,""]
[null,null,null,null,""]
[null,null,null,null,""]
[null,null,null,null,""]
[null,null,null,null,""]
[null,null,null,null,""]
[null,null,null,null,""]
[null,null,null,null,""]
[null,null,null,null,""]
[null,null,null,null,""]
[null,null,null,null,""]
[null,null,null,null,""]
[null,null,null,null,""]
[null,null,null,null,""]
[null,null,null,null,""]
[null,null,null,null,{"$f":"IFERROR(D452/C452,\"\")","v":""}]
[null,null,null,null,""]
[null,null,null,null,""]
[null,null,null,null,""]
[null,null,null,null,""]
[null,null,null,null,""]
[null,null,null,null,""]
[null,null,null,null,""]
[null,null,null,null,""]
[null,null,null,null,""]
[null,null,null,null,""]
[null,null,null,null,""]
[null,null,null,null,""]
[null,null,null,null,""]
[null,null,null,null,""]
[null,null,null,null,""]
[null,null,null,null,""]
[null,null,null,null,""]
[null,null,null,null,""]
[null,null,null,null,""]
[null,null,null,null,""]
[null,null,null,null,""]
[null,null,null,null,""]
[null,null,null,null,""]
[null,null,null,null,""]
[null,null,null,null,""]
[null,null,null,null,""]
[null,null,null,null,""]
[null,null,null,null,""]
[null,null,null,null,""]
[null,null,null,null,""]
[null,null,null,null,""]
[null,null,null,null,""]
[null,null,null,null,""]
[null,null,null,null,""]
[null,null,null,null,""]
[null,null,null,null,""]
[null,null,null,null,""]
[null,null,null,null,""]
[null,null,null,null,""]
[null,null,null,null,""]
[null,null,null,null,""]
[null,null,null,null,""]
[null,null,null,null,""]
[null,null,null,null,""]
[null,null,null,null,""]
[null,null,null,null,""]
[null,null,null,null,""]
[null,null,null,null,""]
[null,null,null,null,""]
[null,null,null,null,""]
[null,null,null,null,""]
[null,null,null,null,""]
[null,null,null,null,""]
[null,null,null,null,""]
[null,null,null,null,""]
[null,null,null,null,""]
[null,null,null,null,""]
[null,null,null,null,""]
[null,null,null,null,""]
[null,null,null,null,""]
[null,null,null,null,""]
[null,null,null,null,""]
[null,null,null,null,""]
[null,null,null,null,{"$f":"IFERROR(D516/C516,\"\")","v":""}]
[null,null,null,null,""]
[null,null,null,null,""]
[null,null,null,null,""]
[null,null,null,null,""]
[null,null,null,null,""]
[null,null,null,null,""]
[null,null,null,null,""]
[null,null,null,null,""]
[null,null,null,null,""]
[null,null,null,null,""]
[null,null,null,null,""]
[null,null,null,null,""]
[null,null,null,null,""]
[null,null,null,null,""]
[null,null,null,null,""]
[null,null,null,null,""]
[null,null,null,null,""]
[null,null,null,null,""]
[null,null,null,null,""]
[null,null,null,null,""]
[null,null,null,null,""]
[null,null,null,null,""]
[null,null,null,null,""]
[null,null,null,null,""]
[null,null,null,null,""]
[null,null,null,null,""]
[null,null,null,null,""]
[null,null,null,null,""]
[null,null,null,null,""]
[null,null,null,null,""]
[null,null,null,null,""]
[null,null,null,null,""]
[null,null,null,null,""]
[null,null,null,null,""]
[null,null,null,null,""]
[null,null,null,null,""]
[null,null,null,null,""]
[null,null,null,null,""]
[null,null,null,null,""]
[null,null,null,null,""]
[null,null,null,null,""]
[null,null,null,null,""]
[null,null,null,null,""]
[null,null,null,null,""]
[null,null,null,null,""]
[null,null,null,null,""]
[null,null,null,null,""]
[null,null,null,null,""]
[null,null,null,null,""]
[null,null,null,null,""]
[null,null,null,null,""]
[null,null,null,null,""]
[null,null,null,null,""]
[null,null,null,null,""]
[null,null,null,null,""]
[null,null,null,null,""]
[null,null,null,null,""]
[null,null,null,null,""]
[null,null,null,null,""]
[null,null,null,null,""]
[null,null,null,null,""]
[null,null,null,null,""]
[null,null,null,null,""]
[null,null,null,null,{"$f":"IFERROR(D580/C580,\"\")","v":""}]
[null,null,null,null,""]
[null,null,null,null,""]
[null,null,null,null,""]
[null,null,null,null,""]
[null,null,null,null,""]
[null,null,null,null,""]
[null,null,null,null,""]
[null,null,null,null,""]
[null,null,null,null,""]
[null,null,null,null,""]
[null,null,null,null,""]
[null,null,null,null,""]
[null,null,null,null,""]
[null,null,null,null,""]
[null,null,null,null,""]
[null,null,null,null,""]
[null,null,null,null,""]
[null,null,null,null,""]
[null,null,null,null,""]
[null,null,null,null,""]
[null,null,null,null,""]
[null,null,null,null,""]
[null,null,null,null,""]
[null,null,null,null,""]
[null,null,null,null,""]
[null,null,null,null,""]
[null,null,null,null,""]
[null,null,null,null,""]
[null,null,null,null,""]
[null,null,null,null,""]
[null,null,null,null,""]
[null,null,null,null,""]
[null,null,null,null,""]
[null,null,null,null,""]
[null,null,null,null,""]
[null,null,null,null,""]
[null,null,null,null,""]
[null,null,null,null,""]
[null,null,null,null,""]
[null,null,null,null,""]
[null,null,null,null,""]
[null,null,null,null,""]
[null,null,null,null,""]
[null,null,null,null,""]
[null,null,null,null,""]
[null,null,null,null,""]
[null,null,null,null,""]
[null,null,null,null,""]
[null,null,null,null,""]
[null,null,null,null,""]
[null,null,null,null,""]
[null,null,null,null,""]
[null,null,null,null,""]
[null,null,null,null,""]
[null,null,null,null,""]
[null,null,null,null,""]
[null,null,null,null,""]
[null,null,null,null,""]
[null,null,null,null,""]
[null,null,null,null,""]
[null,null,null,null,""]
[null,null,null,null,""]
[null,null,null,null,""]
[null,null,null,null,{"$f":"IFERROR(D644/C644,\"\")","v":""}]
[null,null,null,null,""]
[null,null,null,null,""]
[null,null,null,null,""]
[null,null,null,null,""]
[null,null,null,null,""]
[null,null,null,null,""]
[null,null,null,null,""]
[null,null,null,null,""]
[null,null,null,null,""]
[null,null,null,null,""]
[null,null,null,null,""]
[null,null,null,null,""]
[null,null,null,null,""]
[null,null,null,null,""]
[null,null,null,null,""]
[null,null,null,null,""]
[null,null,null,null,""]
[null,null,null,null,""]
[null,null,null,null,""]
[null,null,null,null,""]
[null,null,null,null,""]
[null,null,null,null,""]
[null,null,null,null,""]
[null,null,null,null,""]
[null,null,null,null,""]
[null,null,null,null,""]
[null,null,null,null,""]
[null,null,null,null,""]
[null,null,null,null,""]
[null,null,null,null,""]
[null,null,null,null,""]
[null,null,null,null,""]
[null,null,null,null,""]
[null,null,null,null,""]
[null,null,null,null,""]
[null,null,null,null,""]
[null,null,null,null,""]
[null,null,null,null,""]
[null,null,null,null,""]
[null,null,null,null,""]
[null,null,null,null,""]
[null,null,null,null,""]
[null,null,null,null,""]
[null,null,null,null,""]
[null,null,null,null,""]
[null,null,null,null,""]
[null,null,null,null,""]
[null,null,null,null,""]
[null,null,null,null,""]
[null,null,null,null,""]
[null,null,null,null,""]
[null,null,null,null,""]
[null,null,null,null,""]
[null,null,null,null,""]
[null,null,null,null,""]
[null,null,null,null,""]
[null,null,null,null,""]
[null,null,null,null,""]
[null,null,null,null,""]
[null,null,null,null,""]
[null,null,null,null,""]
[null,null,null,null,""]
[null,null,null,null,""]
[null,null,null,null,{"$f":"IFERROR(D708/C708,\"\")","v":""}]
[null,null,null,null,""]
[null,null,null,null,""]
[null,null,null,null,""]
[null,null,null,null,""]
[null,null,null,null,""]
[null,null,null,null,""]
[null,null,null,null,""]
[null,null,null,null,""]
[null,null,null,null,""]
[null,null,null,null,""]
[null,null,null,null,""]
[null,null,null,null,""]
[null,null,null,null,""]
[null,null,null,null,""]
[null,null,null,null,""]
[null,null,null,null,""]
[null,null,null,null,""]
[null,null,null,null,""]
[null,null,null,null,""]
[null,null,null,null,""]
[null,null,null,null,""]
[null,null,null,null,""]
[null,null,null,null,""]
[null,null,null,null,""]
[null,null,null,null,""]
[null,null,null,null,""]
[null,null,null,null,""]
[null,null,null,null,""]
[null,null,null,null,""]
[null,null,null,null,""]
[null,null,null,null,""]
[null,null,null,null,""]
[null,null,null,null,""]
[null,null,null,null,""]
[null,null,null,null,""]
[null,null,null,null,""]
[null,null,null,null,""]
[null,null,null,null,""]
[null,null,null,null,""]
[null,null,null,null,""]
[null,null,null,null,""]
[null,null,null,null,""]
[null,null,null,null,""]
[null,null,null,null,""]
[null,null,null,null,""]
[null,null,null,null,""]
[null,null,null,null,""]
[null,null,null,null,""]
[null,null,null,null,""]
[null,null,null,null,""]
[null,null,null,null,""]
[null,null,null,null,""]
[null,null,null,null,""]
[null,null,null,null,""]
[null,null,null,null,""]
[null,null,null,null,""]
[null,null,null,null,""]
[null,null,null,null,""]
[null,null,null,null,""]
[null,null,null,null,""]
[null,null,null,null,""]
[null,null,null,null,""]
[null,null,null,null,""]
[null,null,null,null,{"$f":"IFERROR(D772/C772,\"\")","v":""}]
[null,null,null,null,""]
[null,null,null,null,""]
[null,null,null,null,""]
[null,null,null,null,""]
[null,null,null,null,""]
[null,null,null,null,""]
[null,null,null,null,""]
[null,null,null,null,""]
[null,null,null,null,""]
[null,null,null,null,""]
[null,null,null,null,""]
[null,null,null,null,""]
[null,null,null,null,""]
[null,null,null,null,""]
[null,null,null,null,""]
[null,null,null,null,""]
[null,null,null,null,""]
[null,null,null,null,""]
[null,null,null,null,""]
[null,null,null,null,""]
[null,null,null,null,""]
[null,null,null,null,""]
[null,null,null,null,""]
[null,null,null,null,""]
[null,null,null,null,""]
[null,null,null,null,""]
[null,null,null,null,""]
[null,null,null,null,""]
[null,null,null,null,""]
[null,null,null,null,""]
[null,null,null,null,""]
[null,null,null,null,""]
[null,null,null,null,""]
[null,null,null,null,""]
[null,null,null,null,""]
[null,null,null,null,""]
[null,null,null,null,""]
[null,null,null,null,""]
[null,null,null,null,""]
[null,null,null,null,""]
[null,null,null,null,""]
[null,null,null,null,""]
[null,null,null,null,""]
[null,null,null,null,""]
[null,null,null,null,""]
[null,null,null,null,""]
[null,null,null,null,""]
[null,null,null,null,""]
[null,null,null,null,""]
[null,null,null,null,""]
[null,null,null,null,""]
[null,null,null,null,""]
[null,null,null,null,""]
[null,null,null,null,""]
[null,null,null,null,""]
[null,null,null,null,""]
[null,null,null,null,""]
[null,null,null,null,""]
[null,null,null,null,""]
[null,null,null,null,""]
[null,null,null,null,""]
[null,null,null,null,""]
[null,null,null,null,""]
[null,null,null,null,{"$f":"IFERROR(D836/C836,\"\")","v":""}]
[null,null,null,null,""]
[null,null,null,null,""]
[null,null,null,null,""]
[null,null,null,null,""]
[null,null,null,null,""]
[null,null,null,null,""]
[null,null,null,null,""]
[null,null,null,null,""]
[null,null,null,null,""]
[null,null,null,null,""]
[null,null,null,null,""]
[null,null,null,null,""]
[null,null,null,null,""]
[null,null,null,null,""]
[null,null,null,null,""]
[null,null,null,null,""]
[null,null,null,null,""]
[null,null,null,null,""]
[null,null,null,null,""]
[null,null,null,null,""]
[null,null,null,null,""]
[null,null,null,null,""]
[null,null,null,null,""]
[null,null,null,null,""]
[null,null,null,null,""]
[null,null,null,null,""]
[null,null,null,null,""]
[null,null,null,null,""]
[null,null,null,null,""]
[null,null,null,null,""]
[null,null,null,null,""]
[null,null,null,null,""]
[null,null,null,null,""]
[null,null,null,null,""]
[null,null,null,null,""]
[null,null,null,null,""]
[null,null,null,null,""]
[null,null,null,null,""]
[null,null,null,null,""]
[null,null,null,null,""]
[null,null,null,null,""]
[null,null,null,null,""]
[null,null,null,null,""]
[null,null,null,null,""]
[null,null,null,null,""]
[null,null,null,null,""]
[null,null,null,null,""]
[null,null,null,null,""]
[null,null,null,null,""]
[null,null,null,null,""]
[null,null,null,null,""]
[null,null,null,null,""]
[null,null,null,null,""]
[null,null,null,null,""]
[null,null,null,null,""]
[null,null,null,null,""]
[null,null,null,null,""]
[null,null,null,null,""]
[null,null,null,null,""]
[null,null,null,null,""]
[null,null,null,null,""]
[null,null,null,null,""]
[null,null,null,null,""]
[null,null,null,null,{"$f":"IFERROR(D900/C900,\"\")","v":""}]
[null,null,null,null,""]
[null,null,null,null,""]
[null,null,null,null,""]
[null,null,null,null,""]
[null,null,null,null,""]
[null,null,null,null,""]
[null,null,null,null,""]
[null,null,null,null,""]
[null,null,null,null,""]
[null,null,null,null,""]
[null,null,null,null,""]
[null,null,null,null,""]
[null,null,null,null,""]
[null,null,null,null,""]
[null,null,null,null,""]
[null,null,null,null,""]
[null,null,null,null,""]
[null,null,null,null,""]
[null,null,null,null,""]
[null,null,null,null,""]
[null,null,null,null,""]
[null,null,null,null,""]
[null,null,null,null,""]
[null,null,null,null,""]
[null,null,null,null,""]
[null,null,null,null,""]
[null,null,null,null,""]
[null,null,null,null,""]
[null,null,null,null,""]
[null,null,null,null,""]
[null,null,null,null,""]
[null,null,null,null,""]
[null,null,null,null,""]
[null,null,null,null,""]
[null,null,null,null,""]
[null,null,null,null,""]
[null,null,null,null,""]
[null,null,null,null,""]
[null,null,null,null,""]
[null,null,null,null,""]
[null,null,null,null,""]
[null,null,null,null,""]
[null,null,null,null,""]
[null,null,null,null,""]
[null,null,null,null,""]
[null,null,null,null,""]
[null,null,null,null,""]
[null,null,null,null,""]
[null,null,null,null,""]
[null,null,null,null,""]
[null,null,null,null,""]
[null,null,null,null,""]
[null,null,null,null,""]
[null,null,null,null,""]
[null,null,null,null,""]
[null,null,null,null,""]
[null,null,null,null,""]
[null,null,null,null,""]
[null,null,null,null,""]
[null,null,null,null,""]
[null,null,null,null,""]
[null,null,null,null,""]
[null,null,null,null,""]
[null,null,null,null,{"$f":"IFERROR(D964/C964,\"\")","v":""}]
[null,null,null,null,""]
[null,null,null,null,""]
[null,null,null,null,""]
[null,null,null,null,""]
[null,null,null,null,""]
[null,null,null,null,""]
[null,null,null,null,""]
[null,null,null,null,""]
[null,null,null,null,""]
[null,null,null,null,""]
[null,null,null,null,""]
[null,null,null,null,""]
[null,null,null,null,""]
[null,null,null,null,""]
[null,null,null,null,""]
[null,null,null,null,""]
[null,null,null,null,""]
[null,null,null,null,""]
[null,null,null,null,""]
[null,null,null,null,""]
[null,null,null,null,""]
[null,null,null,null,""]
[null,null,null,null,""]
[null,null,null,null,""]
[null,null,null,null,""]
[null,null,null,null,""]
[null,null,null,null,""]
[null,null,null,null,""]
[null,null,null,null,""]
[null,null,null,null,""]
[null,null,null,null,""]
[null,null,null,null,""]
[null,null,null,null,""]
[null,null,null,null,""]
[null,null,null,null,""]
[null,null,null,null,""]
[null,null,null,null,""]
[null,null,null,null,""]

{"sheet":"Instructions","index":3,"n_rows":15,"n_cols":1,"rows_kept":15,"cut":false,"hidden":false,"merged":[]}
["Instructions:"]
[]
["1. Download and open the file. Ensure you allow any connections or macros it asks for, these are needed for it to function correctly."]
["(NOTE: Microsoft Excel 2013 or newer is needed to run this file successfully)"]
[]
["2. Go to the \"Purchase Info\" tab, remove the example filler data (Columns A to D). "]
["3. Input your own purchase data, putting each stock purchase in its own line like the filler example showed. (Multiple purchases of the same stock should be entered in multiple lines)\n(NOTE: THE PROPER TICKER SYNTAX MUST BE USED. E.g. \"NCBFG (JMD)\" not \"NCBFG\")"]
["4. Go to the \"SaleInfo\" tab, remove the example filler data (Columns A to D)."]
["5. Input your own sale data, putting each stock sale you've done in its own line and matching the (previously deleted) filler example. (Multiple sales of the same stock should also be entered in multiple lines)\n(NOTE: THE PROPER TICKER SYNTAX MUST BE USED. E.g. \"NCBFG (JMD)\" not \"NCBFG\")"]
["6. Go to the Dashboard Tab (ignore any errors the sheet may be currently showing) and remove the filler dashboard entry (Column A ONLY)."]
["7. Input the stock ticker of ALL the stocks you have purchased into the Dashboard starting at Column A, Row 17. (Note: you will only be able to enter data in Column A on the dashboard. All the other data will automatically fill itself in and update afterwards.(You only need to enter a stock you own once, regardless of how many times you purchased it. The sheet will calculate the details)\n(NOTE: THE PROPER TICKER SYNTAX MUST BE USED. E.g. \"NCBFG (JMD)\" not \"NCBFG\")"]
["8. Hit the red \"Refresh\" button at the top of Column E. The dashboard will connect to the internet, get the latest prices for all JSE listed stocks, and update your portfolio to the current value as of the last closing date that JSE has available."]
["PLEASE NOTE:"]
["1. This dashboard relies on JSE's server's which are at times unreliable. It is not uncommon to refresh and get an error. If that happens, simply ensure you're connected to the internet and hit refresh again."]
["2. Areas in the file which are needed for calculation and should not be edited will not be accessible and will prompt for a password if attempted to be edited. These areas do not need to be edited and you do not need the password for the sheet to work correctly."]

{"sheet":"JSESiteQuery","index":4,"n_rows":204,"n_cols":13,"rows_kept":204,"cut":false,"hidden":true,"merged":[]}
["Logo"]
["Sign in"]
["or Register for a Free Account"]
["Home"]
["News"]
["Events"]
["Market Data"]
["Investor Centre"]
["Products"]
["Services"]
["MYJSE"]
["About"]
["Jamaica Stock Exchange > Market Data > Daily Market Quote"]
["Daily Market Quote"]
["Combined Market for May 15, 2020"]
["Markets:"]
["Archived Reports:"]
["Go Download CSV"]
["INDICES"]
["Index","Value","Volume","Change","Change(%)"]
["JSE Combined Index ",371399.39,29737412,-1923.06,-0.52]
["JSE Index ",375066.49,24395591,-2003.95,-0.53]
["JSE All Jamaican Composite Index ",411473.46,24394591,-2215.5500000000002,-0.54]
["JSE Select Index ",9498.8700000000008,1148235,-59.96,-0.63]
["JSE Cross Listed Index ",83.16,1000,7.0000000000000007E-2,0.08]
["Junior Market Index ",2444.9899999999998,5341821,-7.34,-0.3]
["JSE USD Equities Index ",186.97,1343277,-5.58,-2.9]
["JSE Financial Index",100.42,3790638,-1.04,-1.03]
["JSE Manufacturing & Distribution Index",74.709999999999994,1183101,-0.04,-0.05]
["ORDINARY SHARES"]
["Security ","Last Traded","Close","Price","Closing","Closing","Volume","Today's","Today's","52 Week","52 Week","Prev","Current"]
[null,"Price","Price","Change","Bid","Ask","(non block)","High","Low","High","Low","Yr Div","Yr Div"]
["138SL (JMD)",8.8000000000000007,7.97,0.42,8.8000000000000007,8.99,43495,9.19,7.75,9.48,2.85]
["1834 (JMD)",0.8,0.8,-0.05,0.8,0.9,59522,0.85,0.8,1.26,0.75]
["AFSVR2020 (JMD)",0,99.5,0,0,0,0,0,0,0,0]
["AFS (JMD)",22.1,22.81,0,23.1,26.5,0,0,0,48,17.649999999999999]
["AFSVR2025 (JMD)",0,100,0,0,0,0,0,0,0,0]
["AMG (JMD)",1.76,1.76,0,1.65,1.76,0,0,0,2.5,1.3]
["BIL (JMD)",51.21,51.18,-0.2,48.5,52,1497515,51.7,46.57,100,41]
["BRG (JMD)",14,14,0.3,13.3,14,125,14,14,20.6,9.5]
["BPOW (JMD)",3.43,3.43,-0.01,3.4,3.43,6130,3.43,3.43,16.3,3]
["CAC (JMD)",9,9.39,0,9.39,12.3,0,0,0,16,9]
["CHL (JMD)",6.5,6.5,0,6.48,6.5,10000,6.5,6.5,12,5.0999999999999996]
["CABROKERS (JMD)",2.2999999999999998,2.3199999999999998,0.02,2.25,2.4900000000000002,24683,2.4900000000000002,2.15,2.85,1.6]
["CCC (JMD)",50.4,50.13,1.3,50,50.4,23392,50.4,50,89.99,35]
["KREMI (JMD)",2.2000000000000002,2.17,-0.28000000000000003,2.1,2.95,227357,2.5,2,6,1.82]
["CFF (JMD)",10,10,0,9.5,14,0,0,0,20,8]
["CPJ (JMD)",2.5,2.48,0.09,2.39,2.4900000000000002,37155,2.5,2.4,5.3,2]
["CPJVR2023 (JMD)",0,100,0,0,0,0,0,0,0,0]
["CAR (JMD)",6.5,6.5,0,6.47,6.5,157400,6.5,6.5,9.91,5.8]
["CBNY (JMD)",0.11,0.11,0.02,0.09,0.11,30852,0.11,0.11,0.14000000000000001,7.0000000000000007E-2]
["PURITY (JMD)",1.51,1.51,0,1.51,1.69,0,0,0,2.5,1.23]
["DTL (JMD)",1.81,1.81,-0.24,1.84,2.11,1556,1.81,1.81,3,1.4]
["DCOVE (JMD)",7,7,0,6.7,7.8,15131,7,7,12.05,6]
["ELITE (JMD)",3.88,3.69,7.0000000000000007E-2,3.5,3.88,29100,3.88,3.62,7.5,2.0699999999999998]
["CPFV (JMD)",32.28,32.28,0,32.299999999999997,33.99,0,0,0,50,30]
["EPLY (JMD)",14.25,14.43,1.18,13.8,14.95,5926,14.6,14.25,20,10.1]
["EFRESH (JMD)",0.71,0.77,-0.05,0.72,0.77,32000,0.82,0.71,2,0.5]
["ECL (JMD)",3.5,3.47,0.09,3.4,3.51,4559,3.51,3.35,8,2.85]
["FIRSTROCKJMD (JMD)",10.5,10.95,-0.35,10.4,11.35,22700,11.4,10.5,18.489999999999998,8.5]
["FIRSTROCKUSD (USD)",0.09,0.09,0,0.08,0.09,4427,0.09,0.09,0.12,0.06]
["FTNA (JMD)",5.57,5.5,0.09,5.46,5.57,127121,5.57,5.41,9,3.5]
["FOSRICH (JMD)",3.7,3.7,0.21,3.47,3.7,5383,3.7,3.7,6.5,2]
["GENAC (JMD)",4.7,5.05,-0.11,4.54,5.05,697342,5.27,4.5199999999999996,9,3.89]
["GK (JMD)",58,57.77,-0.18,57,58,152891,58,56.5,79.989999999999995,50.51]
["GWEST (JMD)",0.8,0.8,0,0.8,0.9,433,0.8,0.8,1.77,0.6]
["HONBUN (JMD)",5.2,5.0999999999999996,0.05,5,5.44,6735,5.2,5.05,9.9,3.8]
["ICREATE (JMD)",0.55000000000000004,0.51,0.04,0.48,0.55000000000000004,1276052,0.61,0.45,0.92,0.4]
["INDIES (JMD)",2.29,2.29,-0.01,2.25,2.29,24593,2.29,2.29,4,1.25]
["ROC (JMD)",2.7,2.7,0.01,3,3.45,23000,2.7,2.7,4.96,2]
["ISP (JMD)",15.99,15.99,0,13.5,15.9,0,0,0,33,11.5]
["JBG (JMD)",24,24.49,-0.51,24,25,71423,25,24,43.63,21]
["JP (JMD)",19,19.11,-0.55000000000000004,19.16,20.5,12053,19.2,19,31.19,15]
["JSE (JMD)",21.5,20.8,-0.44,20.51,21.5,31781,21.5,20.51,40.01,15]
["JAMT (JMD)",3.81,3.86,-0.1,3.81,4,81964,3.98,3.81,9,3.26]
["JETCON (JMD)",0.88,0.88,0.08,0.85,0.88,43792,0.88,0.86,2.5,0.65]
["JMMBGL (JMD)",34,33.96,0.11,33.99,34,116071,34,33.85,55.07,30.72]
["KLE (JMD)",1.7,1.7,0,1.5,1.7,0,0,0,2.8,1.2]
["KEY (JMD)",7.6,7.7,-0.27,7.02,7.7,148234,8,7,11.5,2]
["KPREIT (JMD)",6,6.1,0,6,6.2,0,0,0,8.1,4.5]
["KW (JMD)",48,48,1.93,46.8,48,22249,48,48,73,36]
["KEX (JMD)",7.78,7.28,-0.57999999999999996,7.78,8.9600000000000009,36650,7.78,7,12.9,5]
["LASD (JMD)",3.25,3.28,0.09,3.1,3.25,6877,3.35,3.25,4,1.9]
["LASF (JMD)",2.69,2.65,-0.05,2.57,2.69,28028,2.69,2.56,7,1.9]
["LASM (JMD)",3.97,3.95,0.08,3.97,3.99,36324,3.97,3.81,6.5,2.5]
["LUMBER (JMD)",1.1299999999999999,1.1299999999999999,0.02,1.1200000000000001,1.1299999999999999,2000,1.1299999999999999,1.1299999999999999,2.67,1]
["MAILPAC (JMD)",1.88,1.83,-0.1,1.79,1.89,2526913,1.96,1.75,2.6,1.2]
["MEEG (JMD)",4.0999999999999996,4.0999999999999996,0.02,4.08,4.87,673,4.0999999999999996,4.0999999999999996,8,3.2]
["MTL (JMD)",32.21,32.21,0,0.19,0,0,0,0,32.21,32.21]
["MTL (USD)",0.18,0.18,0,0.16,0.18,3000,0.18,0.18,0.36,0.18]
["MIL (JMD)",5.77,5.46,-0.31,5.2,5.86,142650,5.86,5.1100000000000003,10.14,4.75]
["MJE (JMD)",8.99,7.86,-1.58,7.02,8.99,16066,8.99,7.65,14.5,5.48]
["MDS (JMD)",6.2,6.2,-0.01,5.9,6.2,10064,6.2,6.2,9,5]
["MPCCEL (JMD)",175,175,0.3,149,176,1000,175,175,275,126]
["MPCCEL (USD)",1,1,0,1.05,0,0,0,0,0,0]
["NCBFG (JMD)",150,148.22999999999999,0.87,149,150,82819,150,147,249,131]
["NCBFGFR2021 (JMD)",0,143.61000000000001,0,0,0,0,0,0,0,0]
["PAL (JMD)",1500,1500,0,1500,2000,158,1500,1500,2900,1275]
["PJAM (JMD)",76,76.2,-1.97,75.5,77,126313,79.989999999999995,76,110.6,73]
["PTL (JMD)",2,1.97,0,1.89,1.99,0,0,0,2.4500000000000002,1.4]
["PJX (JMD)",7.66,7.66,0,7.66,8.6,0,0,0,11,7]
["PBS (USD)",0.77,0.77,0,0.64,0,0,0,0,0.77,0.5]
["PROVEN (JMD)",36.5,36.4,0.25,35.049999999999997,37,18158,36.5,36,55,31]
["PROVEN (USD)",0.23,0.23,0,0.22,0.23,101304,0.23,0.23,0.37,0.2]
["PULS (JMD)",2.16,2.11,0,2.0699999999999998,2.16,542214,2.1800000000000002,2.0499999999999998,4.33,0.77]
["QWI (JMD)",0.71,0.71,0,0.7,0.72,180699,0.72,0.7,1.69,0.55000000000000004]
["RJR (JMD)",1.28,1.3,-7.0000000000000007E-2,1.29,1.42,148935,1.37,1.28,2.58,1]
["SJ (JMD)",45.5,45.48,-0.05,45.44,45.5,31112,45.5,45.47,84.98,37.5]
["XFUND (JMD)",7.95,6.89,-0.61,7.5,7.95,1905,7.95,6.75,13,5.8]
["SELECTF (JMD)",0.74,0.75,0.01,0.73,0.74,3505227,0.75,0.74,1.98,0.57999999999999996]
["SELECTMD (JMD)",0.89,0.9,0.02,0.89,0.9,70987,0.91,0.87,1.1599999999999999,0.46]
["SALF (JMD)",25,27.44,-1.61,24.51,29.5,8263,28.5,25,38.25,24.5]
["SGJ (JMD)",42.02,44.95,-2.4500000000000002,42.77,47,85576,47.35,42.02,62.4,35]
["SEP (JMD)",49.99,49.9,0.49,48,49.99,4857,49.99,48.1,70,30]
["SSLVC (JMD)",0.9,0.9,0.12,0.75,0.9,166,0.9,0.9,1.7,0.7]
["SML (JMD)",5.05,4.9800000000000004,0,5,5.05,0,0,0,6.3,4.2]
["SOS (JMD)",6.2,6.2,0.08,6.05,6.2,14000,6.2,6.2,17,5.5]
["SIL (JMD)",2.85,2.84,-0.01,2.75,2.85,350290,2.85,2.8,3.99,2.2000000000000002]
["SIL (USD)",0.02,0.02,0,0.02,0.03,4331,0.02,0.02,0.05,0.02]
["SVL (JMD)",15.37,14.62,0.42,14.5,15.39,98320,15.4,14.25,34.32,11.72]
["SCIJMD (JMD)",18.600000000000001,18.690000000000001,-0.56999999999999995,17.55,18.8,27602,19.18,18,30,11.11]
["SCIUSD (USD)",0.13,0.13,0,0.12,0.13,10918,0.13,0.13,0.13,0.13]
["SCIUSD (JMD)",0.13,0.13,0,0,0.19,0,0,0,13.06,13.06,null,2.8999999999999998E-3]
["SCIJMD (USD)",13.06,13.06,0,0,0,0,0,0,0.22,0.09,null,2.8999999999999998E-3]
["LAB (JMD)",1.85,1.87,-0.03,1.85,1.9,6040,1.9,1.85,4.51,1.3]
["TJH (JMD)",1.4,1.39,0,1.39,1.4,13093637,1.4,1.39,1.4,1]
["TJH (USD)",0.01,0.01,0,0.01,0.01,1219297,0.01,0.01,0.01,0.01]
["TOKI (USD)",0.01,0.01,0,0.01,0,0,0,0,0,0]
["TTECH (JMD)",3.71,3.87,0,3.92,4.75,0,0,0,8,3.5]
["VMIL (JMD)",7.8,7.79,0.13,7.8,8,133907,8,7.56,13.99,4]
["WIG (JMD)",0.7,0.7,0,0.68,0.7,3239145,0.71,0.68,1.1499999999999999,0.5]
["WISYNCO (JMD)",17.899999999999999,17.63,-0.08,17.850000000000001,18,89646,18.079999999999998,17.059999999999999,30,11.5]
["PREFERENCE SHARES"]
["Security ","Last Traded","Close","Price","Closing","Closing","Volume","Today's","Today's","52 Week","52 >Week","Prev","Current"]
[null,"Price","Price","Change","Bid","Ask","(non block)","High","Low","High","Low","Yr Div","Yr Div"]
["138SLVR (JMD)",6,6,0,0,6,0,0,0,6,5]
["CAB11B (JMD)",1000000,1000000,0,0,0,0,0,0,0,0]
["CAB11A (USD)",1000,1000,0,0,0,0,0,0,0,0]
["CAC9.50 (JMD)",1,1,0,1,1,0,0,0,1.3,0.8]
["DTL9 (JMD)",1.5,1.5,0,1.5,0,0,0,0,2.2000000000000002,1.4]
["EPLY7.50 (JMD)",6.05,6.05,0,6,0,0,0,0,6.3,4.5999999999999996]
["EPLY8.25 (JMD)",5,5,0,4.5,0,0,0,0,6.5,5]
["EPLY5.00 (USD)",1,1,0,0,1,0,0,0,1,0.98,null,1.7000000000000001E-2]
["EPLY8.75 (JMD)",6.5,6.25,0,0.1,6.5,0,0,0,6.5,5.8]
["ELMIC (USD)",1.99,1.99,0,1.94,1.95,0,0,0,2.0099999999999998,1.99]
["JPS5C (JMD)",0.38,0.38,0,0.43,0,0,0,0,0,0]
["JPS5D (JMD)",0.38,0.38,0,0.45,0,0,0,0,0,0]
["JPS6 (JMD)",0.44,0.44,0,0.51,0,0,0,0,0,0]
["JPS9.5 (JMD)",1302,1302,0,1302,0,0,0,0,0,0]
["JPS7 (JMD)",0.48,0.48,0,0.55000000000000004,0,0,0,0,0,0]
["JMMBUS6.00 (USD)",1,1.02,0,0,0,0,0,0,0,0]
["JMMB7.50 (JMD)",1,1,0,0,0,0,0,0,0,0]
["JMMBGL5.50NC (USD)",2,2,0,0,0,0,0,0,2,2]
["JMMBGL5.75C (USD)",1.85,1.85,0,0,2,0,0,0,2.15,1.72]
["JMMBGL7.00NC (JMD)",1.68,1.68,0,0,1.68,0,0,0,2,1.68]
["JMMBGL7.25C (JMD)",1.2,1.2,0,1.2,1.6,0,0,0,2.11,1.2]
["JMMBGLUSD5.75 (USD)",1.5,1.5,0,0,0,0,0,0,1.5,1.5]
["JMMBGLUSD6.00 (USD)",0.99,0.99,0,0.99,1.1000000000000001,0,0,0,1.1200000000000001,0.99]
["JMMBGL7.25 (JMD)",1.6,1.6,0,0.69,1.6,0,0,0,1.9,1.45]
["JMMBGL7.50 (JMD)",0.76,0.76,0,0.67,0.76,476,0.76,0.76,1,0.55000000000000004]
["PTL8.75 (JMD)",2,2,0,0,0,0,0,0,2.2000000000000002,2]
["PBS9.75 (JMD)",100.01,100.01,0,100,0,0,0,0,108,80]
["BLOCK TRANSACTIONS ::"]
["Number of Trades: 0"]
["Total Value: 0.00"]
["Total Volume: 0"]
["ORDINARY TRANSACTIONS:"]
["Number of Trades: 1083"]
["Key:"]
["XD/XB/XS without entitlement to dividend, bonus, split."]
["* new high or low"]
["HIGHLIGHTED RED ROW - Stock Suspended"]
["JSE Logo"]
["Jamaica Stock Exchange Limited"]
["We foster the growth of the domestic financial services sector."]
[]
["40 Harbour Street, P.O.Box 1084, Kingston, Jamaica."]
["Telephone: (876) 967-3271 Fax: (876) 924-9090."]
[]
["Disclaimer"]
["Nothing contained on this website should be construed as granting, by implication, estoppel or otherwise, any license or right to use any of the content, trademarks, copyrights, or other proprietary material without the express written permission of the JSE or such other party as may own the proprietary rights therein and any rights not expressly granted herein are reserved to the JSE or its third party providers, as applicable. Individuals using or accessing this website or its content or causing the use of this website or its contents whether manually or otherwise by the use of any software or machine or similar method, further acknowledge and agree to abide by all applicable Intellectual Property laws, as well as any additional notices or restrictions contained on this website."]
["Follow Us"]
["News"]
["Annual Reports"]
["Articles"]
["Audited Financial Statements"]
["Directors' Circular"]
["General"]
["JSE Conference Presentations"]
["JSE Corporate Bond Market"]
["Quarterly Financial Statements"]
["Regional Stock Information"]
["Rights Issue"]
["Stock Market Game News"]
["Related Companies"]
["JSE Subsidiaries LogoJSE Subsidiaries Logo"]
["Services"]
["Regulatory Market Oversight DivisionJSE E-Campus LogoJSE Stock Market Game Logo"]
["Translate"]
["EnglishFrenchGermanPortugueseSpanish"]
["Version 3.9.0 "]
["Developed by BAKARI DIGITAL LABS"]
["Loading..."]
["Loading..."]